Body Name,Body,Service Area Categorisation,Service Division Categorisation,Responsible Unit,Expenses Type,Detailed Expenses Type,Payment Date,Transaction Number,Payment Amount,Supplier Type,Supplier Name,Supplier Id
Portsmouth City Council,PCC,Cultural and Related Services,Library Service,CULTURE & CITY DEVELOPMENT,Premises-Related Expenditure,Cleaning and domestic supplies,16/05/2018,6222253,483.18,VENDOR,1ST CHOICE HIGH LEVEL CLEANING & MAINTENANCE LIMITED,101385
Portsmouth City Council,PCC,Highways and Transport Services,Public Transport,REGENERATION,Supplies and Services,Communications and computing,09/05/2018,6221086,960,COMPANY,21ST CENTURY PASSENGER SYSTEMS LTD,138853
Portsmouth City Council,PCC,Corporate and Democratic Core,Corporate Management,"HR, LEGAL & PERFORMANCE",Supplies and Services,Communications and computing,08/05/2018,6220997,930,VENDOR,3SIXTY SYSTEMS LTD,141095
Portsmouth City Council,PCC,Corporate and Democratic Core,Corporate Management,"HR, LEGAL & PERFORMANCE",Supplies and Services,Communications and computing,08/05/2018,6220997,930,VENDOR,3SIXTY SYSTEMS LTD,141095
Portsmouth City Council,PCC,Costs below Net Cost of Services,Trading,FINANCE & IS,Supplies and Services,Miscellaneous expenses,04/05/2018,6220817,639.45,VENDOR,A & J LAWRENCE LTD,141283
Portsmouth City Council,PCC,Highways and Transport Services,Parking Services,REGENERATION,Supplies and Services,Miscellaneous expenses,04/05/2018,6220817,1500,VENDOR,A & J LAWRENCE LTD,141283
Portsmouth City Council,PCC,Costs below Net Cost of Services,Trading,FINANCE & IS,Supplies and Services,Miscellaneous expenses,16/05/2018,6222254,841.92,VENDOR,A & J LAWRENCE LTD,141283
Portsmouth City Council,PCC,Housing Revenue Account,Special Services,PROPERTY & HOUSING,Supplies and Services,"Equipment, furniture and materials",09/05/2018,6221087,4732.2,VENDOR,A AND P CHAMBERS LTD,132043
Portsmouth City Council,PCC,Adult Social Care,Support with Memory and Cognition Older People (65 - 74),ADULT SERVICES,Supplies and Services,Catering,16/05/2018,6222255,67.61,VENDOR,A G AXTON & SONS (WHOLESALE) LTD,101358
Portsmouth City Council,PCC,Adult Social Care,Support with Memory and Cognition Older People (65 - 74),ADULT SERVICES,Supplies and Services,Catering,16/05/2018,6222255,29.02,VENDOR,A G AXTON & SONS (WHOLESALE) LTD,101358
Portsmouth City Council,PCC,Adult Social Care,Support with Memory and Cognition Older People (65 - 74),ADULT SERVICES,Supplies and Services,Catering,16/05/2018,6222255,100.98,VENDOR,A G AXTON & SONS (WHOLESALE) LTD,101358
Portsmouth City Council,PCC,Adult Social Care,Support with Memory and Cognition Older People (65 - 74),ADULT SERVICES,Supplies and Services,Catering,16/05/2018,6222255,111.98,VENDOR,A G AXTON & SONS (WHOLESALE) LTD,101358
Portsmouth City Council,PCC,Adult Social Care,Support with Memory and Cognition Older People (65 - 74),ADULT SERVICES,Supplies and Services,Catering,16/05/2018,6222255,67.82,VENDOR,A G AXTON & SONS (WHOLESALE) LTD,101358
Portsmouth City Council,PCC,Adult Social Care,Support with Memory and Cognition Older People (65 - 74),ADULT SERVICES,Supplies and Services,Catering,16/05/2018,6222255,82.46,VENDOR,A G AXTON & SONS (WHOLESALE) LTD,101358
Portsmouth City Council,PCC,Adult Social Care,Support with Memory and Cognition Older People (65 - 74),ADULT SERVICES,Supplies and Services,Catering,16/05/2018,6222255,66.38,VENDOR,A G AXTON & SONS (WHOLESALE) LTD,101358
Portsmouth City Council,PCC,Adult Social Care,Support with Memory and Cognition Older People (65 - 74),ADULT SERVICES,Supplies and Services,Catering,16/05/2018,6222255,72.35,VENDOR,A G AXTON & SONS (WHOLESALE) LTD,101358
Portsmouth City Council,PCC,Adult Social Care,Support with Memory and Cognition Older People (65 - 74),ADULT SERVICES,Supplies and Services,Catering,16/05/2018,6222255,94.06,VENDOR,A G AXTON & SONS (WHOLESALE) LTD,101358
Portsmouth City Council,PCC,Adult Social Care,Support with Memory and Cognition Older People (65 - 74),ADULT SERVICES,Supplies and Services,Catering,16/05/2018,6222255,66.74,VENDOR,A G AXTON & SONS (WHOLESALE) LTD,101358
Portsmouth City Council,PCC,Adult Social Care,Support with Memory and Cognition Older People (65 - 74),ADULT SERVICES,Supplies and Services,Catering,16/05/2018,6222255,98.68,VENDOR,A G AXTON & SONS (WHOLESALE) LTD,101358
Portsmouth City Council,PCC,Cultural and Related Services,Culture and Heritage,CULTURE & CITY DEVELOPMENT,Third Party Payments,Private contractors,18/05/2018,6222870,40000,VENDOR,A STONES THROW EVENT CO UK,140614
Portsmouth City Council,PCC,Children's and Education Services,Family Support Services,CHILDREN SERVICES AND EDUCATION,Supplies and Services,Services,01/05/2018,6220022,25,VENDOR,AA GLOBAL LANGUAGE SERVICES LTD,140911
Portsmouth City Council,PCC,Housing Services,Homelessness,PROPERTY & HOUSING,Supplies and Services,Services,01/05/2018,6220022,22.08,VENDOR,AA GLOBAL LANGUAGE SERVICES LTD,140911
Portsmouth City Council,PCC,Children's and Education Services,Family Support Services,CHILDREN SERVICES AND EDUCATION,Supplies and Services,Services,01/05/2018,6220022,370,VENDOR,AA GLOBAL LANGUAGE SERVICES LTD,140911
Portsmouth City Council,PCC,Children's and Education Services,Family Support Services,CHILDREN SERVICES AND EDUCATION,Supplies and Services,Services,01/05/2018,6220022,21.5,VENDOR,AA GLOBAL LANGUAGE SERVICES LTD,140911
Portsmouth City Council,PCC,Children's and Education Services,Family Support Services,CHILDREN SERVICES AND EDUCATION,Supplies and Services,Services,01/05/2018,6220022,132,VENDOR,AA GLOBAL LANGUAGE SERVICES LTD,140911
Portsmouth City Council,PCC,Children's and Education Services,Family Support Services,CHILDREN SERVICES AND EDUCATION,Supplies and Services,Services,01/05/2018,6220022,-21.5,VENDOR,AA GLOBAL LANGUAGE SERVICES LTD,140911
Portsmouth City Council,PCC,Children's and Education Services,Family Support Services,CHILDREN SERVICES AND EDUCATION,Supplies and Services,Services,01/05/2018,6220022,175,VENDOR,AA GLOBAL LANGUAGE SERVICES LTD,140911
Portsmouth City Council,PCC,Planning Services,Business support,REGENERATION,Supplies and Services,"Equipment, furniture and materials",11/05/2018,6221693,563.46,VENDOR,ABACAS STUDIOS LTD,138528
Portsmouth City Council,PCC,Planning Services,Business support,REGENERATION,Supplies and Services,"Printing, stationery and general office expenses",11/05/2018,6221693,15,VENDOR,ABACAS STUDIOS LTD,138528
Portsmouth City Council,PCC,Adult Social Care,Physical Support Adults (18 - 64),ADULT SERVICES,Third Party Payments,Other establishments,02/05/2018,6220157,3432.01,VENDOR,ABLE COMMUNITY CARE LTD,142734
Portsmouth City Council,PCC,Adult Social Care,Physical Support Older People (85+),ADULT SERVICES,Third Party Payments,Other establishments,31/05/2018,6225380,3321.3,VENDOR,ABLE COMMUNITY CARE LTD,142734
Portsmouth City Council,PCC,Other,Suspense and Capital Schemes,Housing GF,Capital Charges,REFCUS,03/05/2018,6220685,5402.7,PARTNERSHIP,ABSOLUT INSTALLATION AND MAINTENANCE,114522
Portsmouth City Council,PCC,Housing Services,Private Sector Housing Renewal,PROPERTY & HOUSING,Income,Other grants reimbursements and contributions,03/05/2018,6220685,-482.38,PARTNERSHIP,ABSOLUT INSTALLATION AND MAINTENANCE,114522
Portsmouth City Council,PCC,Other,Suspense and Capital Schemes,Housing GF,Capital Charges,REFCUS,09/05/2018,6221088,4574.22,PARTNERSHIP,ABSOLUT INSTALLATION AND MAINTENANCE,114522
Portsmouth City Council,PCC,Housing Services,Private Sector Housing Renewal,PROPERTY & HOUSING,Income,Other grants reimbursements and contributions,09/05/2018,6221088,-479.81,PARTNERSHIP,ABSOLUT INSTALLATION AND MAINTENANCE,114522
Portsmouth City Council,PCC,Other,Suspense and Capital Schemes,Housing GF,Capital Charges,REFCUS,23/05/2018,6223765,3745.21,PARTNERSHIP,ABSOLUT INSTALLATION AND MAINTENANCE,114522
Portsmouth City Council,PCC,Children's and Education Services,Children Looked After,CHILDREN SERVICES AND EDUCATION,Supplies and Services,Services,22/05/2018,6223159,1000,VENDOR,ACADEMY TRUST (UNIVERSITY OF CHICHESTER),138859
Portsmouth City Council,PCC,Children's and Education Services,Special Schools,Children's Services - DSG & Schools,Third Party Payments,Other establishments,24/05/2018,6224278,31666.67,VENDOR,ACADEMY TRUST (UNIVERSITY OF CHICHESTER),138859
Portsmouth City Council,PCC,Adult Social Care,Support with Memory and Cognition Older People (65 - 74),ADULT SERVICES,Supplies and Services,Communications and computing,21/05/2018,6223013,1350,VENDOR,ACCENT VOICE AND DATA LTD,143919
Portsmouth City Council,PCC,Adult Social Care,Physical Support Adults (18 - 64),ADULT SERVICES,Third Party Payments,Other establishments,04/05/2018,6220821,1420.25,VENDOR,ACCESS CARE LTD,106309
Portsmouth City Council,PCC,Adult Social Care,Physical Support Adults (18 - 64),ADULT SERVICES,Third Party Payments,Other establishments,04/05/2018,6220821,1597.87,VENDOR,ACCESS CARE LTD,106309
Portsmouth City Council,PCC,Adult Social Care,Social Care Activities,ADULT SERVICES,Third Party Payments,Other establishments,30/05/2018,6224840,508.32,VENDOR,ACCESS CARE LTD,106309
Portsmouth City Council,PCC,Adult Social Care,Social Care Activities,ADULT SERVICES,Third Party Payments,Other establishments,30/05/2018,6224840,4112.4,VENDOR,ACCESS CARE LTD,106309
Portsmouth City Council,PCC,Adult Social Care,Social Care Activities,ADULT SERVICES,Third Party Payments,Other establishments,30/05/2018,6224840,5337.48,VENDOR,ACCESS CARE LTD,106309
Portsmouth City Council,PCC,Adult Social Care,Physical Support Adults (18 - 64),ADULT SERVICES,Third Party Payments,Other establishments,04/05/2018,6220821,225.81,VENDOR,ACCESS CARE LTD,106309
Portsmouth City Council,PCC,Adult Social Care,Physical Support Adults (18 - 64),ADULT SERVICES,Third Party Payments,Other establishments,04/05/2018,6220821,260.55,VENDOR,ACCESS CARE LTD,106309
Portsmouth City Council,PCC,Adult Social Care,Physical Support Adults (18 - 64),ADULT SERVICES,Third Party Payments,Other establishments,16/05/2018,6222256,3018.12,VENDOR,ACCESS CARE LTD,106309
Portsmouth City Council,PCC,Adult Social Care,Social Care Activities,ADULT SERVICES,Third Party Payments,Other establishments,16/05/2018,6222256,9958.2,VENDOR,ACCESS CARE LTD,106309
Portsmouth City Council,PCC,Adult Social Care,Physical Support Adults (18 - 64),ADULT SERVICES,Third Party Payments,Other establishments,16/05/2018,6222256,486.36,VENDOR,ACCESS CARE LTD,106309
Portsmouth City Council,PCC,Cultural and Related Services,Allocation of Management & Admin,COMMUNITY & COMMUNICATION,Supplies and Services,Grants and subscriptions,24/05/2018,6224279,7500,VENDOR,ACCESS INTELLIGENCE & MEDIA COMMUNICATIONS LTD,121427
Portsmouth City Council,PCC,Support Service / Transparency Costs Unallocated,Financial Services,FINANCE & IS,Supplies and Services,Communications and computing,08/05/2018,6220998,-454,VENDOR,ACCESS UK LTD,142780
Portsmouth City Council,PCC,Support Service / Transparency Costs Unallocated,Financial Services,FINANCE & IS,Supplies and Services,Communications and computing,08/05/2018,6220998,11804,VENDOR,ACCESS UK LTD,142780
Portsmouth City Council,PCC,Other,Suspense and Capital Schemes,PRED (Excl. Port & Solent LEP),Capital Charges,Capital Expenditure (WIP),16/05/2018,6222257,737.5,COMPANY,ACRE LANDSCAPES LIMITED,141532
Portsmouth City Council,PCC,Children's and Education Services,Children Looked After,CHILDREN SERVICES AND EDUCATION,Third Party Payments,Other establishments,04/05/2018,6220822,2132.48,VENDOR,ACTION FOR CHILDREN,108885
Portsmouth City Council,PCC,Children's and Education Services,Children Looked After,CHILDREN SERVICES AND EDUCATION,Third Party Payments,Other establishments,11/05/2018,6221694,761.6,VENDOR,ACTION FOR CHILDREN,108885
Portsmouth City Council,PCC,Children's and Education Services,Children Looked After,CHILDREN SERVICES AND EDUCATION,Third Party Payments,Other establishments,23/05/2018,6223766,6247.8,VENDOR,ACTION FOR CHILDREN,108885
Portsmouth City Council,PCC,Environmental and Regulatory Services,Regulatory Services,CULTURE & CITY DEVELOPMENT,Third Party Payments,Private contractors,02/05/2018,6220158,103,VENDOR,ADAMS MOREY LTD,100446
Portsmouth City Council,PCC,Environmental and Regulatory Services,Regulatory Services,CULTURE & CITY DEVELOPMENT,Third Party Payments,Private contractors,02/05/2018,6220158,397,VENDOR,ADAMS MOREY LTD,100446
Portsmouth City Council,PCC,Environmental and Regulatory Services,Regulatory Services,CULTURE & CITY DEVELOPMENT,Third Party Payments,Private contractors,03/05/2018,6220686,154.5,VENDOR,ADAMS MOREY LTD,100446
Portsmouth City Council,PCC,Environmental and Regulatory Services,Regulatory Services,CULTURE & CITY DEVELOPMENT,Third Party Payments,Private contractors,03/05/2018,6220686,1665,VENDOR,ADAMS MOREY LTD,100446
Portsmouth City Council,PCC,Highways and Transport Services,"Airports, Harbours and Toll Facilities",PORTSMOUTH INTERNATIONAL PORT,Supplies and Services,Miscellaneous expenses,17/05/2018,6222774,61.28,VENDOR,ADARE INTERNATIONAL LTD,138060
Portsmouth City Council,PCC,Highways and Transport Services,"Airports, Harbours and Toll Facilities",PORTSMOUTH INTERNATIONAL PORT,Supplies and Services,Miscellaneous expenses,17/05/2018,6222774,7880,VENDOR,ADARE INTERNATIONAL LTD,138060
Portsmouth City Council,PCC,Highways and Transport Services,"Airports, Harbours and Toll Facilities",PORTSMOUTH INTERNATIONAL PORT,Supplies and Services,Miscellaneous expenses,17/05/2018,6222774,100,VENDOR,ADARE INTERNATIONAL LTD,138060
Portsmouth City Council,PCC,Adult Social Care,Social Care Activities,ADULT SERVICES,Third Party Payments,Other establishments,17/05/2018,6222775,401.8,VENDOR,ADMIRAL CARE LTD,138025
Portsmouth City Council,PCC,Adult Social Care,Social Care Activities,ADULT SERVICES,Third Party Payments,Other establishments,17/05/2018,6222775,1904,VENDOR,ADMIRAL CARE LTD,138025
Portsmouth City Council,PCC,Adult Social Care,Social Care Activities,ADULT SERVICES,Third Party Payments,Other establishments,17/05/2018,6222775,702.6,VENDOR,ADMIRAL CARE LTD,138025
Portsmouth City Council,PCC,Adult Social Care,Physical Support Older People (85+),ADULT SERVICES,Third Party Payments,Other establishments,17/05/2018,6222775,360.64,VENDOR,ADMIRAL CARE LTD,138025
Portsmouth City Council,PCC,Adult Social Care,Physical Support Older People (85+),ADULT SERVICES,Third Party Payments,Other establishments,17/05/2018,6222775,299.6,VENDOR,ADMIRAL CARE LTD,138025
Portsmouth City Council,PCC,Adult Social Care,Physical Support Older People (85+),ADULT SERVICES,Third Party Payments,Other establishments,17/05/2018,6222775,1182.4,VENDOR,ADMIRAL CARE LTD,138025
Portsmouth City Council,PCC,Adult Social Care,Physical Support Older People (85+),ADULT SERVICES,Third Party Payments,Other establishments,17/05/2018,6222775,1316.7,VENDOR,ADMIRAL CARE LTD,138025
Portsmouth City Council,PCC,Adult Social Care,Mental Health Support Older People (65 - 74),ADULT SERVICES,Third Party Payments,Other establishments,18/05/2018,6222873,602.12,VENDOR,ADMIRAL CARE LTD,138025
Portsmouth City Council,PCC,Adult Social Care,Mental Health Support Older People (65 - 74),ADULT SERVICES,Third Party Payments,Other establishments,18/05/2018,6222873,592.28,VENDOR,ADMIRAL CARE LTD,138025
Portsmouth City Council,PCC,Adult Social Care,Mental Health Support Older People (65 - 74),ADULT SERVICES,Third Party Payments,Other establishments,17/05/2018,6222775,487.32,VENDOR,ADMIRAL CARE LTD,138025
Portsmouth City Council,PCC,Adult Social Care,Physical Support Older People (85+),ADULT SERVICES,Third Party Payments,Other establishments,17/05/2018,6222775,259.62,VENDOR,ADMIRAL CARE LTD,138025
Portsmouth City Council,PCC,Adult Social Care,Physical Support Older People (85+),ADULT SERVICES,Third Party Payments,Other establishments,17/05/2018,6222775,337.58,VENDOR,ADMIRAL CARE LTD,138025
Portsmouth City Council,PCC,Adult Social Care,Physical Support Older People (85+),ADULT SERVICES,Third Party Payments,Other establishments,17/05/2018,6222775,381.26,VENDOR,ADMIRAL CARE LTD,138025
Portsmouth City Council,PCC,Adult Social Care,Social Support - Support for Carer,ADULT SERVICES,Third Party Payments,Other establishments,17/05/2018,6222775,404.74,VENDOR,ADMIRAL CARE LTD,138025
Portsmouth City Council,PCC,Adult Social Care,Physical Support Adults (18 - 64),ADULT SERVICES,Third Party Payments,Other establishments,17/05/2018,6222775,1285.72,VENDOR,ADMIRAL CARE LTD,138025
Portsmouth City Council,PCC,Adult Social Care,Physical Support Older People (85+),ADULT SERVICES,Third Party Payments,Other establishments,17/05/2018,6222775,792,VENDOR,ADMIRAL CARE LTD,138025
Portsmouth City Council,PCC,Adult Social Care,Physical Support Older People (85+),ADULT SERVICES,Third Party Payments,Other establishments,17/05/2018,6222775,197.48,VENDOR,ADMIRAL CARE LTD,138025
Portsmouth City Council,PCC,Adult Social Care,Physical Support Older People (85+),ADULT SERVICES,Third Party Payments,Other establishments,18/05/2018,6222873,343.89,VENDOR,ADMIRAL CARE LTD,138025
Portsmouth City Council,PCC,Adult Social Care,Physical Support Older People (85+),ADULT SERVICES,Third Party Payments,Other establishments,18/05/2018,6222873,552.15,VENDOR,ADMIRAL CARE LTD,138025
Portsmouth City Council,PCC,Adult Social Care,Physical Support Older People (85+),ADULT SERVICES,Third Party Payments,Other establishments,18/05/2018,6222873,282.71,VENDOR,ADMIRAL CARE LTD,138025
Portsmouth City Council,PCC,Adult Social Care,Physical Support Older People (85+),ADULT SERVICES,Third Party Payments,Other establishments,18/05/2018,6222873,483.64,VENDOR,ADMIRAL CARE LTD,138025
Portsmouth City Council,PCC,Adult Social Care,Mental Health Support Older People (65 - 74),ADULT SERVICES,Third Party Payments,Other establishments,18/05/2018,6222873,62.88,VENDOR,ADMIRAL CARE LTD,138025
Portsmouth City Council,PCC,Adult Social Care,Physical Support Older People (85+),ADULT SERVICES,Third Party Payments,Other establishments,18/05/2018,6222873,165.06,VENDOR,ADMIRAL CARE LTD,138025
Portsmouth City Council,PCC,Adult Social Care,Mental Health Support Older People (65 - 74),ADULT SERVICES,Third Party Payments,Other establishments,16/05/2018,6222258,280.8,VENDOR,ADMIRAL CARE LTD,138025
Portsmouth City Council,PCC,Adult Social Care,Mental Health Support Older People (65 - 74),ADULT SERVICES,Third Party Payments,Other establishments,16/05/2018,6222258,99,VENDOR,ADMIRAL CARE LTD,138025
Portsmouth City Council,PCC,Adult Social Care,Mental Health Support Older People (65 - 74),ADULT SERVICES,Third Party Payments,Other establishments,16/05/2018,6222258,123.75,VENDOR,ADMIRAL CARE LTD,138025
Portsmouth City Council,PCC,Adult Social Care,Physical Support Older People (85+),ADULT SERVICES,Third Party Payments,Other establishments,14/05/2018,6221923,800,VENDOR,ADMIRAL CARE LTD,138025
Portsmouth City Council,PCC,Adult Social Care,Physical Support Older People (85+),ADULT SERVICES,Third Party Payments,Other establishments,14/05/2018,6221923,420,VENDOR,ADMIRAL CARE LTD,138025
Portsmouth City Council,PCC,Adult Social Care,Physical Support Older People (85+),ADULT SERVICES,Third Party Payments,Other establishments,25/05/2018,6224426,200,VENDOR,ADMIRAL CARE LTD,138025
Portsmouth City Council,PCC,Adult Social Care,Physical Support Older People (85+),ADULT SERVICES,Third Party Payments,Other establishments,25/05/2018,6224426,600,VENDOR,ADMIRAL CARE LTD,138025
Portsmouth City Council,PCC,Adult Social Care,Physical Support Older People (85+),ADULT SERVICES,Third Party Payments,Other establishments,18/05/2018,6222873,105,VENDOR,ADMIRAL CARE LTD,138025
Portsmouth City Council,PCC,Adult Social Care,Physical Support Older People (85+),ADULT SERVICES,Third Party Payments,Other establishments,18/05/2018,6222873,240,VENDOR,ADMIRAL CARE LTD,138025
Portsmouth City Council,PCC,Adult Social Care,Physical Support Older People (85+),ADULT SERVICES,Third Party Payments,Other establishments,18/05/2018,6222873,75,VENDOR,ADMIRAL CARE LTD,138025
Portsmouth City Council,PCC,Cultural and Related Services,Allocation of Management & Admin,CULTURE & CITY DEVELOPMENT,Premises-Related Expenditure,Fixtures and fittings,04/05/2018,6220824,1546.78,COMPANY,ADT FIRE AND SECURITY,100386
Portsmouth City Council,PCC,Cultural and Related Services,Culture and Heritage,CULTURE & CITY DEVELOPMENT,Premises-Related Expenditure,Fixtures and fittings,04/05/2018,6220823,1167.13,COMPANY,ADT FIRE AND SECURITY,100386
Portsmouth City Council,PCC,Cultural and Related Services,Culture and Heritage,CULTURE & CITY DEVELOPMENT,Premises-Related Expenditure,Fixtures and fittings,04/05/2018,6220823,330.44,COMPANY,ADT FIRE AND SECURITY,100386
Portsmouth City Council,PCC,Cultural and Related Services,Culture and Heritage,CULTURE & CITY DEVELOPMENT,Premises-Related Expenditure,Fixtures and fittings,04/05/2018,6220824,2209.21,COMPANY,ADT FIRE AND SECURITY,100386
Portsmouth City Council,PCC,Planning Services,Building Control,REGENERATION,Third Party Payments,Other agencies,08/05/2018,6220999,736,VENDOR,ADVANCE SCAFFOLDING LTD,141904
Portsmouth City Council,PCC,Adult Social Care,Learning Disability Support  Adults (18 - 64),ADULT SERVICES,Third Party Payments,Other establishments,18/05/2018,6222874,-174.74,VENDOR,AFFINITY TRUST LTD,135643
Portsmouth City Council,PCC,Adult Social Care,Learning Disability Support  Adults (18 - 64),ADULT SERVICES,Third Party Payments,Other establishments,21/05/2018,6223014,250.72,VENDOR,AFFINITY TRUST LTD,135643
Portsmouth City Council,PCC,Adult Social Care,Learning Disability Support  Adults (18 - 64),ADULT SERVICES,Third Party Payments,Other establishments,11/05/2018,6221695,2519.68,VENDOR,AFFINITY TRUST LTD,135643
Portsmouth City Council,PCC,Adult Social Care,Learning Disability Support  Adults (18 - 64),ADULT SERVICES,Third Party Payments,Other establishments,11/05/2018,6221695,1027.77,VENDOR,AFFINITY TRUST LTD,135643
Portsmouth City Council,PCC,Adult Social Care,Learning Disability Support  Adults (18 - 64),ADULT SERVICES,Third Party Payments,Other establishments,11/05/2018,6221695,2519.68,VENDOR,AFFINITY TRUST LTD,135643
Portsmouth City Council,PCC,Adult Social Care,Learning Disability Support  Adults (18 - 64),ADULT SERVICES,Third Party Payments,Other establishments,11/05/2018,6221695,1027.77,VENDOR,AFFINITY TRUST LTD,135643
Portsmouth City Council,PCC,Adult Social Care,Learning Disability Support  Adults (18 - 64),ADULT SERVICES,Third Party Payments,Other establishments,11/05/2018,6221695,7199.08,VENDOR,AFFINITY TRUST LTD,135643
Portsmouth City Council,PCC,Adult Social Care,Learning Disability Support  Adults (18 - 64),ADULT SERVICES,Third Party Payments,Other establishments,11/05/2018,6221695,2936.49,VENDOR,AFFINITY TRUST LTD,135643
Portsmouth City Council,PCC,Adult Social Care,Learning Disability Support  Adults (18 - 64),ADULT SERVICES,Third Party Payments,Other establishments,11/05/2018,6221695,2519.68,VENDOR,AFFINITY TRUST LTD,135643
Portsmouth City Council,PCC,Adult Social Care,Learning Disability Support  Adults (18 - 64),ADULT SERVICES,Third Party Payments,Other establishments,11/05/2018,6221695,1027.77,VENDOR,AFFINITY TRUST LTD,135643
Portsmouth City Council,PCC,Adult Social Care,Learning Disability Support  Adults (18 - 64),ADULT SERVICES,Third Party Payments,Other establishments,18/05/2018,6222874,2519.68,VENDOR,AFFINITY TRUST LTD,135643
Portsmouth City Council,PCC,Adult Social Care,Learning Disability Support  Adults (18 - 64),ADULT SERVICES,Third Party Payments,Other establishments,18/05/2018,6222874,1027.77,VENDOR,AFFINITY TRUST LTD,135643
Portsmouth City Council,PCC,Adult Social Care,Learning Disability Support  Adults (18 - 64),ADULT SERVICES,Third Party Payments,Other establishments,11/05/2018,6221695,2519.68,VENDOR,AFFINITY TRUST LTD,135643
Portsmouth City Council,PCC,Adult Social Care,Learning Disability Support  Adults (18 - 64),ADULT SERVICES,Third Party Payments,Other establishments,11/05/2018,6221695,1027.77,VENDOR,AFFINITY TRUST LTD,135643
Portsmouth City Council,PCC,Adult Social Care,Learning Disability Support  Adults (18 - 64),ADULT SERVICES,Third Party Payments,Other establishments,11/05/2018,6221695,2519.68,VENDOR,AFFINITY TRUST LTD,135643
Portsmouth City Council,PCC,Adult Social Care,Learning Disability Support  Adults (18 - 64),ADULT SERVICES,Third Party Payments,Other establishments,11/05/2018,6221695,1027.77,VENDOR,AFFINITY TRUST LTD,135643
Portsmouth City Council,PCC,Adult Social Care,Learning Disability Support  Adults (18 - 64),ADULT SERVICES,Third Party Payments,Other establishments,11/05/2018,6221695,2519.68,VENDOR,AFFINITY TRUST LTD,135643
Portsmouth City Council,PCC,Adult Social Care,Learning Disability Support  Adults (18 - 64),ADULT SERVICES,Third Party Payments,Other establishments,11/05/2018,6221695,1027.77,VENDOR,AFFINITY TRUST LTD,135643
Portsmouth City Council,PCC,Adult Social Care,Learning Disability Support  Adults (18 - 64),ADULT SERVICES,Third Party Payments,Other establishments,18/05/2018,6222874,2519.68,VENDOR,AFFINITY TRUST LTD,135643
Portsmouth City Council,PCC,Adult Social Care,Learning Disability Support  Adults (18 - 64),ADULT SERVICES,Third Party Payments,Other establishments,18/05/2018,6222874,1027.77,VENDOR,AFFINITY TRUST LTD,135643
Portsmouth City Council,PCC,Adult Social Care,Learning Disability Support  Adults (18 - 64),ADULT SERVICES,Third Party Payments,Other establishments,11/05/2018,6221695,2519.68,VENDOR,AFFINITY TRUST LTD,135643
Portsmouth City Council,PCC,Adult Social Care,Learning Disability Support  Adults (18 - 64),ADULT SERVICES,Third Party Payments,Other establishments,11/05/2018,6221695,1027.77,VENDOR,AFFINITY TRUST LTD,135643
Portsmouth City Council,PCC,Adult Social Care,Learning Disability Support  Adults (18 - 64),ADULT SERVICES,Third Party Payments,Other establishments,11/05/2018,6221695,2519.68,VENDOR,AFFINITY TRUST LTD,135643
Portsmouth City Council,PCC,Adult Social Care,Learning Disability Support  Adults (18 - 64),ADULT SERVICES,Third Party Payments,Other establishments,11/05/2018,6221695,1027.77,VENDOR,AFFINITY TRUST LTD,135643
Portsmouth City Council,PCC,Adult Social Care,Learning Disability Support  Adults (18 - 64),ADULT SERVICES,Third Party Payments,Other establishments,11/05/2018,6221695,2519.68,VENDOR,AFFINITY TRUST LTD,135643
Portsmouth City Council,PCC,Adult Social Care,Learning Disability Support  Adults (18 - 64),ADULT SERVICES,Third Party Payments,Other establishments,11/05/2018,6221695,1027.77,VENDOR,AFFINITY TRUST LTD,135643
Portsmouth City Council,PCC,Adult Social Care,Learning Disability Support  Adults (18 - 64),ADULT SERVICES,Third Party Payments,Other establishments,21/05/2018,6223014,3547.45,VENDOR,AFFINITY TRUST LTD,135643
Portsmouth City Council,PCC,Adult Social Care,Learning Disability Support  Adults (18 - 64),ADULT SERVICES,Third Party Payments,Other establishments,23/05/2018,6223769,1673.11,VENDOR,AFFINITY TRUST LTD,135643
Portsmouth City Council,PCC,Adult Social Care,Learning Disability Support  Adults (18 - 64),ADULT SERVICES,Third Party Payments,Other establishments,23/05/2018,6223769,6257.02,VENDOR,AFFINITY TRUST LTD,135643
Portsmouth City Council,PCC,Adult Social Care,Learning Disability Support  Adults (18 - 64),ADULT SERVICES,Third Party Payments,Other establishments,23/05/2018,6223769,1673.11,VENDOR,AFFINITY TRUST LTD,135643
Portsmouth City Council,PCC,Adult Social Care,Learning Disability Support  Adults (18 - 64),ADULT SERVICES,Third Party Payments,Other establishments,23/05/2018,6223769,6257.02,VENDOR,AFFINITY TRUST LTD,135643
Portsmouth City Council,PCC,Adult Social Care,Learning Disability Support  Adults (18 - 64),ADULT SERVICES,Third Party Payments,Other establishments,21/05/2018,6223014,5364.92,VENDOR,AFFINITY TRUST LTD,135643
Portsmouth City Council,PCC,Adult Social Care,Learning Disability Support  Adults (18 - 64),ADULT SERVICES,Third Party Payments,Other establishments,23/05/2018,6223769,1226.22,VENDOR,AFFINITY TRUST LTD,135643
Portsmouth City Council,PCC,Adult Social Care,Learning Disability Support  Adults (18 - 64),ADULT SERVICES,Third Party Payments,Other establishments,23/05/2018,6223769,4585.79,VENDOR,AFFINITY TRUST LTD,135643
Portsmouth City Council,PCC,Adult Social Care,Learning Disability Support  Adults (18 - 64),ADULT SERVICES,Third Party Payments,Other establishments,23/05/2018,6223769,1577.37,VENDOR,AFFINITY TRUST LTD,135643
Portsmouth City Council,PCC,Adult Social Care,Learning Disability Support  Adults (18 - 64),ADULT SERVICES,Third Party Payments,Other establishments,23/05/2018,6223769,5899,VENDOR,AFFINITY TRUST LTD,135643
Portsmouth City Council,PCC,Adult Social Care,Learning Disability Support  Adults (18 - 64),ADULT SERVICES,Third Party Payments,Other establishments,23/05/2018,6223769,1328.64,VENDOR,AFFINITY TRUST LTD,135643
Portsmouth City Council,PCC,Adult Social Care,Learning Disability Support  Adults (18 - 64),ADULT SERVICES,Third Party Payments,Other establishments,23/05/2018,6223769,4968.81,VENDOR,AFFINITY TRUST LTD,135643
Portsmouth City Council,PCC,Adult Social Care,Learning Disability Support  Adults (18 - 64),ADULT SERVICES,Third Party Payments,Other establishments,21/05/2018,6223014,4459.72,VENDOR,AFFINITY TRUST LTD,135643
Portsmouth City Council,PCC,Adult Social Care,Learning Disability Support  Adults (18 - 64),ADULT SERVICES,Third Party Payments,Other establishments,21/05/2018,6223014,-72.52,VENDOR,AFFINITY TRUST LTD,135643
Portsmouth City Council,PCC,Adult Social Care,Physical Support Older People (85+),ADULT SERVICES,Third Party Payments,Other establishments,08/05/2018,6221000,54.03,VENDOR,AGINCARE UK,134367
Portsmouth City Council,PCC,Adult Social Care,Physical Support Older People (85+),ADULT SERVICES,Third Party Payments,Other establishments,08/05/2018,6221000,165.24,VENDOR,AGINCARE UK,134367
Portsmouth City Council,PCC,Adult Social Care,Physical Support Older People (85+),ADULT SERVICES,Third Party Payments,Other establishments,08/05/2018,6221000,873.6,VENDOR,AGINCARE UK,134367
Portsmouth City Council,PCC,Adult Social Care,Support with Memory and Cognition Older People (85+),ADULT SERVICES,Third Party Payments,Other establishments,08/05/2018,6221000,197.8,VENDOR,AGINCARE UK,134367
Portsmouth City Council,PCC,Adult Social Care,Support with Memory and Cognition Older People (85+),ADULT SERVICES,Third Party Payments,Other establishments,08/05/2018,6221000,1552.2,VENDOR,AGINCARE UK,134367
Portsmouth City Council,PCC,Adult Social Care,Physical Support Older People (85+),ADULT SERVICES,Third Party Payments,Other establishments,10/05/2018,6221564,1687.27,VENDOR,AGINCARE UK,134367
Portsmouth City Council,PCC,Adult Social Care,Support with Memory and Cognition Older People (85+),ADULT SERVICES,Third Party Payments,Other establishments,10/05/2018,6221564,125,VENDOR,AGINCARE UK,134367
Portsmouth City Council,PCC,Adult Social Care,Physical Support Older People (85+),ADULT SERVICES,Third Party Payments,Other establishments,23/05/2018,6223770,1817.06,VENDOR,AGINCARE UK,134367
Portsmouth City Council,PCC,Housing Services,Housing Benefits Administration,COMMUNITY & COMMUNICATION,Supplies and Services,Services,30/05/2018,6224843,850,VENDOR,AIREY CONSULTANCY SERVICES LTD,136928
Portsmouth City Council,PCC,Adult Social Care,Learning Disability Support  Adults (18 - 64),ADULT SERVICES,Third Party Payments,Other establishments,11/05/2018,6221696,22831.64,VENDOR,AITCH CARE HOMES (LONDON) LIMITED,125606
Portsmouth City Council,PCC,Adult Social Care,Learning Disability Support  Adults (18 - 64),ADULT SERVICES,Third Party Payments,Other establishments,22/05/2018,6223160,6588.74,VENDOR,ALBANY FARM CARE (HAMPSHIRE) LTD,140215
Portsmouth City Council,PCC,Support Service / Transparency Costs Unallocated,Information Services,FINANCE & IS,Supplies and Services,Services,11/05/2018,6221697,1000,VENDOR,ALEMBA LTD,143215
Portsmouth City Council,PCC,Children's and Education Services,Other Children and Family Services,CHILDREN SERVICES AND EDUCATION,Supplies and Services,Services,04/05/2018,6220826,794,VENDOR,ALERE TOXICOLOGY PLC,121708
Portsmouth City Council,PCC,Children's and Education Services,Other Children and Family Services,CHILDREN SERVICES AND EDUCATION,Supplies and Services,Services,04/05/2018,6220826,95,VENDOR,ALERE TOXICOLOGY PLC,121708
Portsmouth City Council,PCC,Children's and Education Services,Other Children and Family Services,CHILDREN SERVICES AND EDUCATION,Supplies and Services,Services,04/05/2018,6220826,23.75,VENDOR,ALERE TOXICOLOGY PLC,121708
Portsmouth City Council,PCC,Children's and Education Services,Other Children and Family Services,CHILDREN SERVICES AND EDUCATION,Supplies and Services,Services,24/05/2018,6224281,361.99,VENDOR,ALERE TOXICOLOGY PLC,121708
Portsmouth City Council,PCC,Children's and Education Services,Other Children and Family Services,CHILDREN SERVICES AND EDUCATION,Supplies and Services,Services,24/05/2018,6224281,570.01,VENDOR,ALERE TOXICOLOGY PLC,121708
Portsmouth City Council,PCC,Children's and Education Services,Other Children and Family Services,CHILDREN SERVICES AND EDUCATION,Supplies and Services,Services,24/05/2018,6224281,194.75,VENDOR,ALERE TOXICOLOGY PLC,121708
Portsmouth City Council,PCC,Environmental and Regulatory Services,Regulatory Services,CULTURE & CITY DEVELOPMENT,Supplies and Services,Services,25/05/2018,6224428,38,VENDOR,ALERE TOXICOLOGY PLC,121708
Portsmouth City Council,PCC,Environmental and Regulatory Services,Regulatory Services,CULTURE & CITY DEVELOPMENT,Supplies and Services,Services,25/05/2018,6224428,570,VENDOR,ALERE TOXICOLOGY PLC,121708
Portsmouth City Council,PCC,Adult Social Care,Commissioning & service delivery,ADULT SERVICES,Employees,Direct employee expenses,14/05/2018,6221925,550,VENDOR,ALIUM CARE TRAINING,143457
Portsmouth City Council,PCC,Adult Social Care,Commissioning & service delivery,ADULT SERVICES,Employees,Direct employee expenses,03/05/2018,6220688,1215.2,VENDOR,ALIUM CARE TRAINING,143457
Portsmouth City Council,PCC,Adult Social Care,Commissioning & service delivery,ADULT SERVICES,Employees,Direct employee expenses,14/05/2018,6221925,1830.9,VENDOR,ALIUM CARE TRAINING,143457
Portsmouth City Council,PCC,Adult Social Care,Commissioning & service delivery,ADULT SERVICES,Employees,Direct employee expenses,29/05/2018,6224709,2441.2,VENDOR,ALIUM CARE TRAINING,143457
Portsmouth City Council,PCC,Adult Social Care,Learning Disability Support  Adults (18 - 64),ADULT SERVICES,Third Party Payments,Other establishments,11/05/2018,6221699,1209,VENDOR,ALLIED CARE LTD,123734
Portsmouth City Council,PCC,Adult Social Care,Learning Disability Support  Adults (18 - 64),ADULT SERVICES,Third Party Payments,Other establishments,11/05/2018,6221700,4192.13,VENDOR,ALLIED CARE LTD,123734
Portsmouth City Council,PCC,Adult Social Care,Learning Disability Support  Adults (18 - 64),ADULT SERVICES,Third Party Payments,Other establishments,11/05/2018,6221698,4282.03,VENDOR,ALLIED CARE LTD,123734
Portsmouth City Council,PCC,Highways and Transport Services,"Transport Planning, Policy and Strategy",REGENERATION,Transport-Related Expenditure,Direct transport costs,18/05/2018,6222877,17257.9,VENDOR,ALLSTAR BUSINESS SOLUTIONS LTD,135770
Portsmouth City Council,PCC,Highways and Transport Services,"Airports, Harbours and Toll Facilities",PORTSMOUTH INTERNATIONAL PORT,Third Party Payments,Private contractors,24/05/2018,6224283,-16.66,VENDOR,ALPHA BIOLABORATORIES CORPORATE LIMITED,143785
Portsmouth City Council,PCC,Highways and Transport Services,"Airports, Harbours and Toll Facilities",PORTSMOUTH INTERNATIONAL PORT,Third Party Payments,Private contractors,24/05/2018,6224283,-16.67,VENDOR,ALPHA BIOLABORATORIES CORPORATE LIMITED,143785
Portsmouth City Council,PCC,Highways and Transport Services,"Airports, Harbours and Toll Facilities",PORTSMOUTH INTERNATIONAL PORT,Third Party Payments,Private contractors,24/05/2018,6224283,-16.67,VENDOR,ALPHA BIOLABORATORIES CORPORATE LIMITED,143785
Portsmouth City Council,PCC,Highways and Transport Services,"Airports, Harbours and Toll Facilities",PORTSMOUTH INTERNATIONAL PORT,Third Party Payments,Private contractors,24/05/2018,6224283,-83.34,VENDOR,ALPHA BIOLABORATORIES CORPORATE LIMITED,143785
Portsmouth City Council,PCC,Highways and Transport Services,"Airports, Harbours and Toll Facilities",PORTSMOUTH INTERNATIONAL PORT,Third Party Payments,Private contractors,24/05/2018,6224283,-83.33,VENDOR,ALPHA BIOLABORATORIES CORPORATE LIMITED,143785
Portsmouth City Council,PCC,Highways and Transport Services,"Airports, Harbours and Toll Facilities",PORTSMOUTH INTERNATIONAL PORT,Third Party Payments,Private contractors,24/05/2018,6224283,-83.33,VENDOR,ALPHA BIOLABORATORIES CORPORATE LIMITED,143785
Portsmouth City Council,PCC,Highways and Transport Services,"Airports, Harbours and Toll Facilities",PORTSMOUTH INTERNATIONAL PORT,Third Party Payments,Private contractors,24/05/2018,6224283,165,VENDOR,ALPHA BIOLABORATORIES CORPORATE LIMITED,143785
Portsmouth City Council,PCC,Highways and Transport Services,"Airports, Harbours and Toll Facilities",PORTSMOUTH INTERNATIONAL PORT,Third Party Payments,Private contractors,24/05/2018,6224283,165,VENDOR,ALPHA BIOLABORATORIES CORPORATE LIMITED,143785
Portsmouth City Council,PCC,Highways and Transport Services,"Airports, Harbours and Toll Facilities",PORTSMOUTH INTERNATIONAL PORT,Third Party Payments,Private contractors,24/05/2018,6224283,165,VENDOR,ALPHA BIOLABORATORIES CORPORATE LIMITED,143785
Portsmouth City Council,PCC,Highways and Transport Services,"Airports, Harbours and Toll Facilities",PORTSMOUTH INTERNATIONAL PORT,Third Party Payments,Private contractors,24/05/2018,6224283,200,VENDOR,ALPHA BIOLABORATORIES CORPORATE LIMITED,143785
Portsmouth City Council,PCC,Highways and Transport Services,"Airports, Harbours and Toll Facilities",PORTSMOUTH INTERNATIONAL PORT,Third Party Payments,Private contractors,24/05/2018,6224283,200,VENDOR,ALPHA BIOLABORATORIES CORPORATE LIMITED,143785
Portsmouth City Council,PCC,Highways and Transport Services,"Airports, Harbours and Toll Facilities",PORTSMOUTH INTERNATIONAL PORT,Third Party Payments,Private contractors,24/05/2018,6224283,200,VENDOR,ALPHA BIOLABORATORIES CORPORATE LIMITED,143785
Portsmouth City Council,PCC,Highways and Transport Services,"Airports, Harbours and Toll Facilities",PORTSMOUTH INTERNATIONAL PORT,Third Party Payments,Private contractors,24/05/2018,6224283,33,VENDOR,ALPHA BIOLABORATORIES CORPORATE LIMITED,143785
Portsmouth City Council,PCC,Highways and Transport Services,"Airports, Harbours and Toll Facilities",PORTSMOUTH INTERNATIONAL PORT,Third Party Payments,Private contractors,24/05/2018,6224283,33,VENDOR,ALPHA BIOLABORATORIES CORPORATE LIMITED,143785
Portsmouth City Council,PCC,Highways and Transport Services,"Airports, Harbours and Toll Facilities",PORTSMOUTH INTERNATIONAL PORT,Third Party Payments,Private contractors,24/05/2018,6224283,33,VENDOR,ALPHA BIOLABORATORIES CORPORATE LIMITED,143785
Portsmouth City Council,PCC,Highways and Transport Services,Parking Services,REGENERATION,Transport-Related Expenditure,Contract hire and operating leases,04/05/2018,6220827,771.59,VENDOR,ALPHABET(GB) LIMITED,138557
Portsmouth City Council,PCC,Adult Social Care,Physical Support Older People (85+),ADULT SERVICES,Third Party Payments,Other establishments,11/05/2018,6221702,-12923.1,VENDOR,ALTON MANOR CARE HOME,130289
Portsmouth City Council,PCC,Adult Social Care,Support with Memory and Cognition Older People (85+),ADULT SERVICES,Third Party Payments,Other establishments,11/05/2018,6221702,47209.35,VENDOR,ALTON MANOR CARE HOME,130289
Portsmouth City Council,PCC,Adult Social Care,Mental Health Support Adults (18 - 64),ADULT SERVICES,Third Party Payments,Other establishments,11/05/2018,6221702,2095.29,VENDOR,ALTON MANOR CARE HOME,130289
Portsmouth City Council,PCC,Planning Services,Business support,REGENERATION,Supplies and Services,"Equipment, furniture and materials",29/05/2018,6224710,491.9,VENDOR,AMARI PLASTICS PLC,108116
Portsmouth City Council,PCC,Planning Services,Business support,REGENERATION,Supplies and Services,"Printing, stationery and general office expenses",29/05/2018,6224710,20,VENDOR,AMARI PLASTICS PLC,108116
Portsmouth City Council,PCC,Support Service / Transparency Costs Unallocated,AMS,PROPERTY & HOUSING,Supplies and Services,Communications and computing,31/05/2018,6225383,3284.37,VENDOR,AMTECH GROUP LIMITED,128734
Portsmouth City Council,PCC,Housing Revenue Account,Repairs and Maintenance,PROPERTY & HOUSING,Premises-Related Expenditure,"Repairs, alterations and maintenance of buildings",14/05/2018,6221927,2248,COMPANY,ANDREWS SYKES GROUP PLC,104922
Portsmouth City Council,PCC,Adult Social Care,Physical Support Adults (18 - 64),ADULT SERVICES,Third Party Payments,Other establishments,14/05/2018,6221929,807.6,VENDOR,ANGEL CARE,117208
Portsmouth City Council,PCC,Costs below Net Cost of Services,Trading,FINANCE & IS,Premises-Related Expenditure,Premises insurance,04/05/2018,6220830,-2792.09,VENDOR,AON UK LIMITED,138556
Portsmouth City Council,PCC,Costs below Net Cost of Services,Trading,FINANCE & IS,Premises-Related Expenditure,Premises insurance,04/05/2018,6220830,-942.02,VENDOR,AON UK LIMITED,138556
Portsmouth City Council,PCC,Costs below Net Cost of Services,Trading,FINANCE & IS,Premises-Related Expenditure,Premises insurance,04/05/2018,6220830,-999.67,VENDOR,AON UK LIMITED,138556
Portsmouth City Council,PCC,Central Services,Coroners' Court Services,CULTURE & CITY DEVELOPMENT,Supplies and Services,Services,03/05/2018,6220689,600,VENDOR,APC (PATHOLOGY) LIMITED,140267
Portsmouth City Council,PCC,Adult Social Care,Information and Early Intervention,ADULT SERVICES,Third Party Payments,Other establishments,01/05/2018,6220026,20850.5,VENDOR,APETITO LTD,100127
Portsmouth City Council,PCC,Adult Social Care,Information and Early Intervention,ADULT SERVICES,Third Party Payments,Other establishments,01/05/2018,6220026,1709.5,VENDOR,APETITO LTD,100127
Portsmouth City Council,PCC,Adult Social Care,Information and Early Intervention,ADULT SERVICES,Income,Customer and client receipts,01/05/2018,6220026,-20850.5,VENDOR,APETITO LTD,100127
Portsmouth City Council,PCC,Adult Social Care,Information and Early Intervention,ADULT SERVICES,Income,Customer and client receipts,01/05/2018,6220026,-1709.5,VENDOR,APETITO LTD,100127
Portsmouth City Council,PCC,Housing Revenue Account,Special Services,PROPERTY & HOUSING,Supplies and Services,Catering,01/05/2018,6220026,10.49,VENDOR,APETITO LTD,100127
Portsmouth City Council,PCC,Housing Revenue Account,Special Services,PROPERTY & HOUSING,Supplies and Services,Catering,01/05/2018,6220026,22.85,VENDOR,APETITO LTD,100127
Portsmouth City Council,PCC,Housing Revenue Account,Special Services,PROPERTY & HOUSING,Supplies and Services,Catering,01/05/2018,6220026,30.02,VENDOR,APETITO LTD,100127
Portsmouth City Council,PCC,Housing Revenue Account,Special Services,PROPERTY & HOUSING,Supplies and Services,Catering,01/05/2018,6220026,27.73,VENDOR,APETITO LTD,100127
Portsmouth City Council,PCC,Housing Revenue Account,Special Services,PROPERTY & HOUSING,Supplies and Services,Catering,01/05/2018,6220026,31.33,VENDOR,APETITO LTD,100127
Portsmouth City Council,PCC,Housing Revenue Account,Special Services,PROPERTY & HOUSING,Supplies and Services,Catering,01/05/2018,6220026,33.27,VENDOR,APETITO LTD,100127
Portsmouth City Council,PCC,Housing Revenue Account,Special Services,PROPERTY & HOUSING,Supplies and Services,Catering,01/05/2018,6220026,11.52,VENDOR,APETITO LTD,100127
Portsmouth City Council,PCC,Housing Revenue Account,Special Services,PROPERTY & HOUSING,Supplies and Services,Catering,01/05/2018,6220026,10.15,VENDOR,APETITO LTD,100127
Portsmouth City Council,PCC,Housing Revenue Account,Special Services,PROPERTY & HOUSING,Supplies and Services,Catering,01/05/2018,6220026,29.52,VENDOR,APETITO LTD,100127
Portsmouth City Council,PCC,Housing Revenue Account,Special Services,PROPERTY & HOUSING,Supplies and Services,Catering,01/05/2018,6220026,29.7,VENDOR,APETITO LTD,100127
Portsmouth City Council,PCC,Housing Revenue Account,Special Services,PROPERTY & HOUSING,Supplies and Services,Catering,01/05/2018,6220026,21.8,VENDOR,APETITO LTD,100127
Portsmouth City Council,PCC,Housing Revenue Account,Special Services,PROPERTY & HOUSING,Supplies and Services,Catering,01/05/2018,6220026,8.17,VENDOR,APETITO LTD,100127
Portsmouth City Council,PCC,Housing Revenue Account,Special Services,PROPERTY & HOUSING,Supplies and Services,Catering,01/05/2018,6220026,24.48,VENDOR,APETITO LTD,100127
Portsmouth City Council,PCC,Housing Revenue Account,Special Services,PROPERTY & HOUSING,Supplies and Services,Catering,01/05/2018,6220026,24.24,VENDOR,APETITO LTD,100127
Portsmouth City Council,PCC,Housing Revenue Account,Special Services,PROPERTY & HOUSING,Supplies and Services,Catering,01/05/2018,6220026,16.08,VENDOR,APETITO LTD,100127
Portsmouth City Council,PCC,Housing Revenue Account,Special Services,PROPERTY & HOUSING,Supplies and Services,Catering,01/05/2018,6220026,8.77,VENDOR,APETITO LTD,100127
Portsmouth City Council,PCC,Housing Revenue Account,Special Services,PROPERTY & HOUSING,Supplies and Services,Catering,01/05/2018,6220026,4.95,VENDOR,APETITO LTD,100127
Portsmouth City Council,PCC,Housing Revenue Account,Special Services,PROPERTY & HOUSING,Supplies and Services,Catering,01/05/2018,6220026,9.96,VENDOR,APETITO LTD,100127
Portsmouth City Council,PCC,Housing Revenue Account,Special Services,PROPERTY & HOUSING,Supplies and Services,Catering,01/05/2018,6220026,28.2,VENDOR,APETITO LTD,100127
Portsmouth City Council,PCC,Housing Revenue Account,Special Services,PROPERTY & HOUSING,Supplies and Services,Catering,01/05/2018,6220026,33.27,VENDOR,APETITO LTD,100127
Portsmouth City Council,PCC,Housing Revenue Account,Special Services,PROPERTY & HOUSING,Supplies and Services,Catering,01/05/2018,6220026,26.4,VENDOR,APETITO LTD,100127
Portsmouth City Council,PCC,Housing Revenue Account,Special Services,PROPERTY & HOUSING,Supplies and Services,Catering,01/05/2018,6220026,27.6,VENDOR,APETITO LTD,100127
Portsmouth City Council,PCC,Housing Revenue Account,Special Services,PROPERTY & HOUSING,Supplies and Services,Catering,01/05/2018,6220026,27.73,VENDOR,APETITO LTD,100127
Portsmouth City Council,PCC,Housing Revenue Account,Special Services,PROPERTY & HOUSING,Supplies and Services,Catering,01/05/2018,6220026,8.77,VENDOR,APETITO LTD,100127
Portsmouth City Council,PCC,Housing Revenue Account,Special Services,PROPERTY & HOUSING,Supplies and Services,Catering,01/05/2018,6220026,27.14,VENDOR,APETITO LTD,100127
Portsmouth City Council,PCC,Housing Revenue Account,Special Services,PROPERTY & HOUSING,Supplies and Services,Catering,01/05/2018,6220026,30.08,VENDOR,APETITO LTD,100127
Portsmouth City Council,PCC,Housing Revenue Account,Special Services,PROPERTY & HOUSING,Supplies and Services,Catering,01/05/2018,6220026,26.57,VENDOR,APETITO LTD,100127
Portsmouth City Council,PCC,Housing Revenue Account,Special Services,PROPERTY & HOUSING,Supplies and Services,Catering,01/05/2018,6220026,9.45,VENDOR,APETITO LTD,100127
Portsmouth City Council,PCC,Housing Revenue Account,Special Services,PROPERTY & HOUSING,Supplies and Services,Catering,01/05/2018,6220026,10.49,VENDOR,APETITO LTD,100127
Portsmouth City Council,PCC,Housing Revenue Account,Special Services,PROPERTY & HOUSING,Supplies and Services,Catering,01/05/2018,6220026,9.45,VENDOR,APETITO LTD,100127
Portsmouth City Council,PCC,Housing Revenue Account,Special Services,PROPERTY & HOUSING,Supplies and Services,Catering,01/05/2018,6220026,9.91,VENDOR,APETITO LTD,100127
Portsmouth City Council,PCC,Housing Revenue Account,Special Services,PROPERTY & HOUSING,Supplies and Services,Catering,01/05/2018,6220026,9.96,VENDOR,APETITO LTD,100127
Portsmouth City Council,PCC,Housing Revenue Account,Special Services,PROPERTY & HOUSING,Supplies and Services,Catering,01/05/2018,6220026,28.2,VENDOR,APETITO LTD,100127
Portsmouth City Council,PCC,Housing Revenue Account,Special Services,PROPERTY & HOUSING,Supplies and Services,Catering,01/05/2018,6220026,9.45,VENDOR,APETITO LTD,100127
Portsmouth City Council,PCC,Housing Revenue Account,Special Services,PROPERTY & HOUSING,Supplies and Services,Catering,01/05/2018,6220026,29.05,VENDOR,APETITO LTD,100127
Portsmouth City Council,PCC,Housing Revenue Account,Special Services,PROPERTY & HOUSING,Supplies and Services,Catering,01/05/2018,6220026,30.02,VENDOR,APETITO LTD,100127
Portsmouth City Council,PCC,Housing Revenue Account,Special Services,PROPERTY & HOUSING,Supplies and Services,Catering,01/05/2018,6220026,26.89,VENDOR,APETITO LTD,100127
Portsmouth City Council,PCC,Housing Revenue Account,Special Services,PROPERTY & HOUSING,Supplies and Services,Catering,01/05/2018,6220026,8.77,VENDOR,APETITO LTD,100127
Portsmouth City Council,PCC,Housing Revenue Account,Special Services,PROPERTY & HOUSING,Supplies and Services,Catering,01/05/2018,6220026,30.19,VENDOR,APETITO LTD,100127
Portsmouth City Council,PCC,Housing Revenue Account,Special Services,PROPERTY & HOUSING,Supplies and Services,Catering,01/05/2018,6220026,28.7,VENDOR,APETITO LTD,100127
Portsmouth City Council,PCC,Housing Revenue Account,Special Services,PROPERTY & HOUSING,Supplies and Services,Catering,01/05/2018,6220026,34.08,VENDOR,APETITO LTD,100127
Portsmouth City Council,PCC,Housing Revenue Account,Special Services,PROPERTY & HOUSING,Supplies and Services,Catering,01/05/2018,6220026,8.77,VENDOR,APETITO LTD,100127
Portsmouth City Council,PCC,Housing Revenue Account,Special Services,PROPERTY & HOUSING,Supplies and Services,Catering,01/05/2018,6220026,28.44,VENDOR,APETITO LTD,100127
Portsmouth City Council,PCC,Housing Revenue Account,Special Services,PROPERTY & HOUSING,Supplies and Services,Catering,01/05/2018,6220026,9.45,VENDOR,APETITO LTD,100127
Portsmouth City Council,PCC,Housing Revenue Account,Special Services,PROPERTY & HOUSING,Supplies and Services,Catering,01/05/2018,6220026,8.17,VENDOR,APETITO LTD,100127
Portsmouth City Council,PCC,Housing Revenue Account,Special Services,PROPERTY & HOUSING,Supplies and Services,Catering,01/05/2018,6220026,35.78,VENDOR,APETITO LTD,100127
Portsmouth City Council,PCC,Housing Revenue Account,Special Services,PROPERTY & HOUSING,Supplies and Services,Catering,01/05/2018,6220026,7.05,VENDOR,APETITO LTD,100127
Portsmouth City Council,PCC,Housing Revenue Account,Special Services,PROPERTY & HOUSING,Supplies and Services,Catering,01/05/2018,6220026,9.45,VENDOR,APETITO LTD,100127
Portsmouth City Council,PCC,Housing Revenue Account,Special Services,PROPERTY & HOUSING,Supplies and Services,Catering,01/05/2018,6220026,4.95,VENDOR,APETITO LTD,100127
Portsmouth City Council,PCC,Housing Revenue Account,Special Services,PROPERTY & HOUSING,Supplies and Services,Catering,01/05/2018,6220026,9.74,VENDOR,APETITO LTD,100127
Portsmouth City Council,PCC,Housing Revenue Account,Special Services,PROPERTY & HOUSING,Supplies and Services,Catering,01/05/2018,6220026,28.8,VENDOR,APETITO LTD,100127
Portsmouth City Council,PCC,Housing Revenue Account,Special Services,PROPERTY & HOUSING,Supplies and Services,Catering,01/05/2018,6220026,7.2,VENDOR,APETITO LTD,100127
Portsmouth City Council,PCC,Housing Revenue Account,Special Services,PROPERTY & HOUSING,Supplies and Services,Catering,01/05/2018,6220026,29.28,VENDOR,APETITO LTD,100127
Portsmouth City Council,PCC,Housing Revenue Account,Special Services,PROPERTY & HOUSING,Supplies and Services,Catering,01/05/2018,6220026,36.07,VENDOR,APETITO LTD,100127
Portsmouth City Council,PCC,Housing Revenue Account,Special Services,PROPERTY & HOUSING,Supplies and Services,Catering,01/05/2018,6220026,32.64,VENDOR,APETITO LTD,100127
Portsmouth City Council,PCC,Housing Revenue Account,Special Services,PROPERTY & HOUSING,Supplies and Services,Catering,01/05/2018,6220026,10.15,VENDOR,APETITO LTD,100127
Portsmouth City Council,PCC,Housing Revenue Account,Special Services,PROPERTY & HOUSING,Supplies and Services,Catering,01/05/2018,6220026,29.7,VENDOR,APETITO LTD,100127
Portsmouth City Council,PCC,Housing Revenue Account,Special Services,PROPERTY & HOUSING,Supplies and Services,Catering,01/05/2018,6220026,35.78,VENDOR,APETITO LTD,100127
Portsmouth City Council,PCC,Housing Revenue Account,Special Services,PROPERTY & HOUSING,Supplies and Services,Catering,01/05/2018,6220026,8.96,VENDOR,APETITO LTD,100127
Portsmouth City Council,PCC,Housing Revenue Account,Special Services,PROPERTY & HOUSING,Supplies and Services,Catering,01/05/2018,6220026,16.08,VENDOR,APETITO LTD,100127
Portsmouth City Council,PCC,Housing Revenue Account,Special Services,PROPERTY & HOUSING,Supplies and Services,Catering,01/05/2018,6220026,31.2,VENDOR,APETITO LTD,100127
Portsmouth City Council,PCC,Housing Revenue Account,Special Services,PROPERTY & HOUSING,Supplies and Services,Catering,01/05/2018,6220026,10.49,VENDOR,APETITO LTD,100127
Portsmouth City Council,PCC,Housing Revenue Account,Special Services,PROPERTY & HOUSING,Supplies and Services,Catering,01/05/2018,6220026,18.9,VENDOR,APETITO LTD,100127
Portsmouth City Council,PCC,Housing Revenue Account,Special Services,PROPERTY & HOUSING,Supplies and Services,Catering,01/05/2018,6220026,33.08,VENDOR,APETITO LTD,100127
Portsmouth City Council,PCC,Housing Revenue Account,Special Services,PROPERTY & HOUSING,Supplies and Services,Catering,01/05/2018,6220026,7.05,VENDOR,APETITO LTD,100127
Portsmouth City Council,PCC,Housing Revenue Account,Special Services,PROPERTY & HOUSING,Supplies and Services,Catering,01/05/2018,6220026,29.05,VENDOR,APETITO LTD,100127
Portsmouth City Council,PCC,Housing Revenue Account,Special Services,PROPERTY & HOUSING,Supplies and Services,Catering,01/05/2018,6220026,26.75,VENDOR,APETITO LTD,100127
Portsmouth City Council,PCC,Housing Revenue Account,Special Services,PROPERTY & HOUSING,Supplies and Services,Catering,01/05/2018,6220026,25.2,VENDOR,APETITO LTD,100127
Portsmouth City Council,PCC,Housing Revenue Account,Special Services,PROPERTY & HOUSING,Supplies and Services,Catering,01/05/2018,6220026,11.52,VENDOR,APETITO LTD,100127
Portsmouth City Council,PCC,Housing Revenue Account,Special Services,PROPERTY & HOUSING,Supplies and Services,Catering,01/05/2018,6220026,12.1,VENDOR,APETITO LTD,100127
Portsmouth City Council,PCC,Housing Revenue Account,Special Services,PROPERTY & HOUSING,Supplies and Services,Catering,01/05/2018,6220026,24.24,VENDOR,APETITO LTD,100127
Portsmouth City Council,PCC,Housing Revenue Account,Special Services,PROPERTY & HOUSING,Supplies and Services,Catering,01/05/2018,6220026,10.15,VENDOR,APETITO LTD,100127
Portsmouth City Council,PCC,Housing Revenue Account,Special Services,PROPERTY & HOUSING,Supplies and Services,Catering,01/05/2018,6220026,10.9,VENDOR,APETITO LTD,100127
Portsmouth City Council,PCC,Housing Revenue Account,Special Services,PROPERTY & HOUSING,Supplies and Services,Catering,01/05/2018,6220026,9.45,VENDOR,APETITO LTD,100127
Portsmouth City Council,PCC,Housing Revenue Account,Special Services,PROPERTY & HOUSING,Supplies and Services,Catering,01/05/2018,6220026,22.92,VENDOR,APETITO LTD,100127
Portsmouth City Council,PCC,Housing Revenue Account,Special Services,PROPERTY & HOUSING,Supplies and Services,Catering,01/05/2018,6220026,24.24,VENDOR,APETITO LTD,100127
Portsmouth City Council,PCC,Housing Revenue Account,Special Services,PROPERTY & HOUSING,Supplies and Services,Catering,01/05/2018,6220026,7.05,VENDOR,APETITO LTD,100127
Portsmouth City Council,PCC,Housing Revenue Account,Special Services,PROPERTY & HOUSING,Supplies and Services,Catering,01/05/2018,6220026,9.45,VENDOR,APETITO LTD,100127
Portsmouth City Council,PCC,Housing Revenue Account,Special Services,PROPERTY & HOUSING,Supplies and Services,Catering,04/05/2018,6220831,31.2,VENDOR,APETITO LTD,100127
Portsmouth City Council,PCC,Housing Revenue Account,Special Services,PROPERTY & HOUSING,Supplies and Services,Catering,04/05/2018,6220831,9.45,VENDOR,APETITO LTD,100127
Portsmouth City Council,PCC,Housing Revenue Account,Special Services,PROPERTY & HOUSING,Supplies and Services,Catering,04/05/2018,6220831,28.2,VENDOR,APETITO LTD,100127
Portsmouth City Council,PCC,Housing Revenue Account,Special Services,PROPERTY & HOUSING,Supplies and Services,Catering,04/05/2018,6220831,14.4,VENDOR,APETITO LTD,100127
Portsmouth City Council,PCC,Housing Revenue Account,Special Services,PROPERTY & HOUSING,Supplies and Services,Catering,04/05/2018,6220831,9.45,VENDOR,APETITO LTD,100127
Portsmouth City Council,PCC,Housing Revenue Account,Special Services,PROPERTY & HOUSING,Supplies and Services,Catering,04/05/2018,6220831,33.08,VENDOR,APETITO LTD,100127
Portsmouth City Council,PCC,Housing Revenue Account,Special Services,PROPERTY & HOUSING,Supplies and Services,Catering,04/05/2018,6220831,7.05,VENDOR,APETITO LTD,100127
Portsmouth City Council,PCC,Housing Revenue Account,Special Services,PROPERTY & HOUSING,Supplies and Services,Catering,04/05/2018,6220831,40.16,VENDOR,APETITO LTD,100127
Portsmouth City Council,PCC,Housing Revenue Account,Special Services,PROPERTY & HOUSING,Supplies and Services,Catering,04/05/2018,6220831,8.77,VENDOR,APETITO LTD,100127
Portsmouth City Council,PCC,Housing Revenue Account,Special Services,PROPERTY & HOUSING,Supplies and Services,Catering,04/05/2018,6220831,25.2,VENDOR,APETITO LTD,100127
Portsmouth City Council,PCC,Housing Revenue Account,Special Services,PROPERTY & HOUSING,Supplies and Services,Catering,04/05/2018,6220831,32.63,VENDOR,APETITO LTD,100127
Portsmouth City Council,PCC,Housing Revenue Account,Special Services,PROPERTY & HOUSING,Supplies and Services,Catering,04/05/2018,6220831,34.08,VENDOR,APETITO LTD,100127
Portsmouth City Council,PCC,Housing Revenue Account,Special Services,PROPERTY & HOUSING,Supplies and Services,Catering,04/05/2018,6220831,30.08,VENDOR,APETITO LTD,100127
Portsmouth City Council,PCC,Housing Revenue Account,Special Services,PROPERTY & HOUSING,Supplies and Services,Catering,04/05/2018,6220831,12.96,VENDOR,APETITO LTD,100127
Portsmouth City Council,PCC,Housing Revenue Account,Special Services,PROPERTY & HOUSING,Supplies and Services,Catering,04/05/2018,6220831,13.44,VENDOR,APETITO LTD,100127
Portsmouth City Council,PCC,Housing Revenue Account,Special Services,PROPERTY & HOUSING,Supplies and Services,Catering,04/05/2018,6220831,21.8,VENDOR,APETITO LTD,100127
Portsmouth City Council,PCC,Housing Revenue Account,Special Services,PROPERTY & HOUSING,Supplies and Services,Catering,04/05/2018,6220831,9.6,VENDOR,APETITO LTD,100127
Portsmouth City Council,PCC,Housing Revenue Account,Special Services,PROPERTY & HOUSING,Supplies and Services,Catering,04/05/2018,6220831,7.2,VENDOR,APETITO LTD,100127
Portsmouth City Council,PCC,Housing Revenue Account,Special Services,PROPERTY & HOUSING,Supplies and Services,Catering,04/05/2018,6220831,4.95,VENDOR,APETITO LTD,100127
Portsmouth City Council,PCC,Housing Revenue Account,Special Services,PROPERTY & HOUSING,Supplies and Services,Catering,04/05/2018,6220831,31.2,VENDOR,APETITO LTD,100127
Portsmouth City Council,PCC,Housing Revenue Account,Special Services,PROPERTY & HOUSING,Supplies and Services,Catering,04/05/2018,6220831,28.2,VENDOR,APETITO LTD,100127
Portsmouth City Council,PCC,Housing Revenue Account,Special Services,PROPERTY & HOUSING,Supplies and Services,Catering,04/05/2018,6220831,11.63,VENDOR,APETITO LTD,100127
Portsmouth City Council,PCC,Housing Revenue Account,Special Services,PROPERTY & HOUSING,Supplies and Services,Catering,04/05/2018,6220831,7.05,VENDOR,APETITO LTD,100127
Portsmouth City Council,PCC,Housing Revenue Account,Special Services,PROPERTY & HOUSING,Supplies and Services,Catering,04/05/2018,6220831,40.16,VENDOR,APETITO LTD,100127
Portsmouth City Council,PCC,Housing Revenue Account,Special Services,PROPERTY & HOUSING,Supplies and Services,Catering,04/05/2018,6220831,30.19,VENDOR,APETITO LTD,100127
Portsmouth City Council,PCC,Housing Revenue Account,Special Services,PROPERTY & HOUSING,Supplies and Services,Catering,04/05/2018,6220831,25.2,VENDOR,APETITO LTD,100127
Portsmouth City Council,PCC,Housing Revenue Account,Special Services,PROPERTY & HOUSING,Supplies and Services,Catering,04/05/2018,6220831,12.1,VENDOR,APETITO LTD,100127
Portsmouth City Council,PCC,Housing Revenue Account,Special Services,PROPERTY & HOUSING,Supplies and Services,Catering,04/05/2018,6220831,12.96,VENDOR,APETITO LTD,100127
Portsmouth City Council,PCC,Housing Revenue Account,Special Services,PROPERTY & HOUSING,Supplies and Services,Catering,04/05/2018,6220831,11.79,VENDOR,APETITO LTD,100127
Portsmouth City Council,PCC,Housing Revenue Account,Special Services,PROPERTY & HOUSING,Supplies and Services,Catering,04/05/2018,6220831,29.52,VENDOR,APETITO LTD,100127
Portsmouth City Council,PCC,Housing Revenue Account,Special Services,PROPERTY & HOUSING,Supplies and Services,Catering,04/05/2018,6220831,29.7,VENDOR,APETITO LTD,100127
Portsmouth City Council,PCC,Housing Revenue Account,Special Services,PROPERTY & HOUSING,Supplies and Services,Catering,04/05/2018,6220831,10.9,VENDOR,APETITO LTD,100127
Portsmouth City Council,PCC,Housing Revenue Account,Special Services,PROPERTY & HOUSING,Supplies and Services,Catering,04/05/2018,6220831,22.92,VENDOR,APETITO LTD,100127
Portsmouth City Council,PCC,Housing Revenue Account,Special Services,PROPERTY & HOUSING,Supplies and Services,Catering,04/05/2018,6220831,8.96,VENDOR,APETITO LTD,100127
Portsmouth City Council,PCC,Housing Revenue Account,Special Services,PROPERTY & HOUSING,Supplies and Services,Catering,04/05/2018,6220831,16.08,VENDOR,APETITO LTD,100127
Portsmouth City Council,PCC,Housing Revenue Account,Special Services,PROPERTY & HOUSING,Supplies and Services,Catering,04/05/2018,6220831,7.2,VENDOR,APETITO LTD,100127
Portsmouth City Council,PCC,Housing Revenue Account,Special Services,PROPERTY & HOUSING,Supplies and Services,Catering,04/05/2018,6220831,7.05,VENDOR,APETITO LTD,100127
Portsmouth City Council,PCC,Housing Revenue Account,Special Services,PROPERTY & HOUSING,Supplies and Services,Catering,04/05/2018,6220831,8.77,VENDOR,APETITO LTD,100127
Portsmouth City Council,PCC,Housing Revenue Account,Special Services,PROPERTY & HOUSING,Supplies and Services,Catering,04/05/2018,6220831,9,VENDOR,APETITO LTD,100127
Portsmouth City Council,PCC,Housing Revenue Account,Special Services,PROPERTY & HOUSING,Supplies and Services,Catering,04/05/2018,6220831,9.12,VENDOR,APETITO LTD,100127
Portsmouth City Council,PCC,Housing Revenue Account,Special Services,PROPERTY & HOUSING,Supplies and Services,Catering,04/05/2018,6220831,9.74,VENDOR,APETITO LTD,100127
Portsmouth City Council,PCC,Housing Revenue Account,Special Services,PROPERTY & HOUSING,Supplies and Services,Catering,04/05/2018,6220831,22.85,VENDOR,APETITO LTD,100127
Portsmouth City Council,PCC,Housing Revenue Account,Special Services,PROPERTY & HOUSING,Supplies and Services,Catering,04/05/2018,6220831,7.05,VENDOR,APETITO LTD,100127
Portsmouth City Council,PCC,Housing Revenue Account,Special Services,PROPERTY & HOUSING,Supplies and Services,Catering,04/05/2018,6220831,27.11,VENDOR,APETITO LTD,100127
Portsmouth City Council,PCC,Housing Revenue Account,Special Services,PROPERTY & HOUSING,Supplies and Services,Catering,04/05/2018,6220831,34.34,VENDOR,APETITO LTD,100127
Portsmouth City Council,PCC,Housing Revenue Account,Special Services,PROPERTY & HOUSING,Supplies and Services,Catering,04/05/2018,6220831,25.2,VENDOR,APETITO LTD,100127
Portsmouth City Council,PCC,Housing Revenue Account,Special Services,PROPERTY & HOUSING,Supplies and Services,Catering,04/05/2018,6220831,8.77,VENDOR,APETITO LTD,100127
Portsmouth City Council,PCC,Housing Revenue Account,Special Services,PROPERTY & HOUSING,Supplies and Services,Catering,04/05/2018,6220831,9.45,VENDOR,APETITO LTD,100127
Portsmouth City Council,PCC,Housing Revenue Account,Special Services,PROPERTY & HOUSING,Supplies and Services,Catering,04/05/2018,6220831,24.24,VENDOR,APETITO LTD,100127
Portsmouth City Council,PCC,Housing Revenue Account,Special Services,PROPERTY & HOUSING,Supplies and Services,Catering,04/05/2018,6220831,25.49,VENDOR,APETITO LTD,100127
Portsmouth City Council,PCC,Housing Revenue Account,Special Services,PROPERTY & HOUSING,Supplies and Services,Catering,04/05/2018,6220831,31.45,VENDOR,APETITO LTD,100127
Portsmouth City Council,PCC,Housing Revenue Account,Special Services,PROPERTY & HOUSING,Supplies and Services,Catering,04/05/2018,6220831,24.48,VENDOR,APETITO LTD,100127
Portsmouth City Council,PCC,Housing Revenue Account,Special Services,PROPERTY & HOUSING,Supplies and Services,Catering,04/05/2018,6220831,8.96,VENDOR,APETITO LTD,100127
Portsmouth City Council,PCC,Housing Revenue Account,Special Services,PROPERTY & HOUSING,Supplies and Services,Catering,04/05/2018,6220831,7.2,VENDOR,APETITO LTD,100127
Portsmouth City Council,PCC,Housing Revenue Account,Special Services,PROPERTY & HOUSING,Supplies and Services,Catering,04/05/2018,6220831,4.95,VENDOR,APETITO LTD,100127
Portsmouth City Council,PCC,Housing Revenue Account,Special Services,PROPERTY & HOUSING,Supplies and Services,Catering,04/05/2018,6220831,28.2,VENDOR,APETITO LTD,100127
Portsmouth City Council,PCC,Housing Revenue Account,Special Services,PROPERTY & HOUSING,Supplies and Services,Catering,04/05/2018,6220831,14.4,VENDOR,APETITO LTD,100127
Portsmouth City Council,PCC,Housing Revenue Account,Special Services,PROPERTY & HOUSING,Supplies and Services,Catering,04/05/2018,6220831,29.89,VENDOR,APETITO LTD,100127
Portsmouth City Council,PCC,Housing Revenue Account,Special Services,PROPERTY & HOUSING,Supplies and Services,Catering,04/05/2018,6220831,26.4,VENDOR,APETITO LTD,100127
Portsmouth City Council,PCC,Housing Revenue Account,Special Services,PROPERTY & HOUSING,Supplies and Services,Catering,04/05/2018,6220831,7.05,VENDOR,APETITO LTD,100127
Portsmouth City Council,PCC,Housing Revenue Account,Special Services,PROPERTY & HOUSING,Supplies and Services,Catering,04/05/2018,6220831,27.99,VENDOR,APETITO LTD,100127
Portsmouth City Council,PCC,Housing Revenue Account,Special Services,PROPERTY & HOUSING,Supplies and Services,Catering,04/05/2018,6220831,7.2,VENDOR,APETITO LTD,100127
Portsmouth City Council,PCC,Housing Revenue Account,Special Services,PROPERTY & HOUSING,Supplies and Services,Catering,04/05/2018,6220831,12.96,VENDOR,APETITO LTD,100127
Portsmouth City Council,PCC,Housing Revenue Account,Special Services,PROPERTY & HOUSING,Supplies and Services,Catering,04/05/2018,6220831,25.2,VENDOR,APETITO LTD,100127
Portsmouth City Council,PCC,Housing Revenue Account,Special Services,PROPERTY & HOUSING,Supplies and Services,Catering,04/05/2018,6220831,34.08,VENDOR,APETITO LTD,100127
Portsmouth City Council,PCC,Housing Revenue Account,Special Services,PROPERTY & HOUSING,Supplies and Services,Catering,04/05/2018,6220831,24.24,VENDOR,APETITO LTD,100127
Portsmouth City Council,PCC,Housing Revenue Account,Special Services,PROPERTY & HOUSING,Supplies and Services,Catering,04/05/2018,6220831,28.44,VENDOR,APETITO LTD,100127
Portsmouth City Council,PCC,Housing Revenue Account,Special Services,PROPERTY & HOUSING,Supplies and Services,Catering,04/05/2018,6220831,13.23,VENDOR,APETITO LTD,100127
Portsmouth City Council,PCC,Housing Revenue Account,Special Services,PROPERTY & HOUSING,Supplies and Services,Catering,04/05/2018,6220831,13.44,VENDOR,APETITO LTD,100127
Portsmouth City Council,PCC,Housing Revenue Account,Special Services,PROPERTY & HOUSING,Supplies and Services,Catering,04/05/2018,6220831,24.84,VENDOR,APETITO LTD,100127
Portsmouth City Council,PCC,Housing Revenue Account,Special Services,PROPERTY & HOUSING,Supplies and Services,Catering,04/05/2018,6220831,9.6,VENDOR,APETITO LTD,100127
Portsmouth City Council,PCC,Housing Revenue Account,Special Services,PROPERTY & HOUSING,Supplies and Services,Catering,04/05/2018,6220831,14.4,VENDOR,APETITO LTD,100127
Portsmouth City Council,PCC,Housing Revenue Account,Special Services,PROPERTY & HOUSING,Supplies and Services,Catering,04/05/2018,6220831,7.05,VENDOR,APETITO LTD,100127
Portsmouth City Council,PCC,Housing Revenue Account,Special Services,PROPERTY & HOUSING,Supplies and Services,Catering,04/05/2018,6220831,13.2,VENDOR,APETITO LTD,100127
Portsmouth City Council,PCC,Housing Revenue Account,Special Services,PROPERTY & HOUSING,Supplies and Services,Catering,04/05/2018,6220831,31.2,VENDOR,APETITO LTD,100127
Portsmouth City Council,PCC,Housing Revenue Account,Special Services,PROPERTY & HOUSING,Supplies and Services,Catering,04/05/2018,6220831,9.45,VENDOR,APETITO LTD,100127
Portsmouth City Council,PCC,Housing Revenue Account,Special Services,PROPERTY & HOUSING,Supplies and Services,Catering,04/05/2018,6220831,28.2,VENDOR,APETITO LTD,100127
Portsmouth City Council,PCC,Housing Revenue Account,Special Services,PROPERTY & HOUSING,Supplies and Services,Catering,04/05/2018,6220831,11.63,VENDOR,APETITO LTD,100127
Portsmouth City Council,PCC,Housing Revenue Account,Special Services,PROPERTY & HOUSING,Supplies and Services,Catering,04/05/2018,6220831,29.05,VENDOR,APETITO LTD,100127
Portsmouth City Council,PCC,Housing Revenue Account,Special Services,PROPERTY & HOUSING,Supplies and Services,Catering,04/05/2018,6220831,30.19,VENDOR,APETITO LTD,100127
Portsmouth City Council,PCC,Housing Revenue Account,Special Services,PROPERTY & HOUSING,Supplies and Services,Catering,04/05/2018,6220831,25.2,VENDOR,APETITO LTD,100127
Portsmouth City Council,PCC,Housing Revenue Account,Special Services,PROPERTY & HOUSING,Supplies and Services,Catering,04/05/2018,6220831,8.77,VENDOR,APETITO LTD,100127
Portsmouth City Council,PCC,Housing Revenue Account,Special Services,PROPERTY & HOUSING,Supplies and Services,Catering,04/05/2018,6220831,11.52,VENDOR,APETITO LTD,100127
Portsmouth City Council,PCC,Housing Revenue Account,Special Services,PROPERTY & HOUSING,Supplies and Services,Catering,04/05/2018,6220831,24.84,VENDOR,APETITO LTD,100127
Portsmouth City Council,PCC,Housing Revenue Account,Special Services,PROPERTY & HOUSING,Supplies and Services,Catering,04/05/2018,6220831,24.24,VENDOR,APETITO LTD,100127
Portsmouth City Council,PCC,Housing Revenue Account,Special Services,PROPERTY & HOUSING,Supplies and Services,Catering,04/05/2018,6220831,13.2,VENDOR,APETITO LTD,100127
Portsmouth City Council,PCC,Housing Revenue Account,Special Services,PROPERTY & HOUSING,Supplies and Services,Catering,04/05/2018,6220831,28.2,VENDOR,APETITO LTD,100127
Portsmouth City Council,PCC,Housing Revenue Account,Special Services,PROPERTY & HOUSING,Supplies and Services,Catering,04/05/2018,6220831,33.08,VENDOR,APETITO LTD,100127
Portsmouth City Council,PCC,Housing Revenue Account,Special Services,PROPERTY & HOUSING,Supplies and Services,Catering,04/05/2018,6220831,26.4,VENDOR,APETITO LTD,100127
Portsmouth City Council,PCC,Housing Revenue Account,Special Services,PROPERTY & HOUSING,Supplies and Services,Catering,04/05/2018,6220831,32.63,VENDOR,APETITO LTD,100127
Portsmouth City Council,PCC,Housing Revenue Account,Special Services,PROPERTY & HOUSING,Supplies and Services,Catering,04/05/2018,6220831,26.57,VENDOR,APETITO LTD,100127
Portsmouth City Council,PCC,Housing Revenue Account,Special Services,PROPERTY & HOUSING,Supplies and Services,Catering,04/05/2018,6220831,29.27,VENDOR,APETITO LTD,100127
Portsmouth City Council,PCC,Housing Revenue Account,Special Services,PROPERTY & HOUSING,Supplies and Services,Catering,04/05/2018,6220831,8.17,VENDOR,APETITO LTD,100127
Portsmouth City Council,PCC,Housing Revenue Account,Special Services,PROPERTY & HOUSING,Supplies and Services,Catering,04/05/2018,6220831,8.95,VENDOR,APETITO LTD,100127
Portsmouth City Council,PCC,Housing Revenue Account,Special Services,PROPERTY & HOUSING,Supplies and Services,Catering,04/05/2018,6220831,27.31,VENDOR,APETITO LTD,100127
Portsmouth City Council,PCC,Housing Revenue Account,Special Services,PROPERTY & HOUSING,Supplies and Services,Catering,04/05/2018,6220831,24.24,VENDOR,APETITO LTD,100127
Portsmouth City Council,PCC,Housing Revenue Account,Special Services,PROPERTY & HOUSING,Supplies and Services,Catering,04/05/2018,6220831,9.6,VENDOR,APETITO LTD,100127
Portsmouth City Council,PCC,Housing Revenue Account,Special Services,PROPERTY & HOUSING,Supplies and Services,Catering,04/05/2018,6220831,7.05,VENDOR,APETITO LTD,100127
Portsmouth City Council,PCC,Housing Revenue Account,Special Services,PROPERTY & HOUSING,Supplies and Services,Catering,04/05/2018,6220831,26.2,VENDOR,APETITO LTD,100127
Portsmouth City Council,PCC,Housing Revenue Account,Special Services,PROPERTY & HOUSING,Supplies and Services,Catering,11/05/2018,6221703,9.12,VENDOR,APETITO LTD,100127
Portsmouth City Council,PCC,Housing Revenue Account,Special Services,PROPERTY & HOUSING,Supplies and Services,Catering,11/05/2018,6221703,9.91,VENDOR,APETITO LTD,100127
Portsmouth City Council,PCC,Housing Revenue Account,Special Services,PROPERTY & HOUSING,Supplies and Services,Catering,11/05/2018,6221703,9.96,VENDOR,APETITO LTD,100127
Portsmouth City Council,PCC,Housing Revenue Account,Special Services,PROPERTY & HOUSING,Supplies and Services,Catering,11/05/2018,6221703,22.85,VENDOR,APETITO LTD,100127
Portsmouth City Council,PCC,Housing Revenue Account,Special Services,PROPERTY & HOUSING,Supplies and Services,Catering,11/05/2018,6221703,27.99,VENDOR,APETITO LTD,100127
Portsmouth City Council,PCC,Housing Revenue Account,Special Services,PROPERTY & HOUSING,Supplies and Services,Catering,11/05/2018,6221703,27.6,VENDOR,APETITO LTD,100127
Portsmouth City Council,PCC,Housing Revenue Account,Special Services,PROPERTY & HOUSING,Supplies and Services,Catering,11/05/2018,6221703,34.34,VENDOR,APETITO LTD,100127
Portsmouth City Council,PCC,Housing Revenue Account,Special Services,PROPERTY & HOUSING,Supplies and Services,Catering,11/05/2018,6221703,30.19,VENDOR,APETITO LTD,100127
Portsmouth City Council,PCC,Housing Revenue Account,Special Services,PROPERTY & HOUSING,Supplies and Services,Catering,11/05/2018,6221703,27.14,VENDOR,APETITO LTD,100127
Portsmouth City Council,PCC,Housing Revenue Account,Special Services,PROPERTY & HOUSING,Supplies and Services,Catering,11/05/2018,6221703,9.45,VENDOR,APETITO LTD,100127
Portsmouth City Council,PCC,Housing Revenue Account,Special Services,PROPERTY & HOUSING,Supplies and Services,Catering,11/05/2018,6221703,25.49,VENDOR,APETITO LTD,100127
Portsmouth City Council,PCC,Housing Revenue Account,Special Services,PROPERTY & HOUSING,Supplies and Services,Catering,11/05/2018,6221703,8.77,VENDOR,APETITO LTD,100127
Portsmouth City Council,PCC,Housing Revenue Account,Special Services,PROPERTY & HOUSING,Supplies and Services,Catering,11/05/2018,6221703,29.7,VENDOR,APETITO LTD,100127
Portsmouth City Council,PCC,Housing Revenue Account,Special Services,PROPERTY & HOUSING,Supplies and Services,Catering,11/05/2018,6221703,21.8,VENDOR,APETITO LTD,100127
Portsmouth City Council,PCC,Housing Revenue Account,Special Services,PROPERTY & HOUSING,Supplies and Services,Catering,11/05/2018,6221703,9.45,VENDOR,APETITO LTD,100127
Portsmouth City Council,PCC,Housing Revenue Account,Special Services,PROPERTY & HOUSING,Supplies and Services,Catering,11/05/2018,6221703,8.95,VENDOR,APETITO LTD,100127
Portsmouth City Council,PCC,Housing Revenue Account,Special Services,PROPERTY & HOUSING,Supplies and Services,Catering,11/05/2018,6221703,22.92,VENDOR,APETITO LTD,100127
Portsmouth City Council,PCC,Housing Revenue Account,Special Services,PROPERTY & HOUSING,Supplies and Services,Catering,11/05/2018,6221703,16.08,VENDOR,APETITO LTD,100127
Portsmouth City Council,PCC,Housing Revenue Account,Special Services,PROPERTY & HOUSING,Supplies and Services,Catering,11/05/2018,6221703,8.77,VENDOR,APETITO LTD,100127
Portsmouth City Council,PCC,Housing Revenue Account,Special Services,PROPERTY & HOUSING,Supplies and Services,Catering,11/05/2018,6221703,4.95,VENDOR,APETITO LTD,100127
Portsmouth City Council,PCC,Housing Revenue Account,Special Services,PROPERTY & HOUSING,Supplies and Services,Catering,11/05/2018,6221703,28.9,VENDOR,APETITO LTD,100127
Portsmouth City Council,PCC,Housing Revenue Account,Special Services,PROPERTY & HOUSING,Supplies and Services,Catering,11/05/2018,6221703,9.74,VENDOR,APETITO LTD,100127
Portsmouth City Council,PCC,Housing Revenue Account,Special Services,PROPERTY & HOUSING,Supplies and Services,Catering,11/05/2018,6221703,28.8,VENDOR,APETITO LTD,100127
Portsmouth City Council,PCC,Housing Revenue Account,Special Services,PROPERTY & HOUSING,Supplies and Services,Catering,11/05/2018,6221703,29.05,VENDOR,APETITO LTD,100127
Portsmouth City Council,PCC,Housing Revenue Account,Special Services,PROPERTY & HOUSING,Supplies and Services,Catering,11/05/2018,6221703,27.31,VENDOR,APETITO LTD,100127
Portsmouth City Council,PCC,Housing Revenue Account,Special Services,PROPERTY & HOUSING,Supplies and Services,Catering,11/05/2018,6221703,27.6,VENDOR,APETITO LTD,100127
Portsmouth City Council,PCC,Housing Revenue Account,Special Services,PROPERTY & HOUSING,Supplies and Services,Catering,11/05/2018,6221703,26.89,VENDOR,APETITO LTD,100127
Portsmouth City Council,PCC,Housing Revenue Account,Special Services,PROPERTY & HOUSING,Supplies and Services,Catering,11/05/2018,6221703,34.08,VENDOR,APETITO LTD,100127
Portsmouth City Council,PCC,Housing Revenue Account,Special Services,PROPERTY & HOUSING,Supplies and Services,Catering,11/05/2018,6221703,8.77,VENDOR,APETITO LTD,100127
Portsmouth City Council,PCC,Housing Revenue Account,Special Services,PROPERTY & HOUSING,Supplies and Services,Catering,11/05/2018,6221703,8.77,VENDOR,APETITO LTD,100127
Portsmouth City Council,PCC,Housing Revenue Account,Special Services,PROPERTY & HOUSING,Supplies and Services,Catering,11/05/2018,6221703,13.23,VENDOR,APETITO LTD,100127
Portsmouth City Council,PCC,Housing Revenue Account,Special Services,PROPERTY & HOUSING,Supplies and Services,Catering,11/05/2018,6221703,9.45,VENDOR,APETITO LTD,100127
Portsmouth City Council,PCC,Housing Revenue Account,Special Services,PROPERTY & HOUSING,Supplies and Services,Catering,11/05/2018,6221703,9.45,VENDOR,APETITO LTD,100127
Portsmouth City Council,PCC,Housing Revenue Account,Special Services,PROPERTY & HOUSING,Supplies and Services,Catering,11/05/2018,6221703,9.6,VENDOR,APETITO LTD,100127
Portsmouth City Council,PCC,Housing Revenue Account,Special Services,PROPERTY & HOUSING,Supplies and Services,Catering,11/05/2018,6221703,27.54,VENDOR,APETITO LTD,100127
Portsmouth City Council,PCC,Housing Revenue Account,Special Services,PROPERTY & HOUSING,Supplies and Services,Catering,11/05/2018,6221703,31.2,VENDOR,APETITO LTD,100127
Portsmouth City Council,PCC,Housing Revenue Account,Special Services,PROPERTY & HOUSING,Supplies and Services,Catering,11/05/2018,6221703,13.77,VENDOR,APETITO LTD,100127
Portsmouth City Council,PCC,Housing Revenue Account,Special Services,PROPERTY & HOUSING,Supplies and Services,Catering,11/05/2018,6221703,28.2,VENDOR,APETITO LTD,100127
Portsmouth City Council,PCC,Housing Revenue Account,Special Services,PROPERTY & HOUSING,Supplies and Services,Catering,11/05/2018,6221703,27.6,VENDOR,APETITO LTD,100127
Portsmouth City Council,PCC,Housing Revenue Account,Special Services,PROPERTY & HOUSING,Supplies and Services,Catering,11/05/2018,6221703,27.73,VENDOR,APETITO LTD,100127
Portsmouth City Council,PCC,Housing Revenue Account,Special Services,PROPERTY & HOUSING,Supplies and Services,Catering,11/05/2018,6221703,30.19,VENDOR,APETITO LTD,100127
Portsmouth City Council,PCC,Housing Revenue Account,Special Services,PROPERTY & HOUSING,Supplies and Services,Catering,11/05/2018,6221703,32.63,VENDOR,APETITO LTD,100127
Portsmouth City Council,PCC,Housing Revenue Account,Special Services,PROPERTY & HOUSING,Supplies and Services,Catering,11/05/2018,6221703,31.33,VENDOR,APETITO LTD,100127
Portsmouth City Council,PCC,Housing Revenue Account,Special Services,PROPERTY & HOUSING,Supplies and Services,Catering,11/05/2018,6221703,8.77,VENDOR,APETITO LTD,100127
Portsmouth City Council,PCC,Housing Revenue Account,Special Services,PROPERTY & HOUSING,Supplies and Services,Catering,11/05/2018,6221703,12.1,VENDOR,APETITO LTD,100127
Portsmouth City Council,PCC,Housing Revenue Account,Special Services,PROPERTY & HOUSING,Supplies and Services,Catering,11/05/2018,6221703,30.08,VENDOR,APETITO LTD,100127
Portsmouth City Council,PCC,Housing Revenue Account,Special Services,PROPERTY & HOUSING,Supplies and Services,Catering,11/05/2018,6221703,8.77,VENDOR,APETITO LTD,100127
Portsmouth City Council,PCC,Housing Revenue Account,Special Services,PROPERTY & HOUSING,Supplies and Services,Catering,11/05/2018,6221703,11.79,VENDOR,APETITO LTD,100127
Portsmouth City Council,PCC,Housing Revenue Account,Special Services,PROPERTY & HOUSING,Supplies and Services,Catering,11/05/2018,6221703,10.9,VENDOR,APETITO LTD,100127
Portsmouth City Council,PCC,Housing Revenue Account,Special Services,PROPERTY & HOUSING,Supplies and Services,Catering,11/05/2018,6221703,9.45,VENDOR,APETITO LTD,100127
Portsmouth City Council,PCC,Housing Revenue Account,Special Services,PROPERTY & HOUSING,Supplies and Services,Catering,11/05/2018,6221703,8.17,VENDOR,APETITO LTD,100127
Portsmouth City Council,PCC,Housing Revenue Account,Special Services,PROPERTY & HOUSING,Supplies and Services,Catering,11/05/2018,6221703,27.31,VENDOR,APETITO LTD,100127
Portsmouth City Council,PCC,Housing Revenue Account,Special Services,PROPERTY & HOUSING,Supplies and Services,Catering,11/05/2018,6221703,16.08,VENDOR,APETITO LTD,100127
Portsmouth City Council,PCC,Housing Revenue Account,Special Services,PROPERTY & HOUSING,Supplies and Services,Catering,11/05/2018,6221703,7.05,VENDOR,APETITO LTD,100127
Portsmouth City Council,PCC,Housing Revenue Account,Special Services,PROPERTY & HOUSING,Supplies and Services,Catering,11/05/2018,6221703,8.77,VENDOR,APETITO LTD,100127
Portsmouth City Council,PCC,Housing Revenue Account,Special Services,PROPERTY & HOUSING,Supplies and Services,Catering,11/05/2018,6221703,9,VENDOR,APETITO LTD,100127
Portsmouth City Council,PCC,Housing Revenue Account,Special Services,PROPERTY & HOUSING,Supplies and Services,Catering,11/05/2018,6221703,30.49,VENDOR,APETITO LTD,100127
Portsmouth City Council,PCC,Housing Revenue Account,Special Services,PROPERTY & HOUSING,Supplies and Services,Catering,11/05/2018,6221703,31.2,VENDOR,APETITO LTD,100127
Portsmouth City Council,PCC,Housing Revenue Account,Special Services,PROPERTY & HOUSING,Supplies and Services,Catering,11/05/2018,6221703,13.77,VENDOR,APETITO LTD,100127
Portsmouth City Council,PCC,Housing Revenue Account,Special Services,PROPERTY & HOUSING,Supplies and Services,Catering,11/05/2018,6221703,9.91,VENDOR,APETITO LTD,100127
Portsmouth City Council,PCC,Housing Revenue Account,Special Services,PROPERTY & HOUSING,Supplies and Services,Catering,11/05/2018,6221703,9.74,VENDOR,APETITO LTD,100127
Portsmouth City Council,PCC,Housing Revenue Account,Special Services,PROPERTY & HOUSING,Supplies and Services,Catering,11/05/2018,6221703,28.2,VENDOR,APETITO LTD,100127
Portsmouth City Council,PCC,Housing Revenue Account,Special Services,PROPERTY & HOUSING,Supplies and Services,Catering,11/05/2018,6221703,9.45,VENDOR,APETITO LTD,100127
Portsmouth City Council,PCC,Housing Revenue Account,Special Services,PROPERTY & HOUSING,Supplies and Services,Catering,11/05/2018,6221703,7.05,VENDOR,APETITO LTD,100127
Portsmouth City Council,PCC,Housing Revenue Account,Special Services,PROPERTY & HOUSING,Supplies and Services,Catering,11/05/2018,6221703,27.14,VENDOR,APETITO LTD,100127
Portsmouth City Council,PCC,Housing Revenue Account,Special Services,PROPERTY & HOUSING,Supplies and Services,Catering,11/05/2018,6221703,9.45,VENDOR,APETITO LTD,100127
Portsmouth City Council,PCC,Housing Revenue Account,Special Services,PROPERTY & HOUSING,Supplies and Services,Catering,11/05/2018,6221703,8.95,VENDOR,APETITO LTD,100127
Portsmouth City Council,PCC,Housing Revenue Account,Special Services,PROPERTY & HOUSING,Supplies and Services,Catering,11/05/2018,6221703,9.45,VENDOR,APETITO LTD,100127
Portsmouth City Council,PCC,Housing Revenue Account,Special Services,PROPERTY & HOUSING,Supplies and Services,Catering,11/05/2018,6221703,24.24,VENDOR,APETITO LTD,100127
Portsmouth City Council,PCC,Housing Revenue Account,Special Services,PROPERTY & HOUSING,Supplies and Services,Catering,11/05/2018,6221703,24.24,VENDOR,APETITO LTD,100127
Portsmouth City Council,PCC,Housing Revenue Account,Special Services,PROPERTY & HOUSING,Supplies and Services,Catering,11/05/2018,6221703,7.05,VENDOR,APETITO LTD,100127
Portsmouth City Council,PCC,Housing Revenue Account,Special Services,PROPERTY & HOUSING,Supplies and Services,Catering,11/05/2018,6221703,9.45,VENDOR,APETITO LTD,100127
Portsmouth City Council,PCC,Housing Revenue Account,Special Services,PROPERTY & HOUSING,Supplies and Services,Catering,11/05/2018,6221703,9.12,VENDOR,APETITO LTD,100127
Portsmouth City Council,PCC,Housing Revenue Account,Special Services,PROPERTY & HOUSING,Supplies and Services,Catering,11/05/2018,6221703,27.6,VENDOR,APETITO LTD,100127
Portsmouth City Council,PCC,Housing Revenue Account,Special Services,PROPERTY & HOUSING,Supplies and Services,Catering,11/05/2018,6221703,30.19,VENDOR,APETITO LTD,100127
Portsmouth City Council,PCC,Housing Revenue Account,Special Services,PROPERTY & HOUSING,Supplies and Services,Catering,11/05/2018,6221703,8.77,VENDOR,APETITO LTD,100127
Portsmouth City Council,PCC,Housing Revenue Account,Special Services,PROPERTY & HOUSING,Supplies and Services,Catering,11/05/2018,6221703,8.17,VENDOR,APETITO LTD,100127
Portsmouth City Council,PCC,Housing Revenue Account,Special Services,PROPERTY & HOUSING,Supplies and Services,Catering,11/05/2018,6221703,24.48,VENDOR,APETITO LTD,100127
Portsmouth City Council,PCC,Housing Revenue Account,Special Services,PROPERTY & HOUSING,Supplies and Services,Catering,18/05/2018,6222878,9.45,VENDOR,APETITO LTD,100127
Portsmouth City Council,PCC,Housing Revenue Account,Special Services,PROPERTY & HOUSING,Supplies and Services,Catering,18/05/2018,6222878,28.2,VENDOR,APETITO LTD,100127
Portsmouth City Council,PCC,Housing Revenue Account,Special Services,PROPERTY & HOUSING,Supplies and Services,Catering,18/05/2018,6222878,14.4,VENDOR,APETITO LTD,100127
Portsmouth City Council,PCC,Housing Revenue Account,Special Services,PROPERTY & HOUSING,Supplies and Services,Catering,18/05/2018,6222878,9.45,VENDOR,APETITO LTD,100127
Portsmouth City Council,PCC,Housing Revenue Account,Special Services,PROPERTY & HOUSING,Supplies and Services,Catering,18/05/2018,6222878,7.05,VENDOR,APETITO LTD,100127
Portsmouth City Council,PCC,Housing Revenue Account,Special Services,PROPERTY & HOUSING,Supplies and Services,Catering,18/05/2018,6222878,40.16,VENDOR,APETITO LTD,100127
Portsmouth City Council,PCC,Housing Revenue Account,Special Services,PROPERTY & HOUSING,Supplies and Services,Catering,18/05/2018,6222878,12.96,VENDOR,APETITO LTD,100127
Portsmouth City Council,PCC,Housing Revenue Account,Special Services,PROPERTY & HOUSING,Supplies and Services,Catering,18/05/2018,6222878,25.2,VENDOR,APETITO LTD,100127
Portsmouth City Council,PCC,Housing Revenue Account,Special Services,PROPERTY & HOUSING,Supplies and Services,Catering,18/05/2018,6222878,31.33,VENDOR,APETITO LTD,100127
Portsmouth City Council,PCC,Housing Revenue Account,Special Services,PROPERTY & HOUSING,Supplies and Services,Catering,18/05/2018,6222878,34.77,VENDOR,APETITO LTD,100127
Portsmouth City Council,PCC,Housing Revenue Account,Special Services,PROPERTY & HOUSING,Supplies and Services,Catering,18/05/2018,6222878,27.14,VENDOR,APETITO LTD,100127
Portsmouth City Council,PCC,Housing Revenue Account,Special Services,PROPERTY & HOUSING,Supplies and Services,Catering,18/05/2018,6222878,30.08,VENDOR,APETITO LTD,100127
Portsmouth City Council,PCC,Housing Revenue Account,Special Services,PROPERTY & HOUSING,Supplies and Services,Catering,18/05/2018,6222878,29.27,VENDOR,APETITO LTD,100127
Portsmouth City Council,PCC,Housing Revenue Account,Special Services,PROPERTY & HOUSING,Supplies and Services,Catering,18/05/2018,6222878,9.12,VENDOR,APETITO LTD,100127
Portsmouth City Council,PCC,Housing Revenue Account,Special Services,PROPERTY & HOUSING,Supplies and Services,Catering,18/05/2018,6222878,13.23,VENDOR,APETITO LTD,100127
Portsmouth City Council,PCC,Housing Revenue Account,Special Services,PROPERTY & HOUSING,Supplies and Services,Catering,18/05/2018,6222878,10.9,VENDOR,APETITO LTD,100127
Portsmouth City Council,PCC,Housing Revenue Account,Special Services,PROPERTY & HOUSING,Supplies and Services,Catering,18/05/2018,6222878,8.17,VENDOR,APETITO LTD,100127
Portsmouth City Council,PCC,Housing Revenue Account,Special Services,PROPERTY & HOUSING,Supplies and Services,Catering,18/05/2018,6222878,7.05,VENDOR,APETITO LTD,100127
Portsmouth City Council,PCC,Housing Revenue Account,Special Services,PROPERTY & HOUSING,Supplies and Services,Catering,18/05/2018,6222878,8.61,VENDOR,APETITO LTD,100127
Portsmouth City Council,PCC,Housing Revenue Account,Special Services,PROPERTY & HOUSING,Supplies and Services,Catering,18/05/2018,6222878,9.12,VENDOR,APETITO LTD,100127
Portsmouth City Council,PCC,Housing Revenue Account,Special Services,PROPERTY & HOUSING,Supplies and Services,Catering,18/05/2018,6222878,9.96,VENDOR,APETITO LTD,100127
Portsmouth City Council,PCC,Housing Revenue Account,Special Services,PROPERTY & HOUSING,Supplies and Services,Catering,18/05/2018,6222878,30.02,VENDOR,APETITO LTD,100127
Portsmouth City Council,PCC,Housing Revenue Account,Special Services,PROPERTY & HOUSING,Supplies and Services,Catering,18/05/2018,6222878,31.33,VENDOR,APETITO LTD,100127
Portsmouth City Council,PCC,Housing Revenue Account,Special Services,PROPERTY & HOUSING,Supplies and Services,Catering,18/05/2018,6222878,8.77,VENDOR,APETITO LTD,100127
Portsmouth City Council,PCC,Housing Revenue Account,Special Services,PROPERTY & HOUSING,Supplies and Services,Catering,18/05/2018,6222878,9.45,VENDOR,APETITO LTD,100127
Portsmouth City Council,PCC,Housing Revenue Account,Special Services,PROPERTY & HOUSING,Supplies and Services,Catering,18/05/2018,6222878,25.49,VENDOR,APETITO LTD,100127
Portsmouth City Council,PCC,Housing Revenue Account,Special Services,PROPERTY & HOUSING,Supplies and Services,Catering,18/05/2018,6222878,28.44,VENDOR,APETITO LTD,100127
Portsmouth City Council,PCC,Housing Revenue Account,Special Services,PROPERTY & HOUSING,Supplies and Services,Catering,18/05/2018,6222878,8.17,VENDOR,APETITO LTD,100127
Portsmouth City Council,PCC,Housing Revenue Account,Special Services,PROPERTY & HOUSING,Supplies and Services,Catering,18/05/2018,6222878,24.48,VENDOR,APETITO LTD,100127
Portsmouth City Council,PCC,Housing Revenue Account,Special Services,PROPERTY & HOUSING,Supplies and Services,Catering,18/05/2018,6222878,27.31,VENDOR,APETITO LTD,100127
Portsmouth City Council,PCC,Housing Revenue Account,Special Services,PROPERTY & HOUSING,Supplies and Services,Catering,18/05/2018,6222878,24.24,VENDOR,APETITO LTD,100127
Portsmouth City Council,PCC,Housing Revenue Account,Special Services,PROPERTY & HOUSING,Supplies and Services,Catering,18/05/2018,6222878,8.77,VENDOR,APETITO LTD,100127
Portsmouth City Council,PCC,Housing Revenue Account,Special Services,PROPERTY & HOUSING,Supplies and Services,Catering,18/05/2018,6222878,10.49,VENDOR,APETITO LTD,100127
Portsmouth City Council,PCC,Housing Revenue Account,Special Services,PROPERTY & HOUSING,Supplies and Services,Catering,18/05/2018,6222878,9.45,VENDOR,APETITO LTD,100127
Portsmouth City Council,PCC,Housing Revenue Account,Special Services,PROPERTY & HOUSING,Supplies and Services,Catering,18/05/2018,6222878,9.91,VENDOR,APETITO LTD,100127
Portsmouth City Council,PCC,Housing Revenue Account,Special Services,PROPERTY & HOUSING,Supplies and Services,Catering,18/05/2018,6222878,28.2,VENDOR,APETITO LTD,100127
Portsmouth City Council,PCC,Housing Revenue Account,Special Services,PROPERTY & HOUSING,Supplies and Services,Catering,18/05/2018,6222878,7.05,VENDOR,APETITO LTD,100127
Portsmouth City Council,PCC,Housing Revenue Account,Special Services,PROPERTY & HOUSING,Supplies and Services,Catering,18/05/2018,6222878,12.96,VENDOR,APETITO LTD,100127
Portsmouth City Council,PCC,Housing Revenue Account,Special Services,PROPERTY & HOUSING,Supplies and Services,Catering,18/05/2018,6222878,34.29,VENDOR,APETITO LTD,100127
Portsmouth City Council,PCC,Housing Revenue Account,Special Services,PROPERTY & HOUSING,Supplies and Services,Catering,18/05/2018,6222878,11.52,VENDOR,APETITO LTD,100127
Portsmouth City Council,PCC,Housing Revenue Account,Special Services,PROPERTY & HOUSING,Supplies and Services,Catering,18/05/2018,6222878,34.08,VENDOR,APETITO LTD,100127
Portsmouth City Council,PCC,Housing Revenue Account,Special Services,PROPERTY & HOUSING,Supplies and Services,Catering,18/05/2018,6222878,9.45,VENDOR,APETITO LTD,100127
Portsmouth City Council,PCC,Housing Revenue Account,Special Services,PROPERTY & HOUSING,Supplies and Services,Catering,18/05/2018,6222878,29.28,VENDOR,APETITO LTD,100127
Portsmouth City Council,PCC,Housing Revenue Account,Special Services,PROPERTY & HOUSING,Supplies and Services,Catering,18/05/2018,6222878,8.77,VENDOR,APETITO LTD,100127
Portsmouth City Council,PCC,Housing Revenue Account,Special Services,PROPERTY & HOUSING,Supplies and Services,Catering,18/05/2018,6222878,12.96,VENDOR,APETITO LTD,100127
Portsmouth City Council,PCC,Housing Revenue Account,Special Services,PROPERTY & HOUSING,Supplies and Services,Catering,18/05/2018,6222878,29.7,VENDOR,APETITO LTD,100127
Portsmouth City Council,PCC,Housing Revenue Account,Special Services,PROPERTY & HOUSING,Supplies and Services,Catering,18/05/2018,6222878,24.84,VENDOR,APETITO LTD,100127
Portsmouth City Council,PCC,Housing Revenue Account,Special Services,PROPERTY & HOUSING,Supplies and Services,Catering,18/05/2018,6222878,22.92,VENDOR,APETITO LTD,100127
Portsmouth City Council,PCC,Housing Revenue Account,Special Services,PROPERTY & HOUSING,Supplies and Services,Catering,18/05/2018,6222878,9.45,VENDOR,APETITO LTD,100127
Portsmouth City Council,PCC,Housing Revenue Account,Special Services,PROPERTY & HOUSING,Supplies and Services,Catering,18/05/2018,6222878,7.05,VENDOR,APETITO LTD,100127
Portsmouth City Council,PCC,Housing Revenue Account,Special Services,PROPERTY & HOUSING,Supplies and Services,Catering,18/05/2018,6222878,27.54,VENDOR,APETITO LTD,100127
Portsmouth City Council,PCC,Housing Revenue Account,Special Services,PROPERTY & HOUSING,Supplies and Services,Catering,18/05/2018,6222878,4.95,VENDOR,APETITO LTD,100127
Portsmouth City Council,PCC,Housing Revenue Account,Special Services,PROPERTY & HOUSING,Supplies and Services,Catering,18/05/2018,6222878,28.9,VENDOR,APETITO LTD,100127
Portsmouth City Council,PCC,Housing Revenue Account,Special Services,PROPERTY & HOUSING,Supplies and Services,Catering,18/05/2018,6222878,29.89,VENDOR,APETITO LTD,100127
Portsmouth City Council,PCC,Housing Revenue Account,Special Services,PROPERTY & HOUSING,Supplies and Services,Catering,18/05/2018,6222878,26.4,VENDOR,APETITO LTD,100127
Portsmouth City Council,PCC,Housing Revenue Account,Special Services,PROPERTY & HOUSING,Supplies and Services,Catering,18/05/2018,6222878,40.16,VENDOR,APETITO LTD,100127
Portsmouth City Council,PCC,Housing Revenue Account,Special Services,PROPERTY & HOUSING,Supplies and Services,Catering,18/05/2018,6222878,11.52,VENDOR,APETITO LTD,100127
Portsmouth City Council,PCC,Housing Revenue Account,Special Services,PROPERTY & HOUSING,Supplies and Services,Catering,18/05/2018,6222878,8.77,VENDOR,APETITO LTD,100127
Portsmouth City Council,PCC,Housing Revenue Account,Special Services,PROPERTY & HOUSING,Supplies and Services,Catering,18/05/2018,6222878,8.17,VENDOR,APETITO LTD,100127
Portsmouth City Council,PCC,Housing Revenue Account,Special Services,PROPERTY & HOUSING,Supplies and Services,Catering,18/05/2018,6222878,29.34,VENDOR,APETITO LTD,100127
Portsmouth City Council,PCC,Housing Revenue Account,Special Services,PROPERTY & HOUSING,Supplies and Services,Catering,18/05/2018,6222878,8.96,VENDOR,APETITO LTD,100127
Portsmouth City Council,PCC,Housing Revenue Account,Special Services,PROPERTY & HOUSING,Supplies and Services,Catering,18/05/2018,6222878,10.49,VENDOR,APETITO LTD,100127
Portsmouth City Council,PCC,Housing Revenue Account,Special Services,PROPERTY & HOUSING,Supplies and Services,Catering,18/05/2018,6222878,9.45,VENDOR,APETITO LTD,100127
Portsmouth City Council,PCC,Housing Revenue Account,Special Services,PROPERTY & HOUSING,Supplies and Services,Catering,18/05/2018,6222878,20.98,VENDOR,APETITO LTD,100127
Portsmouth City Council,PCC,Housing Revenue Account,Special Services,PROPERTY & HOUSING,Supplies and Services,Catering,25/05/2018,6224435,10.49,VENDOR,APETITO LTD,100127
Portsmouth City Council,PCC,Housing Revenue Account,Special Services,PROPERTY & HOUSING,Supplies and Services,Catering,25/05/2018,6224435,33.27,VENDOR,APETITO LTD,100127
Portsmouth City Council,PCC,Housing Revenue Account,Special Services,PROPERTY & HOUSING,Supplies and Services,Catering,25/05/2018,6224435,27.6,VENDOR,APETITO LTD,100127
Portsmouth City Council,PCC,Housing Revenue Account,Special Services,PROPERTY & HOUSING,Supplies and Services,Catering,25/05/2018,6224435,12.32,VENDOR,APETITO LTD,100127
Portsmouth City Council,PCC,Housing Revenue Account,Special Services,PROPERTY & HOUSING,Supplies and Services,Catering,25/05/2018,6224435,30.02,VENDOR,APETITO LTD,100127
Portsmouth City Council,PCC,Housing Revenue Account,Special Services,PROPERTY & HOUSING,Supplies and Services,Catering,25/05/2018,6224435,27.73,VENDOR,APETITO LTD,100127
Portsmouth City Council,PCC,Housing Revenue Account,Special Services,PROPERTY & HOUSING,Supplies and Services,Catering,25/05/2018,6224435,8.77,VENDOR,APETITO LTD,100127
Portsmouth City Council,PCC,Housing Revenue Account,Special Services,PROPERTY & HOUSING,Supplies and Services,Catering,25/05/2018,6224435,32.63,VENDOR,APETITO LTD,100127
Portsmouth City Council,PCC,Housing Revenue Account,Special Services,PROPERTY & HOUSING,Supplies and Services,Catering,25/05/2018,6224435,11.52,VENDOR,APETITO LTD,100127
Portsmouth City Council,PCC,Housing Revenue Account,Special Services,PROPERTY & HOUSING,Supplies and Services,Catering,25/05/2018,6224435,12.1,VENDOR,APETITO LTD,100127
Portsmouth City Council,PCC,Housing Revenue Account,Special Services,PROPERTY & HOUSING,Supplies and Services,Catering,25/05/2018,6224435,8.77,VENDOR,APETITO LTD,100127
Portsmouth City Council,PCC,Housing Revenue Account,Special Services,PROPERTY & HOUSING,Supplies and Services,Catering,25/05/2018,6224435,12.96,VENDOR,APETITO LTD,100127
Portsmouth City Council,PCC,Housing Revenue Account,Special Services,PROPERTY & HOUSING,Supplies and Services,Catering,25/05/2018,6224435,9.45,VENDOR,APETITO LTD,100127
Portsmouth City Council,PCC,Housing Revenue Account,Special Services,PROPERTY & HOUSING,Supplies and Services,Catering,25/05/2018,6224435,29.52,VENDOR,APETITO LTD,100127
Portsmouth City Council,PCC,Housing Revenue Account,Special Services,PROPERTY & HOUSING,Supplies and Services,Catering,25/05/2018,6224435,21.8,VENDOR,APETITO LTD,100127
Portsmouth City Council,PCC,Housing Revenue Account,Special Services,PROPERTY & HOUSING,Supplies and Services,Catering,25/05/2018,6224435,30.51,VENDOR,APETITO LTD,100127
Portsmouth City Council,PCC,Housing Revenue Account,Special Services,PROPERTY & HOUSING,Supplies and Services,Catering,25/05/2018,6224435,24.24,VENDOR,APETITO LTD,100127
Portsmouth City Council,PCC,Housing Revenue Account,Special Services,PROPERTY & HOUSING,Supplies and Services,Catering,25/05/2018,6224435,4.95,VENDOR,APETITO LTD,100127
Portsmouth City Council,PCC,Housing Revenue Account,Special Services,PROPERTY & HOUSING,Supplies and Services,Catering,25/05/2018,6224435,28.9,VENDOR,APETITO LTD,100127
Portsmouth City Council,PCC,Housing Revenue Account,Special Services,PROPERTY & HOUSING,Supplies and Services,Catering,25/05/2018,6224435,9.45,VENDOR,APETITO LTD,100127
Portsmouth City Council,PCC,Housing Revenue Account,Special Services,PROPERTY & HOUSING,Supplies and Services,Catering,25/05/2018,6224435,22.85,VENDOR,APETITO LTD,100127
Portsmouth City Council,PCC,Housing Revenue Account,Special Services,PROPERTY & HOUSING,Supplies and Services,Catering,25/05/2018,6224435,28.2,VENDOR,APETITO LTD,100127
Portsmouth City Council,PCC,Housing Revenue Account,Special Services,PROPERTY & HOUSING,Supplies and Services,Catering,25/05/2018,6224435,11.63,VENDOR,APETITO LTD,100127
Portsmouth City Council,PCC,Housing Revenue Account,Special Services,PROPERTY & HOUSING,Supplies and Services,Catering,25/05/2018,6224435,9.45,VENDOR,APETITO LTD,100127
Portsmouth City Council,PCC,Housing Revenue Account,Special Services,PROPERTY & HOUSING,Supplies and Services,Catering,25/05/2018,6224435,7.05,VENDOR,APETITO LTD,100127
Portsmouth City Council,PCC,Housing Revenue Account,Special Services,PROPERTY & HOUSING,Supplies and Services,Catering,25/05/2018,6224435,26.75,VENDOR,APETITO LTD,100127
Portsmouth City Council,PCC,Housing Revenue Account,Special Services,PROPERTY & HOUSING,Supplies and Services,Catering,25/05/2018,6224435,27.6,VENDOR,APETITO LTD,100127
Portsmouth City Council,PCC,Housing Revenue Account,Special Services,PROPERTY & HOUSING,Supplies and Services,Catering,25/05/2018,6224435,30.19,VENDOR,APETITO LTD,100127
Portsmouth City Council,PCC,Housing Revenue Account,Special Services,PROPERTY & HOUSING,Supplies and Services,Catering,25/05/2018,6224435,25.13,VENDOR,APETITO LTD,100127
Portsmouth City Council,PCC,Housing Revenue Account,Special Services,PROPERTY & HOUSING,Supplies and Services,Catering,25/05/2018,6224435,29.28,VENDOR,APETITO LTD,100127
Portsmouth City Council,PCC,Housing Revenue Account,Special Services,PROPERTY & HOUSING,Supplies and Services,Catering,25/05/2018,6224435,8.77,VENDOR,APETITO LTD,100127
Portsmouth City Council,PCC,Housing Revenue Account,Special Services,PROPERTY & HOUSING,Supplies and Services,Catering,25/05/2018,6224435,30.08,VENDOR,APETITO LTD,100127
Portsmouth City Council,PCC,Housing Revenue Account,Special Services,PROPERTY & HOUSING,Supplies and Services,Catering,25/05/2018,6224435,29.27,VENDOR,APETITO LTD,100127
Portsmouth City Council,PCC,Housing Revenue Account,Special Services,PROPERTY & HOUSING,Supplies and Services,Catering,25/05/2018,6224435,29.7,VENDOR,APETITO LTD,100127
Portsmouth City Council,PCC,Housing Revenue Account,Special Services,PROPERTY & HOUSING,Supplies and Services,Catering,25/05/2018,6224435,29.34,VENDOR,APETITO LTD,100127
Portsmouth City Council,PCC,Housing Revenue Account,Special Services,PROPERTY & HOUSING,Supplies and Services,Catering,25/05/2018,6224435,7.05,VENDOR,APETITO LTD,100127
Portsmouth City Council,PCC,Housing Revenue Account,Special Services,PROPERTY & HOUSING,Supplies and Services,Catering,25/05/2018,6224435,9.45,VENDOR,APETITO LTD,100127
Portsmouth City Council,PCC,Housing Revenue Account,Special Services,PROPERTY & HOUSING,Supplies and Services,Catering,25/05/2018,6224435,9.45,VENDOR,APETITO LTD,100127
Portsmouth City Council,PCC,Housing Revenue Account,Special Services,PROPERTY & HOUSING,Supplies and Services,Catering,25/05/2018,6224435,28.2,VENDOR,APETITO LTD,100127
Portsmouth City Council,PCC,Housing Revenue Account,Special Services,PROPERTY & HOUSING,Supplies and Services,Catering,25/05/2018,6224435,27.99,VENDOR,APETITO LTD,100127
Portsmouth City Council,PCC,Housing Revenue Account,Special Services,PROPERTY & HOUSING,Supplies and Services,Catering,25/05/2018,6224435,27.14,VENDOR,APETITO LTD,100127
Portsmouth City Council,PCC,Housing Revenue Account,Special Services,PROPERTY & HOUSING,Supplies and Services,Catering,25/05/2018,6224435,36.07,VENDOR,APETITO LTD,100127
Portsmouth City Council,PCC,Housing Revenue Account,Special Services,PROPERTY & HOUSING,Supplies and Services,Catering,25/05/2018,6224435,31.45,VENDOR,APETITO LTD,100127
Portsmouth City Council,PCC,Housing Revenue Account,Special Services,PROPERTY & HOUSING,Supplies and Services,Catering,25/05/2018,6224435,28.44,VENDOR,APETITO LTD,100127
Portsmouth City Council,PCC,Housing Revenue Account,Special Services,PROPERTY & HOUSING,Supplies and Services,Catering,25/05/2018,6224435,29.27,VENDOR,APETITO LTD,100127
Portsmouth City Council,PCC,Housing Revenue Account,Special Services,PROPERTY & HOUSING,Supplies and Services,Catering,25/05/2018,6224435,10.9,VENDOR,APETITO LTD,100127
Portsmouth City Council,PCC,Housing Revenue Account,Special Services,PROPERTY & HOUSING,Supplies and Services,Catering,25/05/2018,6224435,9.45,VENDOR,APETITO LTD,100127
Portsmouth City Council,PCC,Housing Revenue Account,Special Services,PROPERTY & HOUSING,Supplies and Services,Catering,25/05/2018,6224435,8.17,VENDOR,APETITO LTD,100127
Portsmouth City Council,PCC,Housing Revenue Account,Special Services,PROPERTY & HOUSING,Supplies and Services,Catering,25/05/2018,6224435,35.78,VENDOR,APETITO LTD,100127
Portsmouth City Council,PCC,Housing Revenue Account,Special Services,PROPERTY & HOUSING,Supplies and Services,Catering,25/05/2018,6224435,29.34,VENDOR,APETITO LTD,100127
Portsmouth City Council,PCC,Housing Revenue Account,Special Services,PROPERTY & HOUSING,Supplies and Services,Catering,25/05/2018,6224435,8.96,VENDOR,APETITO LTD,100127
Portsmouth City Council,PCC,Housing Revenue Account,Special Services,PROPERTY & HOUSING,Supplies and Services,Catering,25/05/2018,6224435,9.6,VENDOR,APETITO LTD,100127
Portsmouth City Council,PCC,Housing Revenue Account,Special Services,PROPERTY & HOUSING,Supplies and Services,Catering,25/05/2018,6224435,7.2,VENDOR,APETITO LTD,100127
Portsmouth City Council,PCC,Housing Revenue Account,Special Services,PROPERTY & HOUSING,Supplies and Services,Catering,25/05/2018,6224435,9.45,VENDOR,APETITO LTD,100127
Portsmouth City Council,PCC,Housing Revenue Account,Special Services,PROPERTY & HOUSING,Supplies and Services,Catering,25/05/2018,6224435,4.95,VENDOR,APETITO LTD,100127
Portsmouth City Council,PCC,Housing Revenue Account,Special Services,PROPERTY & HOUSING,Supplies and Services,Catering,25/05/2018,6224435,28.8,VENDOR,APETITO LTD,100127
Portsmouth City Council,PCC,Housing Revenue Account,Special Services,PROPERTY & HOUSING,Supplies and Services,Catering,25/05/2018,6224435,27.6,VENDOR,APETITO LTD,100127
Portsmouth City Council,PCC,Housing Revenue Account,Special Services,PROPERTY & HOUSING,Supplies and Services,Catering,25/05/2018,6224435,30.02,VENDOR,APETITO LTD,100127
Portsmouth City Council,PCC,Housing Revenue Account,Special Services,PROPERTY & HOUSING,Supplies and Services,Catering,25/05/2018,6224435,7.2,VENDOR,APETITO LTD,100127
Portsmouth City Council,PCC,Housing Revenue Account,Special Services,PROPERTY & HOUSING,Supplies and Services,Catering,25/05/2018,6224435,30.19,VENDOR,APETITO LTD,100127
Portsmouth City Council,PCC,Housing Revenue Account,Special Services,PROPERTY & HOUSING,Supplies and Services,Catering,25/05/2018,6224435,31.33,VENDOR,APETITO LTD,100127
Portsmouth City Council,PCC,Housing Revenue Account,Special Services,PROPERTY & HOUSING,Supplies and Services,Catering,25/05/2018,6224435,32.64,VENDOR,APETITO LTD,100127
Portsmouth City Council,PCC,Housing Revenue Account,Special Services,PROPERTY & HOUSING,Supplies and Services,Catering,25/05/2018,6224435,29.28,VENDOR,APETITO LTD,100127
Portsmouth City Council,PCC,Housing Revenue Account,Special Services,PROPERTY & HOUSING,Supplies and Services,Catering,25/05/2018,6224435,30.08,VENDOR,APETITO LTD,100127
Portsmouth City Council,PCC,Housing Revenue Account,Special Services,PROPERTY & HOUSING,Supplies and Services,Catering,25/05/2018,6224435,26.57,VENDOR,APETITO LTD,100127
Portsmouth City Council,PCC,Housing Revenue Account,Special Services,PROPERTY & HOUSING,Supplies and Services,Catering,25/05/2018,6224435,8.77,VENDOR,APETITO LTD,100127
Portsmouth City Council,PCC,Housing Revenue Account,Special Services,PROPERTY & HOUSING,Supplies and Services,Catering,25/05/2018,6224435,29.7,VENDOR,APETITO LTD,100127
Portsmouth City Council,PCC,Housing Revenue Account,Special Services,PROPERTY & HOUSING,Supplies and Services,Catering,25/05/2018,6224435,25.94,VENDOR,APETITO LTD,100127
Portsmouth City Council,PCC,Housing Revenue Account,Special Services,PROPERTY & HOUSING,Supplies and Services,Catering,25/05/2018,6224435,13.23,VENDOR,APETITO LTD,100127
Portsmouth City Council,PCC,Housing Revenue Account,Special Services,PROPERTY & HOUSING,Supplies and Services,Catering,25/05/2018,6224435,10.9,VENDOR,APETITO LTD,100127
Portsmouth City Council,PCC,Housing Revenue Account,Special Services,PROPERTY & HOUSING,Supplies and Services,Catering,25/05/2018,6224435,8.17,VENDOR,APETITO LTD,100127
Portsmouth City Council,PCC,Housing Revenue Account,Special Services,PROPERTY & HOUSING,Supplies and Services,Catering,25/05/2018,6224435,8.96,VENDOR,APETITO LTD,100127
Portsmouth City Council,PCC,Housing Revenue Account,Special Services,PROPERTY & HOUSING,Supplies and Services,Catering,25/05/2018,6224435,8.77,VENDOR,APETITO LTD,100127
Portsmouth City Council,PCC,Housing Revenue Account,Special Services,PROPERTY & HOUSING,Supplies and Services,Catering,25/05/2018,6224435,9.93,VENDOR,APETITO LTD,100127
Portsmouth City Council,PCC,Housing Revenue Account,Special Services,PROPERTY & HOUSING,Supplies and Services,Catering,25/05/2018,6224435,9.45,VENDOR,APETITO LTD,100127
Portsmouth City Council,PCC,Housing Revenue Account,Special Services,PROPERTY & HOUSING,Supplies and Services,Catering,25/05/2018,6224435,9,VENDOR,APETITO LTD,100127
Portsmouth City Council,PCC,Housing Revenue Account,Special Services,PROPERTY & HOUSING,Supplies and Services,Catering,25/05/2018,6224435,28.2,VENDOR,APETITO LTD,100127
Portsmouth City Council,PCC,Housing Revenue Account,Special Services,PROPERTY & HOUSING,Supplies and Services,Catering,25/05/2018,6224435,9.45,VENDOR,APETITO LTD,100127
Portsmouth City Council,PCC,Housing Revenue Account,Special Services,PROPERTY & HOUSING,Supplies and Services,Catering,25/05/2018,6224435,7.05,VENDOR,APETITO LTD,100127
Portsmouth City Council,PCC,Housing Revenue Account,Special Services,PROPERTY & HOUSING,Supplies and Services,Catering,25/05/2018,6224435,26.57,VENDOR,APETITO LTD,100127
Portsmouth City Council,PCC,Housing Revenue Account,Special Services,PROPERTY & HOUSING,Supplies and Services,Catering,25/05/2018,6224435,8.77,VENDOR,APETITO LTD,100127
Portsmouth City Council,PCC,Housing Revenue Account,Special Services,PROPERTY & HOUSING,Supplies and Services,Catering,25/05/2018,6224435,27.31,VENDOR,APETITO LTD,100127
Portsmouth City Council,PCC,Housing Revenue Account,Special Services,PROPERTY & HOUSING,Supplies and Services,Catering,25/05/2018,6224435,8.96,VENDOR,APETITO LTD,100127
Portsmouth City Council,PCC,Housing Revenue Account,Special Services,PROPERTY & HOUSING,Supplies and Services,Catering,25/05/2018,6224435,7.05,VENDOR,APETITO LTD,100127
Portsmouth City Council,PCC,Housing Revenue Account,Special Services,PROPERTY & HOUSING,Supplies and Services,Catering,25/05/2018,6224435,9.45,VENDOR,APETITO LTD,100127
Portsmouth City Council,PCC,Housing Revenue Account,Special Services,PROPERTY & HOUSING,Supplies and Services,Catering,25/05/2018,6224435,31.2,VENDOR,APETITO LTD,100127
Portsmouth City Council,PCC,Housing Revenue Account,Special Services,PROPERTY & HOUSING,Supplies and Services,Catering,25/05/2018,6224435,9.45,VENDOR,APETITO LTD,100127
Portsmouth City Council,PCC,Housing Revenue Account,Special Services,PROPERTY & HOUSING,Supplies and Services,Catering,25/05/2018,6224435,9.74,VENDOR,APETITO LTD,100127
Portsmouth City Council,PCC,Housing Revenue Account,Special Services,PROPERTY & HOUSING,Supplies and Services,Catering,25/05/2018,6224435,28.2,VENDOR,APETITO LTD,100127
Portsmouth City Council,PCC,Housing Revenue Account,Special Services,PROPERTY & HOUSING,Supplies and Services,Catering,25/05/2018,6224435,7.05,VENDOR,APETITO LTD,100127
Portsmouth City Council,PCC,Housing Revenue Account,Special Services,PROPERTY & HOUSING,Supplies and Services,Catering,25/05/2018,6224435,29.05,VENDOR,APETITO LTD,100127
Portsmouth City Council,PCC,Housing Revenue Account,Special Services,PROPERTY & HOUSING,Supplies and Services,Catering,25/05/2018,6224435,27.6,VENDOR,APETITO LTD,100127
Portsmouth City Council,PCC,Housing Revenue Account,Special Services,PROPERTY & HOUSING,Supplies and Services,Catering,25/05/2018,6224435,30.19,VENDOR,APETITO LTD,100127
Portsmouth City Council,PCC,Housing Revenue Account,Special Services,PROPERTY & HOUSING,Supplies and Services,Catering,25/05/2018,6224435,9.45,VENDOR,APETITO LTD,100127
Portsmouth City Council,PCC,Housing Revenue Account,Special Services,PROPERTY & HOUSING,Supplies and Services,Catering,25/05/2018,6224435,29.28,VENDOR,APETITO LTD,100127
Portsmouth City Council,PCC,Housing Revenue Account,Special Services,PROPERTY & HOUSING,Supplies and Services,Catering,25/05/2018,6224435,25.49,VENDOR,APETITO LTD,100127
Portsmouth City Council,PCC,Housing Revenue Account,Special Services,PROPERTY & HOUSING,Supplies and Services,Catering,25/05/2018,6224435,26.02,VENDOR,APETITO LTD,100127
Portsmouth City Council,PCC,Housing Revenue Account,Special Services,PROPERTY & HOUSING,Supplies and Services,Catering,25/05/2018,6224435,26.57,VENDOR,APETITO LTD,100127
Portsmouth City Council,PCC,Housing Revenue Account,Special Services,PROPERTY & HOUSING,Supplies and Services,Catering,25/05/2018,6224435,8.17,VENDOR,APETITO LTD,100127
Portsmouth City Council,PCC,Housing Revenue Account,Special Services,PROPERTY & HOUSING,Supplies and Services,Catering,25/05/2018,6224435,24.48,VENDOR,APETITO LTD,100127
Portsmouth City Council,PCC,Housing Revenue Account,Special Services,PROPERTY & HOUSING,Supplies and Services,Catering,25/05/2018,6224435,24.24,VENDOR,APETITO LTD,100127
Portsmouth City Council,PCC,Housing Revenue Account,Special Services,PROPERTY & HOUSING,Supplies and Services,Catering,25/05/2018,6224435,13.2,VENDOR,APETITO LTD,100127
Portsmouth City Council,PCC,Adult Social Care,Social Care Activities,ADULT SERVICES,Third Party Payments,Other establishments,02/05/2018,6220164,212.22,VENDOR,APEX PROPERTY VENTURES LTD,108437
Portsmouth City Council,PCC,Adult Social Care,Social Care Activities,ADULT SERVICES,Third Party Payments,Other establishments,02/05/2018,6220164,117.9,VENDOR,APEX PROPERTY VENTURES LTD,108437
Portsmouth City Council,PCC,Adult Social Care,Physical Support Older People (85+),ADULT SERVICES,Third Party Payments,Other establishments,02/05/2018,6220164,-365,VENDOR,APEX PROPERTY VENTURES LTD,108437
Portsmouth City Council,PCC,Adult Social Care,Physical Support Adults (75 - 84),ADULT SERVICES,Third Party Payments,Other establishments,04/05/2018,6220833,204.36,VENDOR,APEX PROPERTY VENTURES LTD,108437
Portsmouth City Council,PCC,Adult Social Care,Physical Support Older People (85+),ADULT SERVICES,Third Party Payments,Other establishments,04/05/2018,6220833,193.35,VENDOR,APEX PROPERTY VENTURES LTD,108437
Portsmouth City Council,PCC,Adult Social Care,Physical Support Older People (85+),ADULT SERVICES,Third Party Payments,Other establishments,04/05/2018,6220833,102.18,VENDOR,APEX PROPERTY VENTURES LTD,108437
Portsmouth City Council,PCC,Adult Social Care,Physical Support Older People (85+),ADULT SERVICES,Third Party Payments,Other establishments,04/05/2018,6220833,122.7,VENDOR,APEX PROPERTY VENTURES LTD,108437
Portsmouth City Council,PCC,Adult Social Care,Social Care Activities,ADULT SERVICES,Third Party Payments,Other establishments,04/05/2018,6220833,5093.28,VENDOR,APEX PROPERTY VENTURES LTD,108437
Portsmouth City Council,PCC,Adult Social Care,Social Care Activities,ADULT SERVICES,Third Party Payments,Other establishments,04/05/2018,6220833,2601.95,VENDOR,APEX PROPERTY VENTURES LTD,108437
Portsmouth City Council,PCC,Adult Social Care,Physical Support Older People (85+),ADULT SERVICES,Third Party Payments,Other establishments,02/05/2018,6220164,57.52,VENDOR,APEX PROPERTY VENTURES LTD,108437
Portsmouth City Council,PCC,Adult Social Care,Physical Support Older People (85+),ADULT SERVICES,Third Party Payments,Other establishments,02/05/2018,6220164,204.36,VENDOR,APEX PROPERTY VENTURES LTD,108437
Portsmouth City Council,PCC,Adult Social Care,Physical Support Older People (85+),ADULT SERVICES,Third Party Payments,Other establishments,02/05/2018,6220164,65.44,VENDOR,APEX PROPERTY VENTURES LTD,108437
Portsmouth City Council,PCC,Adult Social Care,Physical Support Adults (75 - 84),ADULT SERVICES,Third Party Payments,Other establishments,02/05/2018,6220164,31.44,VENDOR,APEX PROPERTY VENTURES LTD,108437
Portsmouth City Council,PCC,Adult Social Care,Physical Support Older People (85+),ADULT SERVICES,Third Party Payments,Other establishments,02/05/2018,6220164,25.02,VENDOR,APEX PROPERTY VENTURES LTD,108437
Portsmouth City Council,PCC,Adult Social Care,Physical Support Older People (85+),ADULT SERVICES,Third Party Payments,Other establishments,02/05/2018,6220164,89.98,VENDOR,APEX PROPERTY VENTURES LTD,108437
Portsmouth City Council,PCC,Adult Social Care,Social Care Activities,ADULT SERVICES,Third Party Payments,Other establishments,02/05/2018,6220164,1021.8,VENDOR,APEX PROPERTY VENTURES LTD,108437
Portsmouth City Council,PCC,Adult Social Care,Social Care Activities,ADULT SERVICES,Third Party Payments,Other establishments,02/05/2018,6220164,1146.48,VENDOR,APEX PROPERTY VENTURES LTD,108437
Portsmouth City Council,PCC,Adult Social Care,Physical Support Older People (85+),ADULT SERVICES,Third Party Payments,Other establishments,02/05/2018,6220164,20.45,VENDOR,APEX PROPERTY VENTURES LTD,108437
Portsmouth City Council,PCC,Adult Social Care,Physical Support Older People (85+),ADULT SERVICES,Third Party Payments,Other establishments,02/05/2018,6220164,27.67,VENDOR,APEX PROPERTY VENTURES LTD,108437
Portsmouth City Council,PCC,Adult Social Care,Physical Support Adults (18 - 64),ADULT SERVICES,Third Party Payments,Other establishments,02/05/2018,6220164,110.04,VENDOR,APEX PROPERTY VENTURES LTD,108437
Portsmouth City Council,PCC,Adult Social Care,Physical Support Adults (18 - 64),ADULT SERVICES,Third Party Payments,Other establishments,02/05/2018,6220164,82.44,VENDOR,APEX PROPERTY VENTURES LTD,108437
Portsmouth City Council,PCC,Adult Social Care,Physical Support Adults (18 - 64),ADULT SERVICES,Third Party Payments,Other establishments,02/05/2018,6220164,35.37,VENDOR,APEX PROPERTY VENTURES LTD,108437
Portsmouth City Council,PCC,Adult Social Care,Physical Support Older People (85+),ADULT SERVICES,Third Party Payments,Other establishments,02/05/2018,6220164,29.2,VENDOR,APEX PROPERTY VENTURES LTD,108437
Portsmouth City Council,PCC,Adult Social Care,Physical Support Older People (85+),ADULT SERVICES,Third Party Payments,Other establishments,02/05/2018,6220164,31.44,VENDOR,APEX PROPERTY VENTURES LTD,108437
Portsmouth City Council,PCC,Adult Social Care,Physical Support Older People (85+),ADULT SERVICES,Third Party Payments,Other establishments,02/05/2018,6220164,89.98,VENDOR,APEX PROPERTY VENTURES LTD,108437
Portsmouth City Council,PCC,Adult Social Care,Physical Support Older People (85+),ADULT SERVICES,Third Party Payments,Other establishments,02/05/2018,6220164,1056.6,VENDOR,APEX PROPERTY VENTURES LTD,108437
Portsmouth City Council,PCC,Adult Social Care,Physical Support Older People (85+),ADULT SERVICES,Third Party Payments,Other establishments,02/05/2018,6220164,1184.02,VENDOR,APEX PROPERTY VENTURES LTD,108437
Portsmouth City Council,PCC,Adult Social Care,Physical Support Older People (85+),ADULT SERVICES,Third Party Payments,Other establishments,02/05/2018,6220164,153.27,VENDOR,APEX PROPERTY VENTURES LTD,108437
Portsmouth City Council,PCC,Adult Social Care,Physical Support Older People (85+),ADULT SERVICES,Third Party Payments,Other establishments,02/05/2018,6220164,184.05,VENDOR,APEX PROPERTY VENTURES LTD,108437
Portsmouth City Council,PCC,Adult Social Care,Physical Support Older People (85+),ADULT SERVICES,Third Party Payments,Other establishments,02/05/2018,6220164,306.54,VENDOR,APEX PROPERTY VENTURES LTD,108437
Portsmouth City Council,PCC,Adult Social Care,Physical Support Older People (85+),ADULT SERVICES,Third Party Payments,Other establishments,02/05/2018,6220164,368.1,VENDOR,APEX PROPERTY VENTURES LTD,108437
Portsmouth City Council,PCC,Adult Social Care,Physical Support Adults (75 - 84),ADULT SERVICES,Third Party Payments,Other establishments,02/05/2018,6220164,204.36,VENDOR,APEX PROPERTY VENTURES LTD,108437
Portsmouth City Council,PCC,Adult Social Care,Physical Support Older People (85+),ADULT SERVICES,Third Party Payments,Other establishments,02/05/2018,6220164,149,VENDOR,APEX PROPERTY VENTURES LTD,108437
Portsmouth City Council,PCC,Adult Social Care,Physical Support Older People (85+),ADULT SERVICES,Third Party Payments,Other establishments,02/05/2018,6220164,264.42,VENDOR,APEX PROPERTY VENTURES LTD,108437
Portsmouth City Council,PCC,Adult Social Care,Physical Support Older People (85+),ADULT SERVICES,Third Party Payments,Other establishments,02/05/2018,6220164,72.9,VENDOR,APEX PROPERTY VENTURES LTD,108437
Portsmouth City Council,PCC,Adult Social Care,Physical Support Adults (75 - 84),ADULT SERVICES,Third Party Payments,Other establishments,02/05/2018,6220164,204.36,VENDOR,APEX PROPERTY VENTURES LTD,108437
Portsmouth City Council,PCC,Adult Social Care,Physical Support Older People (85+),ADULT SERVICES,Third Party Payments,Other establishments,02/05/2018,6220164,252.94,VENDOR,APEX PROPERTY VENTURES LTD,108437
Portsmouth City Council,PCC,Adult Social Care,Physical Support Older People (85+),ADULT SERVICES,Third Party Payments,Other establishments,02/05/2018,6220164,919.62,VENDOR,APEX PROPERTY VENTURES LTD,108437
Portsmouth City Council,PCC,Adult Social Care,Physical Support Older People (85+),ADULT SERVICES,Third Party Payments,Other establishments,02/05/2018,6220164,1104.3,VENDOR,APEX PROPERTY VENTURES LTD,108437
Portsmouth City Council,PCC,Adult Social Care,Physical Support Adults (18 - 64),ADULT SERVICES,Third Party Payments,Other establishments,02/05/2018,6220164,277.08,VENDOR,APEX PROPERTY VENTURES LTD,108437
Portsmouth City Council,PCC,Adult Social Care,Physical Support Adults (18 - 64),ADULT SERVICES,Third Party Payments,Other establishments,02/05/2018,6220164,182.73,VENDOR,APEX PROPERTY VENTURES LTD,108437
Portsmouth City Council,PCC,Adult Social Care,Physical Support Adults (18 - 64),ADULT SERVICES,Third Party Payments,Other establishments,02/05/2018,6220164,122.7,VENDOR,APEX PROPERTY VENTURES LTD,108437
Portsmouth City Council,PCC,Adult Social Care,Physical Support Older People (85+),ADULT SERVICES,Third Party Payments,Other establishments,02/05/2018,6220164,294.15,VENDOR,APEX PROPERTY VENTURES LTD,108437
Portsmouth City Council,PCC,Adult Social Care,Physical Support Adults (75 - 84),ADULT SERVICES,Third Party Payments,Other establishments,02/05/2018,6220164,153.27,VENDOR,APEX PROPERTY VENTURES LTD,108437
Portsmouth City Council,PCC,Adult Social Care,Physical Support Older People (85+),ADULT SERVICES,Third Party Payments,Other establishments,02/05/2018,6220164,184.05,VENDOR,APEX PROPERTY VENTURES LTD,108437
Portsmouth City Council,PCC,Adult Social Care,Physical Support Older People (85+),ADULT SERVICES,Third Party Payments,Other establishments,02/05/2018,6220164,817.44,VENDOR,APEX PROPERTY VENTURES LTD,108437
Portsmouth City Council,PCC,Adult Social Care,Physical Support Older People (85+),ADULT SERVICES,Third Party Payments,Other establishments,02/05/2018,6220164,981.6,VENDOR,APEX PROPERTY VENTURES LTD,108437
Portsmouth City Council,PCC,Adult Social Care,Physical Support Adults (75 - 84),ADULT SERVICES,Third Party Payments,Other establishments,02/05/2018,6220164,15.72,VENDOR,APEX PROPERTY VENTURES LTD,108437
Portsmouth City Council,PCC,Adult Social Care,Physical Support Older People (85+),ADULT SERVICES,Third Party Payments,Other establishments,02/05/2018,6220164,16.36,VENDOR,APEX PROPERTY VENTURES LTD,108437
Portsmouth City Council,PCC,Adult Social Care,Physical Support Adults (75 - 84),ADULT SERVICES,Third Party Payments,Other establishments,02/05/2018,6220164,255.45,VENDOR,APEX PROPERTY VENTURES LTD,108437
Portsmouth City Council,PCC,Adult Social Care,Physical Support Older People (85+),ADULT SERVICES,Third Party Payments,Other establishments,02/05/2018,6220164,306.75,VENDOR,APEX PROPERTY VENTURES LTD,108437
Portsmouth City Council,PCC,Adult Social Care,Physical Support Older People (85+),ADULT SERVICES,Third Party Payments,Other establishments,02/05/2018,6220164,196.5,VENDOR,APEX PROPERTY VENTURES LTD,108437
Portsmouth City Council,PCC,Adult Social Care,Physical Support Older People (85+),ADULT SERVICES,Third Party Payments,Other establishments,02/05/2018,6220164,249.17,VENDOR,APEX PROPERTY VENTURES LTD,108437
Portsmouth City Council,PCC,Adult Social Care,Physical Support Older People (85+),ADULT SERVICES,Third Party Payments,Other establishments,02/05/2018,6220164,196.5,VENDOR,APEX PROPERTY VENTURES LTD,108437
Portsmouth City Council,PCC,Adult Social Care,Physical Support Older People (85+),ADULT SERVICES,Third Party Payments,Other establishments,02/05/2018,6220164,124.3,VENDOR,APEX PROPERTY VENTURES LTD,108437
Portsmouth City Council,PCC,Adult Social Care,Physical Support Older People (85+),ADULT SERVICES,Third Party Payments,Other establishments,02/05/2018,6220164,397.49,VENDOR,APEX PROPERTY VENTURES LTD,108437
Portsmouth City Council,PCC,Adult Social Care,Physical Support Older People (85+),ADULT SERVICES,Third Party Payments,Other establishments,02/05/2018,6220164,437.87,VENDOR,APEX PROPERTY VENTURES LTD,108437
Portsmouth City Council,PCC,Adult Social Care,Physical Support Older People (85+),ADULT SERVICES,Third Party Payments,Other establishments,02/05/2018,6220164,94.32,VENDOR,APEX PROPERTY VENTURES LTD,108437
Portsmouth City Council,PCC,Adult Social Care,Physical Support Older People (85+),ADULT SERVICES,Third Party Payments,Other establishments,02/05/2018,6220164,130.56,VENDOR,APEX PROPERTY VENTURES LTD,108437
Portsmouth City Council,PCC,Adult Social Care,Physical Support Older People (85+),ADULT SERVICES,Third Party Payments,Other establishments,02/05/2018,6220164,255.45,VENDOR,APEX PROPERTY VENTURES LTD,108437
Portsmouth City Council,PCC,Adult Social Care,Physical Support Older People (85+),ADULT SERVICES,Third Party Payments,Other establishments,02/05/2018,6220164,310.68,VENDOR,APEX PROPERTY VENTURES LTD,108437
Portsmouth City Council,PCC,Adult Social Care,Physical Support Older People (85+),ADULT SERVICES,Third Party Payments,Other establishments,02/05/2018,6220164,204.36,VENDOR,APEX PROPERTY VENTURES LTD,108437
Portsmouth City Council,PCC,Adult Social Care,Physical Support Older People (85+),ADULT SERVICES,Third Party Payments,Other establishments,02/05/2018,6220164,245.4,VENDOR,APEX PROPERTY VENTURES LTD,108437
Portsmouth City Council,PCC,Adult Social Care,Physical Support Older People (65-74),ADULT SERVICES,Third Party Payments,Other establishments,02/05/2018,6220164,715.26,VENDOR,APEX PROPERTY VENTURES LTD,108437
Portsmouth City Council,PCC,Adult Social Care,Physical Support Older People (85+),ADULT SERVICES,Third Party Payments,Other establishments,02/05/2018,6220164,858.9,VENDOR,APEX PROPERTY VENTURES LTD,108437
Portsmouth City Council,PCC,Adult Social Care,Physical Support Older People (85+),ADULT SERVICES,Third Party Payments,Other establishments,02/05/2018,6220164,981.6,VENDOR,APEX PROPERTY VENTURES LTD,108437
Portsmouth City Council,PCC,Adult Social Care,Support with Memory and Cognition Older People (75 - 84),ADULT SERVICES,Third Party Payments,Other establishments,02/05/2018,6220164,817.44,VENDOR,APEX PROPERTY VENTURES LTD,108437
Portsmouth City Council,PCC,Adult Social Care,Physical Support Adults (75 - 84),ADULT SERVICES,Third Party Payments,Other establishments,02/05/2018,6220164,117.9,VENDOR,APEX PROPERTY VENTURES LTD,108437
Portsmouth City Council,PCC,Adult Social Care,Physical Support Older People (85+),ADULT SERVICES,Third Party Payments,Other establishments,02/05/2018,6220164,99.12,VENDOR,APEX PROPERTY VENTURES LTD,108437
Portsmouth City Council,PCC,Adult Social Care,Physical Support Adults (75 - 84),ADULT SERVICES,Third Party Payments,Other establishments,02/05/2018,6220164,306.54,VENDOR,APEX PROPERTY VENTURES LTD,108437
Portsmouth City Council,PCC,Adult Social Care,Physical Support Older People (85+),ADULT SERVICES,Third Party Payments,Other establishments,02/05/2018,6220164,368.1,VENDOR,APEX PROPERTY VENTURES LTD,108437
Portsmouth City Council,PCC,Adult Social Care,Physical Support Older People (85+),ADULT SERVICES,Third Party Payments,Other establishments,02/05/2018,6220164,919.62,VENDOR,APEX PROPERTY VENTURES LTD,108437
Portsmouth City Council,PCC,Adult Social Care,Physical Support Older People (85+),ADULT SERVICES,Third Party Payments,Other establishments,02/05/2018,6220164,1104.3,VENDOR,APEX PROPERTY VENTURES LTD,108437
Portsmouth City Council,PCC,Adult Social Care,Physical Support Older People (85+),ADULT SERVICES,Third Party Payments,Other establishments,02/05/2018,6220164,102.18,VENDOR,APEX PROPERTY VENTURES LTD,108437
Portsmouth City Council,PCC,Adult Social Care,Physical Support Older People (85+),ADULT SERVICES,Third Party Payments,Other establishments,02/05/2018,6220164,122.7,VENDOR,APEX PROPERTY VENTURES LTD,108437
Portsmouth City Council,PCC,Adult Social Care,Physical Support Older People (85+),ADULT SERVICES,Third Party Payments,Other establishments,02/05/2018,6220164,43.82,VENDOR,APEX PROPERTY VENTURES LTD,108437
Portsmouth City Council,PCC,Adult Social Care,Support with Memory and Cognition Older People (75 - 84),ADULT SERVICES,Third Party Payments,Other establishments,02/05/2018,6220164,17.05,VENDOR,APEX PROPERTY VENTURES LTD,108437
Portsmouth City Council,PCC,Adult Social Care,Support with Memory and Cognition Older People (75 - 84),ADULT SERVICES,Third Party Payments,Other establishments,02/05/2018,6220164,23.58,VENDOR,APEX PROPERTY VENTURES LTD,108437
Portsmouth City Council,PCC,Adult Social Care,Physical Support Adults (75 - 84),ADULT SERVICES,Third Party Payments,Other establishments,02/05/2018,6220164,141.48,VENDOR,APEX PROPERTY VENTURES LTD,108437
Portsmouth City Council,PCC,Adult Social Care,Physical Support Older People (85+),ADULT SERVICES,Third Party Payments,Other establishments,02/05/2018,6220164,147.56,VENDOR,APEX PROPERTY VENTURES LTD,108437
Portsmouth City Council,PCC,Adult Social Care,Physical Support Adults (75 - 84),ADULT SERVICES,Third Party Payments,Other establishments,02/05/2018,6220164,440.16,VENDOR,APEX PROPERTY VENTURES LTD,108437
Portsmouth City Council,PCC,Adult Social Care,Physical Support Older People (85+),ADULT SERVICES,Third Party Payments,Other establishments,02/05/2018,6220164,62.88,VENDOR,APEX PROPERTY VENTURES LTD,108437
Portsmouth City Council,PCC,Adult Social Care,Physical Support Older People (85+),ADULT SERVICES,Third Party Payments,Other establishments,02/05/2018,6220164,65.44,VENDOR,APEX PROPERTY VENTURES LTD,108437
Portsmouth City Council,PCC,Adult Social Care,Physical Support Older People (85+),ADULT SERVICES,Third Party Payments,Other establishments,02/05/2018,6220164,459.36,VENDOR,APEX PROPERTY VENTURES LTD,108437
Portsmouth City Council,PCC,Adult Social Care,Physical Support Older People (85+),ADULT SERVICES,Third Party Payments,Other establishments,02/05/2018,6220164,157.2,VENDOR,APEX PROPERTY VENTURES LTD,108437
Portsmouth City Council,PCC,Adult Social Care,Physical Support Older People (85+),ADULT SERVICES,Third Party Payments,Other establishments,02/05/2018,6220164,163.6,VENDOR,APEX PROPERTY VENTURES LTD,108437
Portsmouth City Council,PCC,Adult Social Care,Physical Support Adults (18 - 64),ADULT SERVICES,Third Party Payments,Other establishments,02/05/2018,6220164,153.27,VENDOR,APEX PROPERTY VENTURES LTD,108437
Portsmouth City Council,PCC,Adult Social Care,Physical Support Adults (18 - 64),ADULT SERVICES,Third Party Payments,Other establishments,02/05/2018,6220164,180.41,VENDOR,APEX PROPERTY VENTURES LTD,108437
Portsmouth City Council,PCC,Adult Social Care,Physical Support Older People (85+),ADULT SERVICES,Third Party Payments,Other establishments,02/05/2018,6220164,404.34,VENDOR,APEX PROPERTY VENTURES LTD,108437
Portsmouth City Council,PCC,Adult Social Care,Support with Memory and Cognition Older People (75 - 84),ADULT SERVICES,Third Party Payments,Other establishments,02/05/2018,6220164,495.18,VENDOR,APEX PROPERTY VENTURES LTD,108437
Portsmouth City Council,PCC,Adult Social Care,Physical Support Adults (18 - 64),ADULT SERVICES,Third Party Payments,Other establishments,02/05/2018,6220164,306.54,VENDOR,APEX PROPERTY VENTURES LTD,108437
Portsmouth City Council,PCC,Adult Social Care,Physical Support Older People (85+),ADULT SERVICES,Third Party Payments,Other establishments,02/05/2018,6220164,368.1,VENDOR,APEX PROPERTY VENTURES LTD,108437
Portsmouth City Council,PCC,Adult Social Care,Physical Support Older People (85+),ADULT SERVICES,Third Party Payments,Other establishments,02/05/2018,6220164,220.08,VENDOR,APEX PROPERTY VENTURES LTD,108437
Portsmouth City Council,PCC,Adult Social Care,Physical Support Older People (85+),ADULT SERVICES,Third Party Payments,Other establishments,02/05/2018,6220164,229.68,VENDOR,APEX PROPERTY VENTURES LTD,108437
Portsmouth City Council,PCC,Adult Social Care,Physical Support Older People (85+),ADULT SERVICES,Third Party Payments,Other establishments,02/05/2018,6220164,74.4,VENDOR,APEX PROPERTY VENTURES LTD,108437
Portsmouth City Council,PCC,Adult Social Care,Physical Support Older People (85+),ADULT SERVICES,Third Party Payments,Other establishments,02/05/2018,6220164,121.83,VENDOR,APEX PROPERTY VENTURES LTD,108437
Portsmouth City Council,PCC,Adult Social Care,Physical Support Adults (75 - 84),ADULT SERVICES,Third Party Payments,Other establishments,02/05/2018,6220164,55.02,VENDOR,APEX PROPERTY VENTURES LTD,108437
Portsmouth City Council,PCC,Adult Social Care,Physical Support Older People (85+),ADULT SERVICES,Third Party Payments,Other establishments,02/05/2018,6220164,55.82,VENDOR,APEX PROPERTY VENTURES LTD,108437
Portsmouth City Council,PCC,Adult Social Care,Physical Support Older People (85+),ADULT SERVICES,Third Party Payments,Other establishments,02/05/2018,6220164,47.16,VENDOR,APEX PROPERTY VENTURES LTD,108437
Portsmouth City Council,PCC,Adult Social Care,Physical Support Older People (85+),ADULT SERVICES,Third Party Payments,Other establishments,02/05/2018,6220164,49.08,VENDOR,APEX PROPERTY VENTURES LTD,108437
Portsmouth City Council,PCC,Adult Social Care,Physical Support Older People (85+),ADULT SERVICES,Third Party Payments,Other establishments,02/05/2018,6220164,518.76,VENDOR,APEX PROPERTY VENTURES LTD,108437
Portsmouth City Council,PCC,Adult Social Care,Physical Support Older People (85+),ADULT SERVICES,Third Party Payments,Other establishments,02/05/2018,6220164,723.12,VENDOR,APEX PROPERTY VENTURES LTD,108437
Portsmouth City Council,PCC,Adult Social Care,Physical Support Older People (85+),ADULT SERVICES,Third Party Payments,Other establishments,02/05/2018,6220164,690,VENDOR,APEX PROPERTY VENTURES LTD,108437
Portsmouth City Council,PCC,Adult Social Care,Physical Support Older People (85+),ADULT SERVICES,Third Party Payments,Other establishments,02/05/2018,6220164,503.04,VENDOR,APEX PROPERTY VENTURES LTD,108437
Portsmouth City Council,PCC,Adult Social Care,Physical Support Older People (85+),ADULT SERVICES,Third Party Payments,Other establishments,02/05/2018,6220164,490.24,VENDOR,APEX PROPERTY VENTURES LTD,108437
Portsmouth City Council,PCC,Adult Social Care,Physical Support Older People (85+),ADULT SERVICES,Third Party Payments,Other establishments,02/05/2018,6220164,49.08,VENDOR,APEX PROPERTY VENTURES LTD,108437
Portsmouth City Council,PCC,Adult Social Care,Physical Support Older People (85+),ADULT SERVICES,Third Party Payments,Other establishments,02/05/2018,6220164,47.16,VENDOR,APEX PROPERTY VENTURES LTD,108437
Portsmouth City Council,PCC,Adult Social Care,Physical Support Older People (85+),ADULT SERVICES,Third Party Payments,Other establishments,02/05/2018,6220164,44.99,VENDOR,APEX PROPERTY VENTURES LTD,108437
Portsmouth City Council,PCC,Adult Social Care,Physical Support Older People (85+),ADULT SERVICES,Third Party Payments,Other establishments,02/05/2018,6220164,94.32,VENDOR,APEX PROPERTY VENTURES LTD,108437
Portsmouth City Council,PCC,Adult Social Care,Physical Support Older People (85+),ADULT SERVICES,Third Party Payments,Other establishments,02/05/2018,6220164,7.86,VENDOR,APEX PROPERTY VENTURES LTD,108437
Portsmouth City Council,PCC,Adult Social Care,Physical Support Older People (85+),ADULT SERVICES,Third Party Payments,Other establishments,02/05/2018,6220164,122.7,VENDOR,APEX PROPERTY VENTURES LTD,108437
Portsmouth City Council,PCC,Adult Social Care,Physical Support Adults (75 - 84),ADULT SERVICES,Third Party Payments,Other establishments,02/05/2018,6220164,98.25,VENDOR,APEX PROPERTY VENTURES LTD,108437
Portsmouth City Council,PCC,Adult Social Care,Physical Support Adults (18 - 64),ADULT SERVICES,Third Party Payments,Other establishments,02/05/2018,6220164,122.7,VENDOR,APEX PROPERTY VENTURES LTD,108437
Portsmouth City Council,PCC,Adult Social Care,Physical Support Older People (85+),ADULT SERVICES,Third Party Payments,Other establishments,02/05/2018,6220164,117.9,VENDOR,APEX PROPERTY VENTURES LTD,108437
Portsmouth City Council,PCC,Adult Social Care,Physical Support Older People (85+),ADULT SERVICES,Third Party Payments,Other establishments,02/05/2018,6220164,235.8,VENDOR,APEX PROPERTY VENTURES LTD,108437
Portsmouth City Council,PCC,Adult Social Care,Physical Support Older People (85+),ADULT SERVICES,Third Party Payments,Other establishments,02/05/2018,6220164,224.95,VENDOR,APEX PROPERTY VENTURES LTD,108437
Portsmouth City Council,PCC,Adult Social Care,Social Care Activities,ADULT SERVICES,Third Party Payments,Other establishments,02/05/2018,6220164,1100.4,VENDOR,APEX PROPERTY VENTURES LTD,108437
Portsmouth City Council,PCC,Adult Social Care,Social Care Activities,ADULT SERVICES,Third Party Payments,Other establishments,02/05/2018,6220164,596.28,VENDOR,APEX PROPERTY VENTURES LTD,108437
Portsmouth City Council,PCC,Adult Social Care,Physical Support Older People (85+),ADULT SERVICES,Third Party Payments,Other establishments,02/05/2018,6220164,145.41,VENDOR,APEX PROPERTY VENTURES LTD,108437
Portsmouth City Council,PCC,Adult Social Care,Physical Support Older People (85+),ADULT SERVICES,Third Party Payments,Other establishments,02/05/2018,6220164,191.91,VENDOR,APEX PROPERTY VENTURES LTD,108437
Portsmouth City Council,PCC,Adult Social Care,Learning Disability Support  Adults (18 - 64),ADULT SERVICES,Third Party Payments,Other establishments,02/05/2018,6220164,900.8,VENDOR,APEX PROPERTY VENTURES LTD,108437
Portsmouth City Council,PCC,Adult Social Care,Physical Support Older People (85+),ADULT SERVICES,Third Party Payments,Other establishments,02/05/2018,6220164,422.47,VENDOR,APEX PROPERTY VENTURES LTD,108437
Portsmouth City Council,PCC,Adult Social Care,Physical Support Older People (85+),ADULT SERVICES,Third Party Payments,Other establishments,02/05/2018,6220164,477.05,VENDOR,APEX PROPERTY VENTURES LTD,108437
Portsmouth City Council,PCC,Adult Social Care,Physical Support Adults (75 - 84),ADULT SERVICES,Third Party Payments,Other establishments,02/05/2018,6220164,259.54,VENDOR,APEX PROPERTY VENTURES LTD,108437
Portsmouth City Council,PCC,Adult Social Care,Physical Support Older People (85+),ADULT SERVICES,Third Party Payments,Other establishments,02/05/2018,6220164,306.75,VENDOR,APEX PROPERTY VENTURES LTD,108437
Portsmouth City Council,PCC,Adult Social Care,Physical Support Adults (75 - 84),ADULT SERVICES,Third Party Payments,Other establishments,02/05/2018,6220164,408.72,VENDOR,APEX PROPERTY VENTURES LTD,108437
Portsmouth City Council,PCC,Adult Social Care,Physical Support Older People (85+),ADULT SERVICES,Third Party Payments,Other establishments,02/05/2018,6220164,32.72,VENDOR,APEX PROPERTY VENTURES LTD,108437
Portsmouth City Council,PCC,Adult Social Care,Physical Support Older People (85+),ADULT SERVICES,Third Party Payments,Other establishments,02/05/2018,6220164,490.8,VENDOR,APEX PROPERTY VENTURES LTD,108437
Portsmouth City Council,PCC,Adult Social Care,Physical Support Older People (85+),ADULT SERVICES,Third Party Payments,Other establishments,02/05/2018,6220164,31.44,VENDOR,APEX PROPERTY VENTURES LTD,108437
Portsmouth City Council,PCC,Adult Social Care,Physical Support Adults (75 - 84),ADULT SERVICES,Third Party Payments,Other establishments,02/05/2018,6220164,919.62,VENDOR,APEX PROPERTY VENTURES LTD,108437
Portsmouth City Council,PCC,Adult Social Care,Physical Support Older People (85+),ADULT SERVICES,Third Party Payments,Other establishments,02/05/2018,6220164,1104.3,VENDOR,APEX PROPERTY VENTURES LTD,108437
Portsmouth City Council,PCC,Adult Social Care,Physical Support Adults (18 - 64),ADULT SERVICES,Third Party Payments,Other establishments,02/05/2018,6220164,353.99,VENDOR,APEX PROPERTY VENTURES LTD,108437
Portsmouth City Council,PCC,Adult Social Care,Physical Support Adults (18 - 64),ADULT SERVICES,Third Party Payments,Other establishments,02/05/2018,6220164,479.46,VENDOR,APEX PROPERTY VENTURES LTD,108437
Portsmouth City Council,PCC,Adult Social Care,Physical Support Adults (18 - 64),ADULT SERVICES,Third Party Payments,Other establishments,02/05/2018,6220164,375.42,VENDOR,APEX PROPERTY VENTURES LTD,108437
Portsmouth City Council,PCC,Adult Social Care,Physical Support Adults (18 - 64),ADULT SERVICES,Third Party Payments,Other establishments,02/05/2018,6220164,385.61,VENDOR,APEX PROPERTY VENTURES LTD,108437
Portsmouth City Council,PCC,Adult Social Care,Social Support - Support for Carer,ADULT SERVICES,Third Party Payments,Other establishments,02/05/2018,6220164,108.16,VENDOR,APEX PROPERTY VENTURES LTD,108437
Portsmouth City Council,PCC,Adult Social Care,Social Support - Support for Carer,ADULT SERVICES,Third Party Payments,Other establishments,02/05/2018,6220164,112.64,VENDOR,APEX PROPERTY VENTURES LTD,108437
Portsmouth City Council,PCC,Adult Social Care,Physical Support Older People (85+),ADULT SERVICES,Third Party Payments,Other establishments,02/05/2018,6220164,19.41,VENDOR,APEX PROPERTY VENTURES LTD,108437
Portsmouth City Council,PCC,Adult Social Care,Physical Support Older People (85+),ADULT SERVICES,Third Party Payments,Other establishments,02/05/2018,6220164,44.75,VENDOR,APEX PROPERTY VENTURES LTD,108437
Portsmouth City Council,PCC,Adult Social Care,Physical Support Older People (85+),ADULT SERVICES,Third Party Payments,Other establishments,02/05/2018,6220164,102.18,VENDOR,APEX PROPERTY VENTURES LTD,108437
Portsmouth City Council,PCC,Adult Social Care,Physical Support Older People (85+),ADULT SERVICES,Third Party Payments,Other establishments,02/05/2018,6220164,122.7,VENDOR,APEX PROPERTY VENTURES LTD,108437
Portsmouth City Council,PCC,Adult Social Care,Physical Support Older People (85+),ADULT SERVICES,Third Party Payments,Other establishments,02/05/2018,6220164,1061.1,VENDOR,APEX PROPERTY VENTURES LTD,108437
Portsmouth City Council,PCC,Adult Social Care,Physical Support Older People (85+),ADULT SERVICES,Third Party Payments,Other establishments,02/05/2018,6220164,1155.3,VENDOR,APEX PROPERTY VENTURES LTD,108437
Portsmouth City Council,PCC,Adult Social Care,Physical Support Older People (65-74),ADULT SERVICES,Third Party Payments,Other establishments,02/05/2018,6220164,78.6,VENDOR,APEX PROPERTY VENTURES LTD,108437
Portsmouth City Council,PCC,Adult Social Care,Physical Support Older People (85+),ADULT SERVICES,Third Party Payments,Other establishments,02/05/2018,6220164,82.12,VENDOR,APEX PROPERTY VENTURES LTD,108437
Portsmouth City Council,PCC,Adult Social Care,Physical Support Older People (85+),ADULT SERVICES,Third Party Payments,Other establishments,02/05/2018,6220164,357.63,VENDOR,APEX PROPERTY VENTURES LTD,108437
Portsmouth City Council,PCC,Adult Social Care,Physical Support Older People (85+),ADULT SERVICES,Third Party Payments,Other establishments,02/05/2018,6220164,429.45,VENDOR,APEX PROPERTY VENTURES LTD,108437
Portsmouth City Council,PCC,Adult Social Care,Physical Support Adults (18 - 64),ADULT SERVICES,Third Party Payments,Other establishments,02/05/2018,6220164,121.83,VENDOR,APEX PROPERTY VENTURES LTD,108437
Portsmouth City Council,PCC,Adult Social Care,Physical Support Adults (18 - 64),ADULT SERVICES,Third Party Payments,Other establishments,02/05/2018,6220164,47.16,VENDOR,APEX PROPERTY VENTURES LTD,108437
Portsmouth City Council,PCC,Adult Social Care,Physical Support Adults (18 - 64),ADULT SERVICES,Third Party Payments,Other establishments,02/05/2018,6220164,49.08,VENDOR,APEX PROPERTY VENTURES LTD,108437
Portsmouth City Council,PCC,Adult Social Care,Physical Support Adults (18 - 64),ADULT SERVICES,Third Party Payments,Other establishments,02/05/2018,6220164,102.25,VENDOR,APEX PROPERTY VENTURES LTD,108437
Portsmouth City Council,PCC,Adult Social Care,Physical Support Older People (85+),ADULT SERVICES,Third Party Payments,Other establishments,02/05/2018,6220164,919.62,VENDOR,APEX PROPERTY VENTURES LTD,108437
Portsmouth City Council,PCC,Adult Social Care,Physical Support Older People (85+),ADULT SERVICES,Third Party Payments,Other establishments,02/05/2018,6220164,1087.94,VENDOR,APEX PROPERTY VENTURES LTD,108437
Portsmouth City Council,PCC,Adult Social Care,Physical Support Older People (85+),ADULT SERVICES,Third Party Payments,Other establishments,02/05/2018,6220164,94.32,VENDOR,APEX PROPERTY VENTURES LTD,108437
Portsmouth City Council,PCC,Adult Social Care,Physical Support Older People (85+),ADULT SERVICES,Third Party Payments,Other establishments,02/05/2018,6220164,130.56,VENDOR,APEX PROPERTY VENTURES LTD,108437
Portsmouth City Council,PCC,Adult Social Care,Physical Support Older People (85+),ADULT SERVICES,Third Party Payments,Other establishments,02/05/2018,6220164,475.53,VENDOR,APEX PROPERTY VENTURES LTD,108437
Portsmouth City Council,PCC,Adult Social Care,Physical Support Older People (85+),ADULT SERVICES,Third Party Payments,Other establishments,02/05/2018,6220164,568.51,VENDOR,APEX PROPERTY VENTURES LTD,108437
Portsmouth City Council,PCC,Adult Social Care,Physical Support Older People (85+),ADULT SERVICES,Third Party Payments,Other establishments,02/05/2018,6220164,343.28,VENDOR,APEX PROPERTY VENTURES LTD,108437
Portsmouth City Council,PCC,Adult Social Care,Physical Support Older People (85+),ADULT SERVICES,Third Party Payments,Other establishments,02/05/2018,6220164,490.8,VENDOR,APEX PROPERTY VENTURES LTD,108437
Portsmouth City Council,PCC,Adult Social Care,Physical Support Older People (65-74),ADULT SERVICES,Third Party Payments,Other establishments,02/05/2018,6220164,170.35,VENDOR,APEX PROPERTY VENTURES LTD,108437
Portsmouth City Council,PCC,Adult Social Care,Physical Support Older People (85+),ADULT SERVICES,Third Party Payments,Other establishments,02/05/2018,6220164,214.93,VENDOR,APEX PROPERTY VENTURES LTD,108437
Portsmouth City Council,PCC,Adult Social Care,Physical Support Older People (85+),ADULT SERVICES,Third Party Payments,Other establishments,02/05/2018,6220164,125.76,VENDOR,APEX PROPERTY VENTURES LTD,108437
Portsmouth City Council,PCC,Adult Social Care,Physical Support Older People (85+),ADULT SERVICES,Third Party Payments,Other establishments,02/05/2018,6220164,490.8,VENDOR,APEX PROPERTY VENTURES LTD,108437
Portsmouth City Council,PCC,Adult Social Care,Physical Support Older People (85+),ADULT SERVICES,Third Party Payments,Other establishments,02/05/2018,6220164,613.08,VENDOR,APEX PROPERTY VENTURES LTD,108437
Portsmouth City Council,PCC,Adult Social Care,Physical Support Older People (85+),ADULT SERVICES,Third Party Payments,Other establishments,02/05/2018,6220164,736.2,VENDOR,APEX PROPERTY VENTURES LTD,108437
Portsmouth City Council,PCC,Adult Social Care,Physical Support Adults (18 - 64),ADULT SERVICES,Third Party Payments,Other establishments,02/05/2018,6220164,218.1,VENDOR,APEX PROPERTY VENTURES LTD,108437
Portsmouth City Council,PCC,Adult Social Care,Support with Memory and Cognition Adults (18 - 64),ADULT SERVICES,Third Party Payments,Other establishments,02/05/2018,6220164,262.8,VENDOR,APEX PROPERTY VENTURES LTD,108437
Portsmouth City Council,PCC,Adult Social Care,Social Support - Support for Carer,ADULT SERVICES,Third Party Payments,Other establishments,02/05/2018,6220164,108.16,VENDOR,APEX PROPERTY VENTURES LTD,108437
Portsmouth City Council,PCC,Adult Social Care,Social Support - Support for Carer,ADULT SERVICES,Third Party Payments,Other establishments,02/05/2018,6220164,112.64,VENDOR,APEX PROPERTY VENTURES LTD,108437
Portsmouth City Council,PCC,Adult Social Care,Physical Support Adults (75 - 84),ADULT SERVICES,Third Party Payments,Other establishments,02/05/2018,6220164,102.18,VENDOR,APEX PROPERTY VENTURES LTD,108437
Portsmouth City Council,PCC,Adult Social Care,Physical Support Older People (85+),ADULT SERVICES,Third Party Payments,Other establishments,02/05/2018,6220164,122.7,VENDOR,APEX PROPERTY VENTURES LTD,108437
Portsmouth City Council,PCC,Adult Social Care,Physical Support Adults (75 - 84),ADULT SERVICES,Third Party Payments,Other establishments,02/05/2018,6220164,220.08,VENDOR,APEX PROPERTY VENTURES LTD,108437
Portsmouth City Council,PCC,Adult Social Care,Physical Support Older People (85+),ADULT SERVICES,Third Party Payments,Other establishments,02/05/2018,6220164,229.68,VENDOR,APEX PROPERTY VENTURES LTD,108437
Portsmouth City Council,PCC,Adult Social Care,Physical Support Older People (85+),ADULT SERVICES,Third Party Payments,Other establishments,02/05/2018,6220164,106.11,VENDOR,APEX PROPERTY VENTURES LTD,108437
Portsmouth City Council,PCC,Adult Social Care,Physical Support Older People (85+),ADULT SERVICES,Third Party Payments,Other establishments,02/05/2018,6220164,118.77,VENDOR,APEX PROPERTY VENTURES LTD,108437
Portsmouth City Council,PCC,Adult Social Care,Physical Support Adults (75 - 84),ADULT SERVICES,Third Party Payments,Other establishments,02/05/2018,6220164,165.06,VENDOR,APEX PROPERTY VENTURES LTD,108437
Portsmouth City Council,PCC,Adult Social Care,Physical Support Older People (85+),ADULT SERVICES,Third Party Payments,Other establishments,02/05/2018,6220164,172.26,VENDOR,APEX PROPERTY VENTURES LTD,108437
Portsmouth City Council,PCC,Adult Social Care,Physical Support Older People (85+),ADULT SERVICES,Third Party Payments,Other establishments,02/05/2018,6220164,110.04,VENDOR,APEX PROPERTY VENTURES LTD,108437
Portsmouth City Council,PCC,Adult Social Care,Physical Support Older People (85+),ADULT SERVICES,Third Party Payments,Other establishments,02/05/2018,6220164,114.84,VENDOR,APEX PROPERTY VENTURES LTD,108437
Portsmouth City Council,PCC,Adult Social Care,Physical Support Older People (85+),ADULT SERVICES,Third Party Payments,Other establishments,02/05/2018,6220164,110.04,VENDOR,APEX PROPERTY VENTURES LTD,108437
Portsmouth City Council,PCC,Adult Social Care,Physical Support Older People (85+),ADULT SERVICES,Third Party Payments,Other establishments,02/05/2018,6220164,114.84,VENDOR,APEX PROPERTY VENTURES LTD,108437
Portsmouth City Council,PCC,Adult Social Care,Physical Support Older People (85+),ADULT SERVICES,Third Party Payments,Other establishments,02/05/2018,6220164,7.86,VENDOR,APEX PROPERTY VENTURES LTD,108437
Portsmouth City Council,PCC,Adult Social Care,Physical Support Adults (75 - 84),ADULT SERVICES,Third Party Payments,Other establishments,02/05/2018,6220164,757.93,VENDOR,APEX PROPERTY VENTURES LTD,108437
Portsmouth City Council,PCC,Adult Social Care,Physical Support Older People (85+),ADULT SERVICES,Third Party Payments,Other establishments,02/05/2018,6220164,816.23,VENDOR,APEX PROPERTY VENTURES LTD,108437
Portsmouth City Council,PCC,Adult Social Care,Physical Support Older People (65-74),ADULT SERVICES,Third Party Payments,Other establishments,02/05/2018,6220164,281.88,VENDOR,APEX PROPERTY VENTURES LTD,108437
Portsmouth City Council,PCC,Adult Social Care,Physical Support Older People (85+),ADULT SERVICES,Third Party Payments,Other establishments,02/05/2018,6220164,306.75,VENDOR,APEX PROPERTY VENTURES LTD,108437
Portsmouth City Council,PCC,Adult Social Care,Physical Support Older People (85+),ADULT SERVICES,Third Party Payments,Other establishments,02/05/2018,6220164,634.97,VENDOR,APEX PROPERTY VENTURES LTD,108437
Portsmouth City Council,PCC,Adult Social Care,Physical Support Older People (85+),ADULT SERVICES,Third Party Payments,Other establishments,02/05/2018,6220164,630.92,VENDOR,APEX PROPERTY VENTURES LTD,108437
Portsmouth City Council,PCC,Adult Social Care,Physical Support Older People (85+),ADULT SERVICES,Third Party Payments,Other establishments,02/05/2018,6220164,39.3,VENDOR,APEX PROPERTY VENTURES LTD,108437
Portsmouth City Council,PCC,Adult Social Care,Physical Support Older People (85+),ADULT SERVICES,Third Party Payments,Other establishments,02/05/2018,6220164,122.7,VENDOR,APEX PROPERTY VENTURES LTD,108437
Portsmouth City Council,PCC,Adult Social Care,Physical Support Older People (85+),ADULT SERVICES,Third Party Payments,Other establishments,02/05/2018,6220164,155.42,VENDOR,APEX PROPERTY VENTURES LTD,108437
Portsmouth City Council,PCC,Adult Social Care,Physical Support Older People (85+),ADULT SERVICES,Third Party Payments,Other establishments,02/05/2018,6220164,78.6,VENDOR,APEX PROPERTY VENTURES LTD,108437
Portsmouth City Council,PCC,Adult Social Care,Physical Support Older People (85+),ADULT SERVICES,Third Party Payments,Other establishments,02/05/2018,6220164,269.94,VENDOR,APEX PROPERTY VENTURES LTD,108437
Portsmouth City Council,PCC,Adult Social Care,Physical Support Older People (85+),ADULT SERVICES,Third Party Payments,Other establishments,02/05/2018,6220164,1104.3,VENDOR,APEX PROPERTY VENTURES LTD,108437
Portsmouth City Council,PCC,Adult Social Care,Physical Support Adults (75 - 84),ADULT SERVICES,Third Party Payments,Other establishments,02/05/2018,6220164,102.18,VENDOR,APEX PROPERTY VENTURES LTD,108437
Portsmouth City Council,PCC,Adult Social Care,Physical Support Older People (85+),ADULT SERVICES,Third Party Payments,Other establishments,02/05/2018,6220164,130.56,VENDOR,APEX PROPERTY VENTURES LTD,108437
Portsmouth City Council,PCC,Adult Social Care,Physical Support Older People (85+),ADULT SERVICES,Third Party Payments,Other establishments,02/05/2018,6220164,51.09,VENDOR,APEX PROPERTY VENTURES LTD,108437
Portsmouth City Council,PCC,Adult Social Care,Physical Support Older People (85+),ADULT SERVICES,Third Party Payments,Other establishments,02/05/2018,6220164,61.35,VENDOR,APEX PROPERTY VENTURES LTD,108437
Portsmouth City Council,PCC,Adult Social Care,Physical Support Older People (85+),ADULT SERVICES,Third Party Payments,Other establishments,02/05/2018,6220164,110.04,VENDOR,APEX PROPERTY VENTURES LTD,108437
Portsmouth City Council,PCC,Adult Social Care,Physical Support Older People (85+),ADULT SERVICES,Third Party Payments,Other establishments,02/05/2018,6220164,16.68,VENDOR,APEX PROPERTY VENTURES LTD,108437
Portsmouth City Council,PCC,Adult Social Care,Physical Support Older People (85+),ADULT SERVICES,Third Party Payments,Other establishments,02/05/2018,6220164,204.36,VENDOR,APEX PROPERTY VENTURES LTD,108437
Portsmouth City Council,PCC,Adult Social Care,Physical Support Older People (85+),ADULT SERVICES,Third Party Payments,Other establishments,02/05/2018,6220164,245.4,VENDOR,APEX PROPERTY VENTURES LTD,108437
Portsmouth City Council,PCC,Adult Social Care,Physical Support Adults (18 - 64),ADULT SERVICES,Third Party Payments,Other establishments,02/05/2018,6220164,65.44,VENDOR,APEX PROPERTY VENTURES LTD,108437
Portsmouth City Council,PCC,Adult Social Care,Physical Support Older People (65-74),ADULT SERVICES,Third Party Payments,Other establishments,02/05/2018,6220164,62.88,VENDOR,APEX PROPERTY VENTURES LTD,108437
Portsmouth City Council,PCC,Adult Social Care,Physical Support Older People (65-74),ADULT SERVICES,Third Party Payments,Other establishments,02/05/2018,6220164,110.04,VENDOR,APEX PROPERTY VENTURES LTD,108437
Portsmouth City Council,PCC,Adult Social Care,Physical Support Older People (85+),ADULT SERVICES,Third Party Payments,Other establishments,02/05/2018,6220164,114.84,VENDOR,APEX PROPERTY VENTURES LTD,108437
Portsmouth City Council,PCC,Adult Social Care,Physical Support Older People (85+),ADULT SERVICES,Third Party Payments,Other establishments,02/05/2018,6220164,220.08,VENDOR,APEX PROPERTY VENTURES LTD,108437
Portsmouth City Council,PCC,Adult Social Care,Physical Support Older People (85+),ADULT SERVICES,Third Party Payments,Other establishments,02/05/2018,6220164,229.68,VENDOR,APEX PROPERTY VENTURES LTD,108437
Portsmouth City Council,PCC,Adult Social Care,Physical Support Older People (85+),ADULT SERVICES,Third Party Payments,Other establishments,02/05/2018,6220164,1084.68,VENDOR,APEX PROPERTY VENTURES LTD,108437
Portsmouth City Council,PCC,Adult Social Care,Physical Support Older People (85+),ADULT SERVICES,Third Party Payments,Other establishments,02/05/2018,6220164,1164.12,VENDOR,APEX PROPERTY VENTURES LTD,108437
Portsmouth City Council,PCC,Adult Social Care,Physical Support Older People (85+),ADULT SERVICES,Third Party Payments,Other establishments,02/05/2018,6220164,105.84,VENDOR,APEX PROPERTY VENTURES LTD,108437
Portsmouth City Council,PCC,Adult Social Care,Physical Support Older People (85+),ADULT SERVICES,Third Party Payments,Other establishments,02/05/2018,6220164,149.61,VENDOR,APEX PROPERTY VENTURES LTD,108437
Portsmouth City Council,PCC,Adult Social Care,Physical Support Older People (85+),ADULT SERVICES,Third Party Payments,Other establishments,02/05/2018,6220164,306.75,VENDOR,APEX PROPERTY VENTURES LTD,108437
Portsmouth City Council,PCC,Adult Social Care,Learning Disability Support  Adults (18 - 64),ADULT SERVICES,Third Party Payments,Other establishments,02/05/2018,6220164,149.34,VENDOR,APEX PROPERTY VENTURES LTD,108437
Portsmouth City Council,PCC,Adult Social Care,Learning Disability Support  Adults (18 - 64),ADULT SERVICES,Third Party Payments,Other establishments,02/05/2018,6220164,45.63,VENDOR,APEX PROPERTY VENTURES LTD,108437
Portsmouth City Council,PCC,Adult Social Care,Physical Support Older People (85+),ADULT SERVICES,Third Party Payments,Other establishments,02/05/2018,6220164,440.16,VENDOR,APEX PROPERTY VENTURES LTD,108437
Portsmouth City Council,PCC,Adult Social Care,Physical Support Older People (85+),ADULT SERVICES,Third Party Payments,Other establishments,02/05/2018,6220164,426.4,VENDOR,APEX PROPERTY VENTURES LTD,108437
Portsmouth City Council,PCC,Adult Social Care,Physical Support Older People (85+),ADULT SERVICES,Third Party Payments,Other establishments,02/05/2018,6220164,28.16,VENDOR,APEX PROPERTY VENTURES LTD,108437
Portsmouth City Council,PCC,Adult Social Care,Social Support - Support for Carer,ADULT SERVICES,Third Party Payments,Other establishments,02/05/2018,6220164,28.16,VENDOR,APEX PROPERTY VENTURES LTD,108437
Portsmouth City Council,PCC,Adult Social Care,Physical Support Older People (85+),ADULT SERVICES,Third Party Payments,Other establishments,24/05/2018,6224284,117.9,VENDOR,APEX PROPERTY VENTURES LTD,108437
Portsmouth City Council,PCC,Adult Social Care,Physical Support Older People (85+),ADULT SERVICES,Third Party Payments,Other establishments,24/05/2018,6224284,409.64,VENDOR,APEX PROPERTY VENTURES LTD,108437
Portsmouth City Council,PCC,Adult Social Care,Physical Support Older People (85+),ADULT SERVICES,Third Party Payments,Other establishments,02/05/2018,6220164,425.36,VENDOR,APEX PROPERTY VENTURES LTD,108437
Portsmouth City Council,PCC,Adult Social Care,Physical Support Older People (85+),ADULT SERVICES,Third Party Payments,Other establishments,02/05/2018,6220164,489.88,VENDOR,APEX PROPERTY VENTURES LTD,108437
Portsmouth City Council,PCC,Adult Social Care,Physical Support Adults (75 - 84),ADULT SERVICES,Third Party Payments,Other establishments,02/05/2018,6220164,68.49,VENDOR,APEX PROPERTY VENTURES LTD,108437
Portsmouth City Council,PCC,Adult Social Care,Physical Support Adults (75 - 84),ADULT SERVICES,Third Party Payments,Other establishments,02/05/2018,6220164,150.46,VENDOR,APEX PROPERTY VENTURES LTD,108437
Portsmouth City Council,PCC,Adult Social Care,Physical Support Older People (85+),ADULT SERVICES,Third Party Payments,Other establishments,02/05/2018,6220164,221.37,VENDOR,APEX PROPERTY VENTURES LTD,108437
Portsmouth City Council,PCC,Adult Social Care,Physical Support Older People (85+),ADULT SERVICES,Third Party Payments,Other establishments,02/05/2018,6220164,1021.8,VENDOR,APEX PROPERTY VENTURES LTD,108437
Portsmouth City Council,PCC,Adult Social Care,Physical Support Older People (85+),ADULT SERVICES,Third Party Payments,Other establishments,02/05/2018,6220164,1002.12,VENDOR,APEX PROPERTY VENTURES LTD,108437
Portsmouth City Council,PCC,Adult Social Care,Physical Support Adults (18 - 64),ADULT SERVICES,Third Party Payments,Other establishments,02/05/2018,6220164,117.9,VENDOR,APEX PROPERTY VENTURES LTD,108437
Portsmouth City Council,PCC,Adult Social Care,Physical Support Adults (18 - 64),ADULT SERVICES,Third Party Payments,Other establishments,02/05/2018,6220164,83.37,VENDOR,APEX PROPERTY VENTURES LTD,108437
Portsmouth City Council,PCC,Adult Social Care,Physical Support Older People (85+),ADULT SERVICES,Third Party Payments,Other establishments,02/05/2018,6220164,208.29,VENDOR,APEX PROPERTY VENTURES LTD,108437
Portsmouth City Council,PCC,Adult Social Care,Physical Support Older People (85+),ADULT SERVICES,Third Party Payments,Other establishments,02/05/2018,6220164,241.47,VENDOR,APEX PROPERTY VENTURES LTD,108437
Portsmouth City Council,PCC,Adult Social Care,Physical Support Older People (85+),ADULT SERVICES,Third Party Payments,Other establishments,02/05/2018,6220164,67.37,VENDOR,APEX PROPERTY VENTURES LTD,108437
Portsmouth City Council,PCC,Adult Social Care,Physical Support Older People (85+),ADULT SERVICES,Third Party Payments,Other establishments,02/05/2018,6220164,93.03,VENDOR,APEX PROPERTY VENTURES LTD,108437
Portsmouth City Council,PCC,Adult Social Care,Physical Support Older People (85+),ADULT SERVICES,Third Party Payments,Other establishments,02/05/2018,6220164,385.14,VENDOR,APEX PROPERTY VENTURES LTD,108437
Portsmouth City Council,PCC,Adult Social Care,Physical Support Older People (85+),ADULT SERVICES,Third Party Payments,Other establishments,02/05/2018,6220164,47.16,VENDOR,APEX PROPERTY VENTURES LTD,108437
Portsmouth City Council,PCC,Adult Social Care,Physical Support Older People (85+),ADULT SERVICES,Third Party Payments,Other establishments,02/05/2018,6220164,396.96,VENDOR,APEX PROPERTY VENTURES LTD,108437
Portsmouth City Council,PCC,Adult Social Care,Physical Support Older People (85+),ADULT SERVICES,Third Party Payments,Other establishments,02/05/2018,6220164,49.08,VENDOR,APEX PROPERTY VENTURES LTD,108437
Portsmouth City Council,PCC,Adult Social Care,Physical Support Older People (85+),ADULT SERVICES,Third Party Payments,Other establishments,02/05/2018,6220164,49.08,VENDOR,APEX PROPERTY VENTURES LTD,108437
Portsmouth City Council,PCC,Adult Social Care,Physical Support Older People (85+),ADULT SERVICES,Third Party Payments,Other establishments,02/05/2018,6220164,47.16,VENDOR,APEX PROPERTY VENTURES LTD,108437
Portsmouth City Council,PCC,Adult Social Care,Physical Support Older People (85+),ADULT SERVICES,Third Party Payments,Other establishments,02/05/2018,6220164,385.14,VENDOR,APEX PROPERTY VENTURES LTD,108437
Portsmouth City Council,PCC,Adult Social Care,Physical Support Older People (85+),ADULT SERVICES,Third Party Payments,Other establishments,02/05/2018,6220164,401.94,VENDOR,APEX PROPERTY VENTURES LTD,108437
Portsmouth City Council,PCC,Adult Social Care,Physical Support Older People (65-74),ADULT SERVICES,Third Party Payments,Other establishments,02/05/2018,6220164,68.48,VENDOR,APEX PROPERTY VENTURES LTD,108437
Portsmouth City Council,PCC,Adult Social Care,Physical Support Older People (85+),ADULT SERVICES,Third Party Payments,Other establishments,02/05/2018,6220164,67.7,VENDOR,APEX PROPERTY VENTURES LTD,108437
Portsmouth City Council,PCC,Adult Social Care,Physical Support Adults (18 - 64),ADULT SERVICES,Third Party Payments,Other establishments,02/05/2018,6220164,73.94,VENDOR,APEX PROPERTY VENTURES LTD,108437
Portsmouth City Council,PCC,Adult Social Care,Physical Support Older People (85+),ADULT SERVICES,Third Party Payments,Other establishments,02/05/2018,6220164,78.6,VENDOR,APEX PROPERTY VENTURES LTD,108437
Portsmouth City Council,PCC,Adult Social Care,Physical Support Adults (18 - 64),ADULT SERVICES,Third Party Payments,Other establishments,02/05/2018,6220164,245.4,VENDOR,APEX PROPERTY VENTURES LTD,108437
Portsmouth City Council,PCC,Adult Social Care,Sensory Support Adults (18 - 64),ADULT SERVICES,Third Party Payments,Other establishments,02/05/2018,6220164,216.15,VENDOR,APEX PROPERTY VENTURES LTD,108437
Portsmouth City Council,PCC,Adult Social Care,Physical Support Older People (85+),ADULT SERVICES,Third Party Payments,Other establishments,02/05/2018,6220164,130.56,VENDOR,APEX PROPERTY VENTURES LTD,108437
Portsmouth City Council,PCC,Adult Social Care,Sensory Support Older People (75 - 84),ADULT SERVICES,Third Party Payments,Other establishments,02/05/2018,6220164,94.32,VENDOR,APEX PROPERTY VENTURES LTD,108437
Portsmouth City Council,PCC,Adult Social Care,Physical Support Older People (85+),ADULT SERVICES,Third Party Payments,Other establishments,02/05/2018,6220164,86.46,VENDOR,APEX PROPERTY VENTURES LTD,108437
Portsmouth City Council,PCC,Adult Social Care,Physical Support Older People (85+),ADULT SERVICES,Third Party Payments,Other establishments,02/05/2018,6220164,65.76,VENDOR,APEX PROPERTY VENTURES LTD,108437
Portsmouth City Council,PCC,Adult Social Care,Physical Support Older People (85+),ADULT SERVICES,Third Party Payments,Other establishments,02/05/2018,6220164,294.75,VENDOR,APEX PROPERTY VENTURES LTD,108437
Portsmouth City Council,PCC,Adult Social Care,Physical Support Older People (85+),ADULT SERVICES,Third Party Payments,Other establishments,02/05/2018,6220164,131.11,VENDOR,APEX PROPERTY VENTURES LTD,108437
Portsmouth City Council,PCC,Adult Social Care,Physical Support Adults (75 - 84),ADULT SERVICES,Third Party Payments,Other establishments,02/05/2018,6220164,817.44,VENDOR,APEX PROPERTY VENTURES LTD,108437
Portsmouth City Council,PCC,Adult Social Care,Physical Support Older People (85+),ADULT SERVICES,Third Party Payments,Other establishments,02/05/2018,6220164,1058.35,VENDOR,APEX PROPERTY VENTURES LTD,108437
Portsmouth City Council,PCC,Adult Social Care,Physical Support Older People (85+),ADULT SERVICES,Third Party Payments,Other establishments,02/05/2018,6220164,102.18,VENDOR,APEX PROPERTY VENTURES LTD,108437
Portsmouth City Council,PCC,Adult Social Care,Physical Support Older People (85+),ADULT SERVICES,Third Party Payments,Other establishments,02/05/2018,6220164,122.7,VENDOR,APEX PROPERTY VENTURES LTD,108437
Portsmouth City Council,PCC,Adult Social Care,Physical Support Older People (85+),ADULT SERVICES,Third Party Payments,Other establishments,02/05/2018,6220164,102.18,VENDOR,APEX PROPERTY VENTURES LTD,108437
Portsmouth City Council,PCC,Adult Social Care,Physical Support Older People (85+),ADULT SERVICES,Third Party Payments,Other establishments,02/05/2018,6220164,122.7,VENDOR,APEX PROPERTY VENTURES LTD,108437
Portsmouth City Council,PCC,Adult Social Care,Physical Support Older People (85+),ADULT SERVICES,Third Party Payments,Other establishments,02/05/2018,6220164,613.08,VENDOR,APEX PROPERTY VENTURES LTD,108437
Portsmouth City Council,PCC,Adult Social Care,Physical Support Older People (85+),ADULT SERVICES,Third Party Payments,Other establishments,02/05/2018,6220164,736.2,VENDOR,APEX PROPERTY VENTURES LTD,108437
Portsmouth City Council,PCC,Adult Social Care,Learning Disability Support  Adults (18 - 64),ADULT SERVICES,Third Party Payments,Other establishments,02/05/2018,6220164,110.04,VENDOR,APEX PROPERTY VENTURES LTD,108437
Portsmouth City Council,PCC,Adult Social Care,Learning Disability Support  Adults (18 - 64),ADULT SERVICES,Third Party Payments,Other establishments,02/05/2018,6220164,114.84,VENDOR,APEX PROPERTY VENTURES LTD,108437
Portsmouth City Council,PCC,Adult Social Care,Learning Disability Support  Adults (18 - 64),ADULT SERVICES,Third Party Payments,Other establishments,02/05/2018,6220164,141.48,VENDOR,APEX PROPERTY VENTURES LTD,108437
Portsmouth City Council,PCC,Adult Social Care,Learning Disability Support  Adults (18 - 64),ADULT SERVICES,Third Party Payments,Other establishments,02/05/2018,6220164,147.72,VENDOR,APEX PROPERTY VENTURES LTD,108437
Portsmouth City Council,PCC,Adult Social Care,Physical Support Older People (85+),ADULT SERVICES,Third Party Payments,Other establishments,02/05/2018,6220164,1024.85,VENDOR,APEX PROPERTY VENTURES LTD,108437
Portsmouth City Council,PCC,Adult Social Care,Physical Support Older People (85+),ADULT SERVICES,Third Party Payments,Other establishments,02/05/2018,6220164,1223.95,VENDOR,APEX PROPERTY VENTURES LTD,108437
Portsmouth City Council,PCC,Adult Social Care,Physical Support Older People (85+),ADULT SERVICES,Third Party Payments,Other establishments,02/05/2018,6220164,330.12,VENDOR,APEX PROPERTY VENTURES LTD,108437
Portsmouth City Council,PCC,Adult Social Care,Physical Support Older People (85+),ADULT SERVICES,Third Party Payments,Other establishments,02/05/2018,6220164,336.34,VENDOR,APEX PROPERTY VENTURES LTD,108437
Portsmouth City Council,PCC,Adult Social Care,Physical Support Adults (18 - 64),ADULT SERVICES,Third Party Payments,Other establishments,02/05/2018,6220164,487.32,VENDOR,APEX PROPERTY VENTURES LTD,108437
Portsmouth City Council,PCC,Adult Social Care,Physical Support Adults (18 - 64),ADULT SERVICES,Third Party Payments,Other establishments,02/05/2018,6220164,491.72,VENDOR,APEX PROPERTY VENTURES LTD,108437
Portsmouth City Council,PCC,Adult Social Care,Physical Support Adults (18 - 64),ADULT SERVICES,Third Party Payments,Other establishments,02/05/2018,6220164,116.53,VENDOR,APEX PROPERTY VENTURES LTD,108437
Portsmouth City Council,PCC,Adult Social Care,Support with Memory and Cognition Adults (18 - 64),ADULT SERVICES,Third Party Payments,Other establishments,02/05/2018,6220164,108.35,VENDOR,APEX PROPERTY VENTURES LTD,108437
Portsmouth City Council,PCC,Adult Social Care,Physical Support Older People (85+),ADULT SERVICES,Third Party Payments,Other establishments,02/05/2018,6220164,125.76,VENDOR,APEX PROPERTY VENTURES LTD,108437
Portsmouth City Council,PCC,Adult Social Care,Physical Support Older People (85+),ADULT SERVICES,Third Party Payments,Other establishments,02/05/2018,6220164,179.96,VENDOR,APEX PROPERTY VENTURES LTD,108437
Portsmouth City Council,PCC,Adult Social Care,Physical Support Older People (85+),ADULT SERVICES,Third Party Payments,Other establishments,02/05/2018,6220164,179.64,VENDOR,APEX PROPERTY VENTURES LTD,108437
Portsmouth City Council,PCC,Adult Social Care,Physical Support Adults (75 - 84),ADULT SERVICES,Third Party Payments,Other establishments,02/05/2018,6220164,35.37,VENDOR,APEX PROPERTY VENTURES LTD,108437
Portsmouth City Council,PCC,Adult Social Care,Physical Support Adults (75 - 84),ADULT SERVICES,Third Party Payments,Other establishments,02/05/2018,6220164,52.21,VENDOR,APEX PROPERTY VENTURES LTD,108437
Portsmouth City Council,PCC,Adult Social Care,Physical Support Older People (85+),ADULT SERVICES,Third Party Payments,Other establishments,02/05/2018,6220164,104.9,VENDOR,APEX PROPERTY VENTURES LTD,108437
Portsmouth City Council,PCC,Adult Social Care,Physical Support Older People (85+),ADULT SERVICES,Third Party Payments,Other establishments,02/05/2018,6220164,70.74,VENDOR,APEX PROPERTY VENTURES LTD,108437
Portsmouth City Council,PCC,Adult Social Care,Physical Support Older People (85+),ADULT SERVICES,Third Party Payments,Other establishments,02/05/2018,6220164,57.74,VENDOR,APEX PROPERTY VENTURES LTD,108437
Portsmouth City Council,PCC,Adult Social Care,Social Care Activities,ADULT SERVICES,Third Party Payments,Other establishments,02/05/2018,6220164,330.12,VENDOR,APEX PROPERTY VENTURES LTD,108437
Portsmouth City Council,PCC,Adult Social Care,Social Care Activities,ADULT SERVICES,Third Party Payments,Other establishments,02/05/2018,6220164,119.64,VENDOR,APEX PROPERTY VENTURES LTD,108437
Portsmouth City Council,PCC,Adult Social Care,Physical Support Older People (85+),ADULT SERVICES,Third Party Payments,Other establishments,02/05/2018,6220164,251.52,VENDOR,APEX PROPERTY VENTURES LTD,108437
Portsmouth City Council,PCC,Adult Social Care,Physical Support Older People (85+),ADULT SERVICES,Third Party Payments,Other establishments,02/05/2018,6220164,151.08,VENDOR,APEX PROPERTY VENTURES LTD,108437
Portsmouth City Council,PCC,Adult Social Care,Physical Support Adults (18 - 64),ADULT SERVICES,Third Party Payments,Other establishments,02/05/2018,6220164,943.2,VENDOR,APEX PROPERTY VENTURES LTD,108437
Portsmouth City Council,PCC,Adult Social Care,Physical Support Older People (65-74),ADULT SERVICES,Third Party Payments,Other establishments,02/05/2018,6220164,880.32,VENDOR,APEX PROPERTY VENTURES LTD,108437
Portsmouth City Council,PCC,Adult Social Care,Physical Support Older People (85+),ADULT SERVICES,Third Party Payments,Other establishments,02/05/2018,6220164,918.72,VENDOR,APEX PROPERTY VENTURES LTD,108437
Portsmouth City Council,PCC,Adult Social Care,Physical Support Adults (75 - 84),ADULT SERVICES,Third Party Payments,Other establishments,02/05/2018,6220164,78.6,VENDOR,APEX PROPERTY VENTURES LTD,108437
Portsmouth City Council,PCC,Adult Social Care,Physical Support Older People (85+),ADULT SERVICES,Third Party Payments,Other establishments,02/05/2018,6220164,81.8,VENDOR,APEX PROPERTY VENTURES LTD,108437
Portsmouth City Council,PCC,Adult Social Care,Physical Support Older People (85+),ADULT SERVICES,Third Party Payments,Other establishments,02/05/2018,6220164,225.18,VENDOR,APEX PROPERTY VENTURES LTD,108437
Portsmouth City Council,PCC,Adult Social Care,Physical Support Older People (65-74),ADULT SERVICES,Third Party Payments,Other establishments,02/05/2018,6220164,117.9,VENDOR,APEX PROPERTY VENTURES LTD,108437
Portsmouth City Council,PCC,Adult Social Care,Physical Support Older People (85+),ADULT SERVICES,Third Party Payments,Other establishments,02/05/2018,6220164,106.98,VENDOR,APEX PROPERTY VENTURES LTD,108437
Portsmouth City Council,PCC,Adult Social Care,Physical Support Adults (75 - 84),ADULT SERVICES,Third Party Payments,Other establishments,02/05/2018,6220164,681,VENDOR,APEX PROPERTY VENTURES LTD,108437
Portsmouth City Council,PCC,Adult Social Care,Physical Support Older People (85+),ADULT SERVICES,Third Party Payments,Other establishments,02/05/2018,6220164,589.36,VENDOR,APEX PROPERTY VENTURES LTD,108437
Portsmouth City Council,PCC,Adult Social Care,Physical Support Older People (65-74),ADULT SERVICES,Third Party Payments,Other establishments,02/05/2018,6220164,36.5,VENDOR,APEX PROPERTY VENTURES LTD,108437
Portsmouth City Council,PCC,Adult Social Care,Physical Support Older People (65-74),ADULT SERVICES,Third Party Payments,Other establishments,02/05/2018,6220164,31.44,VENDOR,APEX PROPERTY VENTURES LTD,108437
Portsmouth City Council,PCC,Adult Social Care,Physical Support Adults (18 - 64),ADULT SERVICES,Third Party Payments,Other establishments,02/05/2018,6220164,161.63,VENDOR,APEX PROPERTY VENTURES LTD,108437
Portsmouth City Council,PCC,Adult Social Care,Physical Support Adults (18 - 64),ADULT SERVICES,Third Party Payments,Other establishments,02/05/2018,6220164,184.05,VENDOR,APEX PROPERTY VENTURES LTD,108437
Portsmouth City Council,PCC,Adult Social Care,Physical Support Adults (18 - 64),ADULT SERVICES,Third Party Payments,Other establishments,02/05/2018,6220164,204.36,VENDOR,APEX PROPERTY VENTURES LTD,108437
Portsmouth City Council,PCC,Adult Social Care,Physical Support Adults (18 - 64),ADULT SERVICES,Third Party Payments,Other establishments,02/05/2018,6220164,209.39,VENDOR,APEX PROPERTY VENTURES LTD,108437
Portsmouth City Council,PCC,Adult Social Care,Physical Support Older People (85+),ADULT SERVICES,Third Party Payments,Other establishments,02/05/2018,6220164,220.08,VENDOR,APEX PROPERTY VENTURES LTD,108437
Portsmouth City Council,PCC,Adult Social Care,Physical Support Older People (85+),ADULT SERVICES,Third Party Payments,Other establishments,02/05/2018,6220164,91.26,VENDOR,APEX PROPERTY VENTURES LTD,108437
Portsmouth City Council,PCC,Adult Social Care,Physical Support Older People (85+),ADULT SERVICES,Third Party Payments,Other establishments,02/05/2018,6220164,464.25,VENDOR,APEX PROPERTY VENTURES LTD,108437
Portsmouth City Council,PCC,Adult Social Care,Physical Support Older People (85+),ADULT SERVICES,Third Party Payments,Other establishments,02/05/2018,6220164,547.71,VENDOR,APEX PROPERTY VENTURES LTD,108437
Portsmouth City Council,PCC,Adult Social Care,Physical Support Older People (85+),ADULT SERVICES,Third Party Payments,Other establishments,02/05/2018,6220164,151.6,VENDOR,APEX PROPERTY VENTURES LTD,108437
Portsmouth City Council,PCC,Adult Social Care,Physical Support Older People (65-74),ADULT SERVICES,Third Party Payments,Other establishments,02/05/2018,6220164,919.62,VENDOR,APEX PROPERTY VENTURES LTD,108437
Portsmouth City Council,PCC,Adult Social Care,Physical Support Older People (85+),ADULT SERVICES,Third Party Payments,Other establishments,02/05/2018,6220164,754.18,VENDOR,APEX PROPERTY VENTURES LTD,108437
Portsmouth City Council,PCC,Adult Social Care,Physical Support Older People (85+),ADULT SERVICES,Third Party Payments,Other establishments,02/05/2018,6220164,102.18,VENDOR,APEX PROPERTY VENTURES LTD,108437
Portsmouth City Council,PCC,Adult Social Care,Physical Support Older People (85+),ADULT SERVICES,Third Party Payments,Other establishments,02/05/2018,6220164,90.3,VENDOR,APEX PROPERTY VENTURES LTD,108437
Portsmouth City Council,PCC,Adult Social Care,Physical Support Older People (85+),ADULT SERVICES,Third Party Payments,Other establishments,02/05/2018,6220164,1135.77,VENDOR,APEX PROPERTY VENTURES LTD,108437
Portsmouth City Council,PCC,Adult Social Care,Physical Support Older People (85+),ADULT SERVICES,Third Party Payments,Other establishments,02/05/2018,6220164,1261.96,VENDOR,APEX PROPERTY VENTURES LTD,108437
Portsmouth City Council,PCC,Adult Social Care,Physical Support Older People (85+),ADULT SERVICES,Third Party Payments,Other establishments,02/05/2018,6220164,220.08,VENDOR,APEX PROPERTY VENTURES LTD,108437
Portsmouth City Council,PCC,Adult Social Care,Physical Support Older People (85+),ADULT SERVICES,Third Party Payments,Other establishments,02/05/2018,6220164,229.68,VENDOR,APEX PROPERTY VENTURES LTD,108437
Portsmouth City Council,PCC,Adult Social Care,Physical Support Older People (85+),ADULT SERVICES,Third Party Payments,Other establishments,02/05/2018,6220164,29.21,VENDOR,APEX PROPERTY VENTURES LTD,108437
Portsmouth City Council,PCC,Adult Social Care,Physical Support Older People (85+),ADULT SERVICES,Third Party Payments,Other establishments,02/05/2018,6220164,175.15,VENDOR,APEX PROPERTY VENTURES LTD,108437
Portsmouth City Council,PCC,Adult Social Care,Physical Support Older People (85+),ADULT SERVICES,Third Party Payments,Other establishments,02/05/2018,6220164,249.33,VENDOR,APEX PROPERTY VENTURES LTD,108437
Portsmouth City Council,PCC,Adult Social Care,Physical Support Older People (85+),ADULT SERVICES,Third Party Payments,Other establishments,02/05/2018,6220164,770.28,VENDOR,APEX PROPERTY VENTURES LTD,108437
Portsmouth City Council,PCC,Adult Social Care,Physical Support Older People (85+),ADULT SERVICES,Third Party Payments,Other establishments,02/05/2018,6220164,404.98,VENDOR,APEX PROPERTY VENTURES LTD,108437
Portsmouth City Council,PCC,Adult Social Care,Physical Support Older People (65-74),ADULT SERVICES,Third Party Payments,Other establishments,02/05/2018,6220164,157.2,VENDOR,APEX PROPERTY VENTURES LTD,108437
Portsmouth City Council,PCC,Adult Social Care,Physical Support Older People (85+),ADULT SERVICES,Third Party Payments,Other establishments,02/05/2018,6220164,52.92,VENDOR,APEX PROPERTY VENTURES LTD,108437
Portsmouth City Council,PCC,Adult Social Care,Physical Support Older People (85+),ADULT SERVICES,Third Party Payments,Other establishments,02/05/2018,6220164,165.06,VENDOR,APEX PROPERTY VENTURES LTD,108437
Portsmouth City Council,PCC,Adult Social Care,Physical Support Older People (85+),ADULT SERVICES,Third Party Payments,Other establishments,02/05/2018,6220164,168.17,VENDOR,APEX PROPERTY VENTURES LTD,108437
Portsmouth City Council,PCC,Adult Social Care,Learning Disability Support  Adults (18 - 64),ADULT SERVICES,Third Party Payments,Other establishments,02/05/2018,6220164,78.6,VENDOR,APEX PROPERTY VENTURES LTD,108437
Portsmouth City Council,PCC,Adult Social Care,Learning Disability Support  Adults (18 - 64),ADULT SERVICES,Third Party Payments,Other establishments,02/05/2018,6220164,65.76,VENDOR,APEX PROPERTY VENTURES LTD,108437
Portsmouth City Council,PCC,Adult Social Care,Physical Support Older People (85+),ADULT SERVICES,Third Party Payments,Other establishments,02/05/2018,6220164,47.16,VENDOR,APEX PROPERTY VENTURES LTD,108437
Portsmouth City Council,PCC,Adult Social Care,Physical Support Older People (85+),ADULT SERVICES,Third Party Payments,Other establishments,02/05/2018,6220164,49.08,VENDOR,APEX PROPERTY VENTURES LTD,108437
Portsmouth City Council,PCC,Housing Revenue Account,Special Services,PROPERTY & HOUSING,Employees,Direct employee expenses,09/05/2018,6221091,3507.88,VENDOR,APEX PROPERTY VENTURES LTD,108437
Portsmouth City Council,PCC,Housing Revenue Account,Special Services,PROPERTY & HOUSING,Employees,Direct employee expenses,18/05/2018,6222879,1733.56,VENDOR,APEX PROPERTY VENTURES LTD,108437
Portsmouth City Council,PCC,Housing Revenue Account,Special Services,PROPERTY & HOUSING,Employees,Direct employee expenses,18/05/2018,6222879,1797.69,VENDOR,APEX PROPERTY VENTURES LTD,108437
Portsmouth City Council,PCC,Adult Social Care,Physical Support Older People (85+),ADULT SERVICES,Third Party Payments,Other establishments,31/05/2018,6225386,57.26,VENDOR,APEX PROPERTY VENTURES LTD,108437
Portsmouth City Council,PCC,Adult Social Care,Physical Support Older People (85+),ADULT SERVICES,Third Party Payments,Other establishments,31/05/2018,6225386,490.8,VENDOR,APEX PROPERTY VENTURES LTD,108437
Portsmouth City Council,PCC,Adult Social Care,Physical Support Older People (85+),ADULT SERVICES,Third Party Payments,Other establishments,31/05/2018,6225386,147.24,VENDOR,APEX PROPERTY VENTURES LTD,108437
Portsmouth City Council,PCC,Adult Social Care,Social Care Activities,ADULT SERVICES,Third Party Payments,Other establishments,31/05/2018,6225386,2175.88,VENDOR,APEX PROPERTY VENTURES LTD,108437
Portsmouth City Council,PCC,Adult Social Care,Physical Support Older People (85+),ADULT SERVICES,Third Party Payments,Other establishments,31/05/2018,6225386,36.81,VENDOR,APEX PROPERTY VENTURES LTD,108437
Portsmouth City Council,PCC,Adult Social Care,Physical Support Adults (18 - 64),ADULT SERVICES,Third Party Payments,Other establishments,31/05/2018,6225386,196.32,VENDOR,APEX PROPERTY VENTURES LTD,108437
Portsmouth City Council,PCC,Adult Social Care,Physical Support Older People (85+),ADULT SERVICES,Third Party Payments,Other establishments,31/05/2018,6225386,2282.22,VENDOR,APEX PROPERTY VENTURES LTD,108437
Portsmouth City Council,PCC,Adult Social Care,Physical Support Older People (85+),ADULT SERVICES,Third Party Payments,Other establishments,31/05/2018,6225386,49.08,VENDOR,APEX PROPERTY VENTURES LTD,108437
Portsmouth City Council,PCC,Adult Social Care,Physical Support Older People (85+),ADULT SERVICES,Third Party Payments,Other establishments,31/05/2018,6225386,687.12,VENDOR,APEX PROPERTY VENTURES LTD,108437
Portsmouth City Council,PCC,Adult Social Care,Physical Support Older People (85+),ADULT SERVICES,Third Party Payments,Other establishments,31/05/2018,6225386,355.83,VENDOR,APEX PROPERTY VENTURES LTD,108437
Portsmouth City Council,PCC,Adult Social Care,Physical Support Older People (85+),ADULT SERVICES,Third Party Payments,Other establishments,31/05/2018,6225386,249.49,VENDOR,APEX PROPERTY VENTURES LTD,108437
Portsmouth City Council,PCC,Adult Social Care,Physical Support Older People (85+),ADULT SERVICES,Third Party Payments,Other establishments,31/05/2018,6225386,237.22,VENDOR,APEX PROPERTY VENTURES LTD,108437
Portsmouth City Council,PCC,Adult Social Care,Physical Support Older People (85+),ADULT SERVICES,Third Party Payments,Other establishments,31/05/2018,6225386,2040.91,VENDOR,APEX PROPERTY VENTURES LTD,108437
Portsmouth City Council,PCC,Adult Social Care,Physical Support Adults (18 - 64),ADULT SERVICES,Third Party Payments,Other establishments,31/05/2018,6225386,98.16,VENDOR,APEX PROPERTY VENTURES LTD,108437
Portsmouth City Council,PCC,Adult Social Care,Physical Support Older People (85+),ADULT SERVICES,Third Party Payments,Other establishments,31/05/2018,6225386,801.64,VENDOR,APEX PROPERTY VENTURES LTD,108437
Portsmouth City Council,PCC,Adult Social Care,Physical Support Older People (85+),ADULT SERVICES,Third Party Payments,Other establishments,31/05/2018,6225386,339.47,VENDOR,APEX PROPERTY VENTURES LTD,108437
Portsmouth City Council,PCC,Adult Social Care,Physical Support Older People (85+),ADULT SERVICES,Third Party Payments,Other establishments,31/05/2018,6225386,1815.96,VENDOR,APEX PROPERTY VENTURES LTD,108437
Portsmouth City Council,PCC,Adult Social Care,Physical Support Older People (85+),ADULT SERVICES,Third Party Payments,Other establishments,31/05/2018,6225386,32.72,VENDOR,APEX PROPERTY VENTURES LTD,108437
Portsmouth City Council,PCC,Adult Social Care,Physical Support Older People (85+),ADULT SERVICES,Third Party Payments,Other establishments,31/05/2018,6225386,572.6,VENDOR,APEX PROPERTY VENTURES LTD,108437
Portsmouth City Council,PCC,Adult Social Care,Physical Support Older People (85+),ADULT SERVICES,Third Party Payments,Other establishments,31/05/2018,6225386,458.08,VENDOR,APEX PROPERTY VENTURES LTD,108437
Portsmouth City Council,PCC,Adult Social Care,Physical Support Older People (85+),ADULT SERVICES,Third Party Payments,Other establishments,31/05/2018,6225386,327.2,VENDOR,APEX PROPERTY VENTURES LTD,108437
Portsmouth City Council,PCC,Adult Social Care,Physical Support Older People (85+),ADULT SERVICES,Third Party Payments,Other establishments,31/05/2018,6225386,850.72,VENDOR,APEX PROPERTY VENTURES LTD,108437
Portsmouth City Council,PCC,Adult Social Care,Physical Support Older People (85+),ADULT SERVICES,Third Party Payments,Other establishments,31/05/2018,6225386,229.04,VENDOR,APEX PROPERTY VENTURES LTD,108437
Portsmouth City Council,PCC,Adult Social Care,Physical Support Older People (85+),ADULT SERVICES,Third Party Payments,Other establishments,31/05/2018,6225386,16.36,VENDOR,APEX PROPERTY VENTURES LTD,108437
Portsmouth City Council,PCC,Adult Social Care,Physical Support Older People (85+),ADULT SERVICES,Third Party Payments,Other establishments,31/05/2018,6225386,498.98,VENDOR,APEX PROPERTY VENTURES LTD,108437
Portsmouth City Council,PCC,Adult Social Care,Physical Support Older People (85+),ADULT SERVICES,Third Party Payments,Other establishments,31/05/2018,6225386,449.9,VENDOR,APEX PROPERTY VENTURES LTD,108437
Portsmouth City Council,PCC,Adult Social Care,Physical Support Older People (85+),ADULT SERVICES,Third Party Payments,Other establishments,31/05/2018,6225386,1603.28,VENDOR,APEX PROPERTY VENTURES LTD,108437
Portsmouth City Council,PCC,Adult Social Care,Physical Support Older People (85+),ADULT SERVICES,Third Party Payments,Other establishments,31/05/2018,6225386,1832.32,VENDOR,APEX PROPERTY VENTURES LTD,108437
Portsmouth City Council,PCC,Adult Social Care,Physical Support Older People (85+),ADULT SERVICES,Third Party Payments,Other establishments,31/05/2018,6225386,229.04,VENDOR,APEX PROPERTY VENTURES LTD,108437
Portsmouth City Council,PCC,Adult Social Care,Physical Support Older People (85+),ADULT SERVICES,Third Party Payments,Other establishments,31/05/2018,6225386,687.12,VENDOR,APEX PROPERTY VENTURES LTD,108437
Portsmouth City Council,PCC,Adult Social Care,Physical Support Older People (85+),ADULT SERVICES,Third Party Payments,Other establishments,31/05/2018,6225386,2049.09,VENDOR,APEX PROPERTY VENTURES LTD,108437
Portsmouth City Council,PCC,Adult Social Care,Physical Support Older People (85+),ADULT SERVICES,Third Party Payments,Other establishments,31/05/2018,6225386,229.04,VENDOR,APEX PROPERTY VENTURES LTD,108437
Portsmouth City Council,PCC,Adult Social Care,Physical Support Older People (85+),ADULT SERVICES,Third Party Payments,Other establishments,31/05/2018,6225386,81.8,VENDOR,APEX PROPERTY VENTURES LTD,108437
Portsmouth City Council,PCC,Adult Social Care,Physical Support Older People (85+),ADULT SERVICES,Third Party Payments,Other establishments,31/05/2018,6225386,294.48,VENDOR,APEX PROPERTY VENTURES LTD,108437
Portsmouth City Council,PCC,Adult Social Care,Physical Support Older People (85+),ADULT SERVICES,Third Party Payments,Other establishments,31/05/2018,6225386,130.88,VENDOR,APEX PROPERTY VENTURES LTD,108437
Portsmouth City Council,PCC,Adult Social Care,Physical Support Older People (85+),ADULT SERVICES,Third Party Payments,Other establishments,31/05/2018,6225386,916.16,VENDOR,APEX PROPERTY VENTURES LTD,108437
Portsmouth City Council,PCC,Adult Social Care,Physical Support Older People (85+),ADULT SERVICES,Third Party Payments,Other establishments,31/05/2018,6225386,310.84,VENDOR,APEX PROPERTY VENTURES LTD,108437
Portsmouth City Council,PCC,Adult Social Care,Physical Support Adults (18 - 64),ADULT SERVICES,Third Party Payments,Other establishments,31/05/2018,6225386,343.56,VENDOR,APEX PROPERTY VENTURES LTD,108437
Portsmouth City Council,PCC,Adult Social Care,Physical Support Older People (85+),ADULT SERVICES,Third Party Payments,Other establishments,31/05/2018,6225386,973.42,VENDOR,APEX PROPERTY VENTURES LTD,108437
Portsmouth City Council,PCC,Adult Social Care,Physical Support Older People (85+),ADULT SERVICES,Third Party Payments,Other establishments,31/05/2018,6225386,687.12,VENDOR,APEX PROPERTY VENTURES LTD,108437
Portsmouth City Council,PCC,Adult Social Care,Physical Support Older People (85+),ADULT SERVICES,Third Party Payments,Other establishments,31/05/2018,6225386,458.08,VENDOR,APEX PROPERTY VENTURES LTD,108437
Portsmouth City Council,PCC,Adult Social Care,Physical Support Older People (85+),ADULT SERVICES,Third Party Payments,Other establishments,31/05/2018,6225386,20.45,VENDOR,APEX PROPERTY VENTURES LTD,108437
Portsmouth City Council,PCC,Adult Social Care,Physical Support Older People (85+),ADULT SERVICES,Third Party Payments,Other establishments,31/05/2018,6225386,4.09,VENDOR,APEX PROPERTY VENTURES LTD,108437
Portsmouth City Council,PCC,Adult Social Care,Physical Support Adults (18 - 64),ADULT SERVICES,Third Party Payments,Other establishments,31/05/2018,6225386,73.62,VENDOR,APEX PROPERTY VENTURES LTD,108437
Portsmouth City Council,PCC,Adult Social Care,Physical Support Older People (85+),ADULT SERVICES,Third Party Payments,Other establishments,31/05/2018,6225386,98.16,VENDOR,APEX PROPERTY VENTURES LTD,108437
Portsmouth City Council,PCC,Adult Social Care,Physical Support Older People (85+),ADULT SERVICES,Third Party Payments,Other establishments,31/05/2018,6225386,1439.68,VENDOR,APEX PROPERTY VENTURES LTD,108437
Portsmouth City Council,PCC,Adult Social Care,Physical Support Older People (85+),ADULT SERVICES,Third Party Payments,Other establishments,31/05/2018,6225386,1047.04,VENDOR,APEX PROPERTY VENTURES LTD,108437
Portsmouth City Council,PCC,Adult Social Care,Physical Support Older People (85+),ADULT SERVICES,Third Party Payments,Other establishments,31/05/2018,6225386,84.48,VENDOR,APEX PROPERTY VENTURES LTD,108437
Portsmouth City Council,PCC,Adult Social Care,Physical Support Older People (85+),ADULT SERVICES,Third Party Payments,Other establishments,31/05/2018,6225386,278.12,VENDOR,APEX PROPERTY VENTURES LTD,108437
Portsmouth City Council,PCC,Adult Social Care,Physical Support Older People (85+),ADULT SERVICES,Third Party Payments,Other establishments,31/05/2018,6225386,229.04,VENDOR,APEX PROPERTY VENTURES LTD,108437
Portsmouth City Council,PCC,Adult Social Care,Physical Support Adults (18 - 64),ADULT SERVICES,Third Party Payments,Other establishments,31/05/2018,6225386,245.4,VENDOR,APEX PROPERTY VENTURES LTD,108437
Portsmouth City Council,PCC,Adult Social Care,Physical Support Older People (85+),ADULT SERVICES,Third Party Payments,Other establishments,31/05/2018,6225386,490.8,VENDOR,APEX PROPERTY VENTURES LTD,108437
Portsmouth City Council,PCC,Adult Social Care,Social Care Activities,ADULT SERVICES,Third Party Payments,Other establishments,31/05/2018,6225386,2290.4,VENDOR,APEX PROPERTY VENTURES LTD,108437
Portsmouth City Council,PCC,Adult Social Care,Social Support - Support for Carer,ADULT SERVICES,Third Party Payments,Other establishments,31/05/2018,6225386,28.16,VENDOR,APEX PROPERTY VENTURES LTD,108437
Portsmouth City Council,PCC,Adult Social Care,Physical Support Older People (85+),ADULT SERVICES,Third Party Payments,Other establishments,31/05/2018,6225386,343.56,VENDOR,APEX PROPERTY VENTURES LTD,108437
Portsmouth City Council,PCC,Adult Social Care,Learning Disability Support  Adults (18 - 64),ADULT SERVICES,Third Party Payments,Other establishments,31/05/2018,6225386,948.88,VENDOR,APEX PROPERTY VENTURES LTD,108437
Portsmouth City Council,PCC,Adult Social Care,Physical Support Older People (85+),ADULT SERVICES,Third Party Payments,Other establishments,31/05/2018,6225386,163.6,VENDOR,APEX PROPERTY VENTURES LTD,108437
Portsmouth City Council,PCC,Adult Social Care,Physical Support Older People (85+),ADULT SERVICES,Third Party Payments,Other establishments,31/05/2018,6225386,572.6,VENDOR,APEX PROPERTY VENTURES LTD,108437
Portsmouth City Council,PCC,Adult Social Care,Physical Support Older People (85+),ADULT SERVICES,Third Party Payments,Other establishments,31/05/2018,6225386,65.44,VENDOR,APEX PROPERTY VENTURES LTD,108437
Portsmouth City Council,PCC,Adult Social Care,Physical Support Older People (85+),ADULT SERVICES,Third Party Payments,Other establishments,31/05/2018,6225386,916.16,VENDOR,APEX PROPERTY VENTURES LTD,108437
Portsmouth City Council,PCC,Adult Social Care,Physical Support Older People (85+),ADULT SERVICES,Third Party Payments,Other establishments,31/05/2018,6225386,1930.48,VENDOR,APEX PROPERTY VENTURES LTD,108437
Portsmouth City Council,PCC,Adult Social Care,Physical Support Older People (85+),ADULT SERVICES,Third Party Payments,Other establishments,31/05/2018,6225386,89.98,VENDOR,APEX PROPERTY VENTURES LTD,108437
Portsmouth City Council,PCC,Adult Social Care,Physical Support Adults (18 - 64),ADULT SERVICES,Third Party Payments,Other establishments,31/05/2018,6225386,700.8,VENDOR,APEX PROPERTY VENTURES LTD,108437
Portsmouth City Council,PCC,Adult Social Care,Physical Support Adults (18 - 64),ADULT SERVICES,Third Party Payments,Other establishments,31/05/2018,6225386,982.59,VENDOR,APEX PROPERTY VENTURES LTD,108437
Portsmouth City Council,PCC,Adult Social Care,Social Support - Support for Carer,ADULT SERVICES,Third Party Payments,Other establishments,31/05/2018,6225386,225.28,VENDOR,APEX PROPERTY VENTURES LTD,108437
Portsmouth City Council,PCC,Adult Social Care,Physical Support Older People (85+),ADULT SERVICES,Third Party Payments,Other establishments,31/05/2018,6225386,65.44,VENDOR,APEX PROPERTY VENTURES LTD,108437
Portsmouth City Council,PCC,Adult Social Care,Physical Support Adults (18 - 64),ADULT SERVICES,Third Party Payments,Other establishments,31/05/2018,6225386,609.41,VENDOR,APEX PROPERTY VENTURES LTD,108437
Portsmouth City Council,PCC,Adult Social Care,Physical Support Older People (85+),ADULT SERVICES,Third Party Payments,Other establishments,31/05/2018,6225386,229.04,VENDOR,APEX PROPERTY VENTURES LTD,108437
Portsmouth City Council,PCC,Adult Social Care,Physical Support Older People (85+),ADULT SERVICES,Third Party Payments,Other establishments,31/05/2018,6225386,2257.68,VENDOR,APEX PROPERTY VENTURES LTD,108437
Portsmouth City Council,PCC,Adult Social Care,Physical Support Older People (85+),ADULT SERVICES,Third Party Payments,Other establishments,31/05/2018,6225386,163.6,VENDOR,APEX PROPERTY VENTURES LTD,108437
Portsmouth City Council,PCC,Adult Social Care,Physical Support Older People (85+),ADULT SERVICES,Third Party Payments,Other establishments,31/05/2018,6225386,801.64,VENDOR,APEX PROPERTY VENTURES LTD,108437
Portsmouth City Council,PCC,Adult Social Care,Physical Support Older People (85+),ADULT SERVICES,Third Party Payments,Other establishments,31/05/2018,6225386,302.66,VENDOR,APEX PROPERTY VENTURES LTD,108437
Portsmouth City Council,PCC,Adult Social Care,Social Support - Support for Carer,ADULT SERVICES,Third Party Payments,Other establishments,31/05/2018,6225386,225.28,VENDOR,APEX PROPERTY VENTURES LTD,108437
Portsmouth City Council,PCC,Adult Social Care,Physical Support Older People (85+),ADULT SERVICES,Third Party Payments,Other establishments,31/05/2018,6225386,147.24,VENDOR,APEX PROPERTY VENTURES LTD,108437
Portsmouth City Council,PCC,Adult Social Care,Physical Support Adults (18 - 64),ADULT SERVICES,Third Party Payments,Other establishments,31/05/2018,6225386,98.16,VENDOR,APEX PROPERTY VENTURES LTD,108437
Portsmouth City Council,PCC,Adult Social Care,Physical Support Older People (85+),ADULT SERVICES,Third Party Payments,Other establishments,31/05/2018,6225386,687.12,VENDOR,APEX PROPERTY VENTURES LTD,108437
Portsmouth City Council,PCC,Adult Social Care,Physical Support Adults (18 - 64),ADULT SERVICES,Third Party Payments,Other establishments,31/05/2018,6225386,482.62,VENDOR,APEX PROPERTY VENTURES LTD,108437
Portsmouth City Council,PCC,Adult Social Care,Physical Support Older People (85+),ADULT SERVICES,Third Party Payments,Other establishments,31/05/2018,6225386,2061.36,VENDOR,APEX PROPERTY VENTURES LTD,108437
Portsmouth City Council,PCC,Adult Social Care,Physical Support Older People (85+),ADULT SERVICES,Third Party Payments,Other establishments,31/05/2018,6225386,229.04,VENDOR,APEX PROPERTY VENTURES LTD,108437
Portsmouth City Council,PCC,Adult Social Care,Physical Support Older People (85+),ADULT SERVICES,Third Party Payments,Other establishments,31/05/2018,6225386,278.12,VENDOR,APEX PROPERTY VENTURES LTD,108437
Portsmouth City Council,PCC,Adult Social Care,Social Support - Support for Carer,ADULT SERVICES,Third Party Payments,Other establishments,31/05/2018,6225386,73.92,VENDOR,APEX PROPERTY VENTURES LTD,108437
Portsmouth City Council,PCC,Adult Social Care,Physical Support Older People (85+),ADULT SERVICES,Third Party Payments,Other establishments,31/05/2018,6225386,392.64,VENDOR,APEX PROPERTY VENTURES LTD,108437
Portsmouth City Council,PCC,Adult Social Care,Physical Support Older People (85+),ADULT SERVICES,Third Party Payments,Other establishments,31/05/2018,6225386,1326.1,VENDOR,APEX PROPERTY VENTURES LTD,108437
Portsmouth City Council,PCC,Adult Social Care,Social Support - Support for Carer,ADULT SERVICES,Third Party Payments,Other establishments,31/05/2018,6225386,56.32,VENDOR,APEX PROPERTY VENTURES LTD,108437
Portsmouth City Council,PCC,Adult Social Care,Physical Support Older People (85+),ADULT SERVICES,Third Party Payments,Other establishments,31/05/2018,6225386,1374.24,VENDOR,APEX PROPERTY VENTURES LTD,108437
Portsmouth City Council,PCC,Adult Social Care,Physical Support Adults (18 - 64),ADULT SERVICES,Third Party Payments,Other establishments,31/05/2018,6225386,506.88,VENDOR,APEX PROPERTY VENTURES LTD,108437
Portsmouth City Council,PCC,Adult Social Care,Social Support - Support for Carer,ADULT SERVICES,Third Party Payments,Other establishments,31/05/2018,6225386,225.28,VENDOR,APEX PROPERTY VENTURES LTD,108437
Portsmouth City Council,PCC,Adult Social Care,Physical Support Older People (85+),ADULT SERVICES,Third Party Payments,Other establishments,31/05/2018,6225386,229.04,VENDOR,APEX PROPERTY VENTURES LTD,108437
Portsmouth City Council,PCC,Adult Social Care,Physical Support Older People (85+),ADULT SERVICES,Third Party Payments,Other establishments,31/05/2018,6225386,458.08,VENDOR,APEX PROPERTY VENTURES LTD,108437
